Workbook

Sheet Instruções
A1: http://authenticator.sapphirebusinesstech.com:8080/access/v1/validate
A2: 123456789 | C2: INSTRUÇÕES DE USO
A3: contact@sapphirebusinesstech.com | E3: Any use for this file other than sample using and technical analysis without authorization is stricly prohibited and protected by copyright
E4: Qualquer uso desse arquivo sem autorização outro que uso de exemplo e análise técnica é extritamente proibida e protegida por direitos autorais.
A5: 200 | C5: Leia antes de começar a usar a planilha | E5: Cualquier uso de este archivo sin autorización que no sea para fines de ejemplo o análisis técnico está estrictamente prohibido y está protegido por derechos de autor.
A7: =IF(A12="",0,TODAY()-A12) -> 0
C10: Etapa | D10: Orientação | E10: Dica prática | F10: Erros a evitar
C11: 1. Objetivo | D11: Esta planilha gerencia projetos: prazos, custos, tarefas e ocorrências. | E11: Comece pelo Menu para entender a estrutura. | F11: Não pule cadastros antes de criar projetos.
C12: 2. Ordem de preenchimento | D12: 1º Cad_Clientes → 2º Cad_Responsaveis → 3º Projetos → 4º Cronograma → 5º Orçamento → 6º Ocorrências. | E12: Siga a ordem para que listas e validações funcionem. | F12: Não cadastre projetos sem antes cadastrar clientes e responsáveis.
C13: 3. O que editar | D13: Edite apenas células de entrada (brancas). Colunas com fórmulas são calculadas automaticamente. | E13: Colunas como Margem, Situação Prazo e Dias Restantes são automáticas. | F13: Nunca apague ou substitua fórmulas por valores fixos.
C14: 4. Usando filtros | D14: Cada tabela possui filtros nos cabeçalhos. Clique na seta para filtrar por status, projeto, etc. | E14: Use filtros para focar em projetos atrasados ou categorias específicas. | F14: Não oculte linhas manualmente — use os filtros da tabela.
C15: 5. Relatórios | D15: A aba Relatórios se atualiza automaticamente com base nos dados das outras abas. | E15: Consulte os KPIs e gráficos regularmente para acompanhamento. | F15: Não altere dados diretamente na aba Relatórios ou Cálculos.
C16: 6. Status | D16: Planejado, Em andamento, Em pausa, Concluído, Cancelado. Atualize conforme evolução real. | E16: Mantenha status atualizados para indicadores corretos. | F16: Não deixe projetos sem status definido.
C17: 7. Alertas de prazo | D17: Situação Prazo indica: No prazo (ok), Próximo do prazo (atenção), Atrasado (ação urgente), Finalizado. | E17: Cores: verde=ok, amarelo=atenção, vermelho=atrasado. | F17: Não ignore alertas amarelos — aja antes que virem vermelhos.
C18: 8. Navegação | D18: Use os botões no topo de cada aba para navegar rapidamente entre as seções. | E18: Os botões levam diretamente ao início dos dados (célula C7). | F18: Não renomeie as abas — os links de navegação podem quebrar.
C19: GANTT — Visão Geral | D19: Orientação | E19: Dica prática | F19: Erros a evitar
C20: 9. Aba Gantt — Visão geral | D20: A aba Gantt exibe visualmente as tarefas do projeto selecionado em uma janela de 30 dias, com 1 coluna por dia. Cada linha é uma tarefa buscada automaticamente do Cronograma. | E20: Use o Gantt para acompanhar o andamento diário das tarefas e identificar desvios de prazo rapidamente. | F20: Não edite as fórmulas das colunas C a H — elas buscam automaticamente os dados do Cronograma.
C21: 10. Seleção de projeto (C6) | D21: Clique na célula C6 e escolha o código do projeto (ex.: PROJ-001) na lista suspensa. As tarefas nas linhas abaixo se atualizam automaticamente. | E21: Altere C6 sempre que quiser visualizar um projeto diferente — não é necessário nenhum botão ou macro. | F21: Não digite o código manualmente — use sempre a lista suspensa para evitar erros de digitação.
C22: 11. Data de início da janela (D6) | D22: A célula D6 define o primeiro dia exibido no Gantt. Por padrão, aponta automaticamente para a data de início mais antiga das tarefas do projeto selecionado. Você pode digitar outra data para navegar entre períodos. | E22: Para ver a semana atual, basta digitar a data de hoje em D6. Para avançar 30 dias, some 30 à data (ex.: =D6+30 numa célula auxiliar e copie o valor). | F22: Não apague D6 — sem data de início o cabeçalho de dias e as cores do Gantt ficam incorretos.
C23: 12. Cabeçalho de dias (linha 7, colunas I–AL) | D23: Cada coluna a partir de I representa 1 dia — calculado como D6 + n. O formato exibe o dia da semana abreviado e o número do dia (ex.: “Qui 22”). Fins de semana têm fundo azul mais escuro. | E23: Ao alterar D6, todos os cabeçalhos se recalculam instantaneamente — inclusive os fins de semana destacados. | F23: Não edite as fórmulas do cabeçalho (linha 7) — elas derivam todas de D6.
C24: 13. Cores das barras (formatação condicional) | D24: As células da grade são coloridas automaticamente por fórmulas de formatação condicional: ■ Azul marinho = Concluída no prazo (atraso = 0) | ■ Laranja = Concluída com atraso | ■ Vermelho = Atrasada (não concluída) | ■ Amarelo = Suspensa ou Em andamento | ■ Ciano claro = Dia atual (TODAY) | ■ Cinza = Fim de semana sem tarefa. | E24: As cores refletem o Status_Tarefa e os dias de atraso registrados na aba Cronograma. Mantenha esses campos atualizados para que o Gantt seja confiável. | F24: Não aplique preenchimento manual nas células da grade — isso sobrescreveria a formatação condicional e as cores parariam de funcionar.
C25: 14. Tarefas automáticas (linhas 8 em diante) | D25: As colunas C a H (Cód., Projeto, Etapa, Tarefa, Responsável, Status) são preenchidas por fórmulas AGGREGATE que buscam na aba Cronograma todas as tarefas do projeto em C6, na ordem em que aparecem. | E25: Se um projeto tiver mais de 40 tarefas, apenas as 40 primeiras serão exibidas. Contate o administrador para ampliar o intervalo de fórmulas. | F25: Não insira nem exclua linhas dentro do intervalo de dados (linhas 8 a 47) — isso quebra a sequência das fórmulas AGGREGATE.
C26: 15. Colunas auxiliares (AM–AR) | D26: As colunas AM a AR estão ocultas e contêm as datas (Início Plan, Fim Plan, Início Real, Fim Real), o percentual de conclusão e os dias de atraso. São usadas pelas fórmulas de formatação condicional para calcular as cores. | E26: Para inspecionar as datas de uma tarefa, selecione a linha correspondente, vá à guia Página Início → Formatar → Reexibir Colunas e analise AM–AR. | F26: Não exclua nem edite as colunas auxiliares AM–AR — as cores do Gantt dependem exclusivamente delas.
C27: 16. Navegar entre períodos | D27: Para avançar ou recuar no tempo, basta alterar a data em D6. A janela sempre mostra os 30 dias seguintes à data informada. Cada coluna representa exatamente 1 dia corrido (incluindo sábados e domingos). | E27: Para ver a quinzena atual: insira =HOJE() em D6. Para avançar ao próximo mês: insira a data do 1º dia do mês desejado. | F27: Não insira uma data futura muito distante das tarefas — as barras ficarão em branco se nenhuma tarefa ocorrer na janela.
C28: 17. Atualizar dados do Gantt | D28: O Gantt é 100% automático — não há botão de atualizar. Sempre que um status, data ou percentual for alterado na aba Cronograma, as cores e informações do Gantt refletem imediatamente a mudança. | E28: Se as fórmulas não atualizarem, pressione Ctrl+Alt+F9 para forçar o recálculo completo da pasta de trabalho. | F28: Não use Colar Especial → Valores sobre as células do Gantt — isso elimina as fórmulas que buscam as tarefas.

Sheet Menu (hidden)
C2: CONTROLE DE PROJETOS
C5: Painel de controle centralizado para gestão de projetos, custos e prazos
C7: Projetos Ativos | F7: Projetos Concluídos | I7: Projetos Atrasados | L7: Custo Real Total | O7: Margem Real Total
C8: =Calculos!D8 -> 44 | F8: =Calculos!D9 -> 20 | I8: =Calculos!D10 -> 39 | L8: =Calculos!D13 -> R$ 9,341,466.77 | O8: =Calculos!D15 -> R$ 20,682,845.60
C11: GUIA DAS ABAS
C12: Aba | D12: Descrição
C13: Instruções | D13: Orientações de uso para iniciantes
C14: Cad_Clientes | D14: Cadastro de clientes com dados de contato
C15: Cad_Responsaveis | D15: Cadastro de responsáveis e áreas
C16: Cad_Apoio | D16: Listas de validação (status, categorias, prioridades)
C17: Projetos | D17: Registro de projetos com prazos, custos e margem
C18: Cronograma | D18: Tarefas detalhadas com Gantt visual
C19: Orcamento | D19: Controle de custos e receitas por projeto
C20: Ocorrencias | D20: Registro de riscos, problemas e mudanças
C21: Calculos | D21: Indicadores consolidados (não editar)
C22: Relatorios | D22: Dashboard com KPIs, gráficos e projetos críticos

Sheet Cad_Clientes (hidden)
C2: CADASTRO DE CLIENTES
C7: Cod_Cliente | D7: Cliente | E7: Razao_Social | F7: Documento | G7: Contato | H7: Telefone | I7: Email | J7: Cidade | K7: UF | L7: Status_Cliente
C8: CLI-001 | D8: Nexus Tecnologia | E8: Nexus Tecnologia Ltda | F8: 12.345.678/0001-01 | G8: Ana Silva | H8: (92) 91824-1409 | I8: ana.silva@email.com | J8: São Paulo | K8: SP | L8: Ativo
C9: CLI-002 | D9: Orbital Engenharia | E9: Orbital Engenharia S.A. | F9: 23.456.789/0001-02 | G9: Bruno Costa | H9: (42) 93657-3286 | I9: bruno.costa@email.com | J9: Rio de Janeiro | K9: RJ | L9: Ativo
C10: CLI-003 | D10: Vértice Consultoria | E10: Vértice Consultoria ME | F10: 34.567.890/0001-03 | G10: Carlos Mendes | H10: (97) 98935-2424 | I10: carlos.mendes@email.com | J10: Belo Horizonte | K10: MG | L10: Ativo
C11: CLI-004 | D11: Ápice Logística | E11: Ápice Logística e Transportes Ltda | F11: 45.678.901/0001-04 | G11: Daniela Oliveira | H11: (15) 90488-2535 | I11: daniela.oliveira@email.com | J11: Curitiba | K11: PR | L11: Ativo
C12: CLI-005 | D12: Bravus Construtora | E12: Bravus Construtora Eireli | F12: 56.789.012/0001-05 | G12: Eduardo Santos | H12: (75) 99863-1434 | I12: eduardo.santos@email.com | J12: Porto Alegre | K12: RS | L12: Ativo
C13: CLI-006 | D13: Solaris Energia | E13: Solaris Energia Renovável S.A. | F13: 67.890.123/0001-06 | G13: Fernanda Lima | H13: (94) 98928-7873 | I13: fernanda.lima@email.com | J13: Salvador | K13: BA | L13: Ativo
C14: CLI-007 | D14: Titanium Seguros | E14: Titanium Seguros e Previdência Ltda | F14: 78.901.234/0001-07 | G14: Gustavo Almeida | H14: (25) 93139-8157 | I14: gustavo.almeida@email.com | J14: Recife | K14: PE | L14: Ativo
C15: CLI-008 | D15: Nova Horizonte Edu | E15: Nova Horizonte Educação Ltda | F15: 89.012.345/0001-08 | G15: Helena Rocha | H15: (60) 98413-1816 | I15: helena.rocha@email.com | J15: Fortaleza | K15: CE | L15: Ativo
C16: CLI-009 | D16: Quartzo Mineração | E16: Quartzo Mineração e Comércio S.A. | F16: 90.123.456/0001-09 | G16: Igor Ferreira | H16: (42) 90133-6455 | I16: igor.ferreira@email.com | J16: Brasília | K16: DF | L16: Ativo
C17: CLI-010 | D17: Pulsar Marketing | E17: Pulsar Marketing Digital ME | F17: 01.234.567/0001-10 | G17: Julia Martins | H17: (49) 96429-1484 | I17: julia.martins@email.com | J17: Goiânia | K17: GO | L17: Ativo
C18: CLI-011 | D18: Zenith Farmacêutica | E18: Zenith Farmacêutica Ltda | F18: 11.223.344/0001-11 | G18: Kleber Souza | H18: (81) 92397-3458 | I18: kleber.souza@email.com | J18: Campinas | K18: SP | L18: Ativo
C19: CLI-012 | D19: Croma Design | E19: Croma Design e Arquitetura Eireli | F19: 22.334.455/0001-12 | G19: Larissa Pereira | H19: (55) 96805-9605 | I19: larissa.pereira@email.com | J19: Manaus | K19: AM | L19: Ativo
C20: CLI-013 | D20: Fortuna Investimentos | E20: Fortuna Investimentos S.A. | F20: 33.445.566/0001-13 | G20: Marcos Ribeiro | H20: (29) 94938-2456 | I20: marcos.ribeiro@email.com | J20: Florianópolis | K20: SC | L20: Ativo
C21: CLI-014 | D21: Onda Verde Ambiental | E21: Onda Verde Soluções Ambientais Ltda | F21: 44.556.677/0001-14 | G21: Natália Borges | H21: (47) 94100-3379 | I21: natalia.borges@email.com | J21: Vitória | K21: ES | L21: Ativo
C22: CLI-015 | D22: Atlas Transporte | E22: Atlas Transporte e Logística ME | F22: 55.667.788/0001-15 | G22: Oscar Dias | H22: (62) 94729-1614 | I22: oscar.dias@email.com | J22: Belém | K22: PA | L22: Inativo
C23: CLI-016 | D23: Magma Siderurgia | E23: Magma Siderurgia e Aços S.A. | F23: 66.778.899/0001-16 | G23: Patrícia Nunes | H23: (38) 91476-7694 | I23: patricia.nunes@email.com | J23: São Luís | K23: MA | L23: Ativo
C24: CLI-017 | D24: Criativa Publicidade | E24: Criativa Publicidade e Propaganda Ltda | F24: 77.889.900/0001-17 | G24: Rafael Teixeira | H24: (72) 95447-4804 | I24: rafael.teixeira@email.com | J24: Natal | K24: RN | L24: Ativo
C25: CLI-018 | D25: Primus Saúde | E25: Primus Saúde e Bem-Estar Eireli | F25: 88.990.011/0001-18 | G25: Sabrina Lopes | H25: (31) 91965-7263 | I25: sabrina.lopes@email.com | J25: Joinville | K25: SC | L25: Ativo
C26: CLI-019 | D26: Velox TI | E26: Velox Tecnologia da Informação Ltda | F26: 99.001.122/0001-19 | G26: Thiago Moreira | H26: (51) 90655-1759 | I26: thiago.moreira@email.com | J26: Uberlândia | K26: MG | L26: Inativo
C27: CLI-020 | D27: Terra Nova Agro | E27: Terra Nova Agronegócios S.A. | F27: 10.112.233/0001-20 | G27: Úrsula Cardoso | H27: (35) 95792-2764 | I27: ursula.cardoso@email.com | J27: Ribeirão Preto | K27: SP | L27: Ativo
C28: CLI-021 | D28: Safira Joias | E28: Safira Joias e Acessórios ME | F28: 21.223.344/0001-21 | G28: Vinícius Castro | H28: (96) 93862-6820 | I28: vinicius.castro@email.com | J28: Londrina | K28: PR | L28: Ativo
C29: CLI-022 | D29: Helio Telecom | E29: Helio Telecomunicações Ltda | F29: 32.334.455/0001-22 | G29: Wesley Barbosa | H29: (68) 96131-2803 | I29: wesley.barbosa@email.com | J29: Niterói | K29: RJ | L29: Inativo
C30: CLI-023 | D30: Acqua Tratamento | E30: Acqua Tratamento de Água Eireli | F30: 43.445.566/0001-23 | G30: Yasmin Farias | H30: (82) 90524-3651 | I30: yasmin.farias@email.com | J30: Aracaju | K30: SE | L30: Ativo

Sheet Cad_Responsaveis (hidden)
C2: CADASTRO DE RESPONSÁVEIS
C7: Cod_Resp | D7: Responsavel | E7: Area | F7: Funcao | G7: Email | H7: Telefone | I7: Status_Resp
C8: RESP-001 | D8: Ricardo Monteiro | E8: Engenharia | F8: Gerente de Projetos | G8: ricardo.monteiro@empresa.com | H8: (11) 98765-4321 | I8: Ativo
C9: RESP-002 | D9: Camila Duarte | E9: TI | F9: Coordenadora de TI | G9: camila.duarte@empresa.com | H9: (21) 97654-3210 | I9: Ativo
C10: RESP-003 | D10: André Machado | E10: Operações | F10: Diretor de Operações | G10: andre.machado@empresa.com | H10: (31) 96543-2109 | I10: Ativo
C11: RESP-004 | D11: Beatriz Alves | E11: Comercial | F11: Gerente Comercial | G11: beatriz.alves@empresa.com | H11: (41) 95432-1098 | I11: Ativo
C12: RESP-005 | D12: Diego Fonseca | E12: Financeiro | F12: Analista Financeiro | G12: diego.fonseca@empresa.com | H12: (51) 94321-0987 | I12: Ativo
C13: RESP-006 | D13: Elisa Prado | E13: Marketing | F13: Coordenadora de Marketing | G13: elisa.prado@empresa.com | H13: (61) 93210-9876 | I13: Ativo
C14: RESP-007 | D14: Felipe Neves | E14: Consultoria | F14: Consultor Sênior | G14: felipe.neves@empresa.com | H14: (71) 92109-8765 | I14: Ativo

Sheet Projetos (hidden)
C2: GESTÃO DE PROJETOS
C7: Cod_Projeto | D7: Projeto | E7: Cliente | F7: Categoria | G7: Responsavel | H7: Prioridade | I7: Data_Inicio | J7: Prazo | K7: Data_Termino_Real | L7: Status | M7: Perc_Conclusao | N7: Valor_Contratado | O7: Custo_Previsto | P7: Custo_Real | Q7: Margem_Prevista | R7: Margem_Real | S7: Situacao_Prazo | T7: Dias_Restantes | U7: Centro_Custo | V7: Ativo | W7: Observacoes
C8: PROJ-001 | D8: Migração de ERP | E8: Nexus Tecnologia | F8: Marketing | G8: Ricardo Monteiro | H8: Média | I8: 2024-02-28 | J8: 2024-06-30 | K8: 2024-06-21 | L8: Concluído | M8: 100% | N8: 224,711.09 | O8: 128,620.23 | P8: 146,904.15 | Q8: =N8-O8 -> 96,090.86 | R8: =N8-P8 -> 77,806.94 | S8: =IF(L8="Concluído","Finalizado",IF(TODAY()>J8,"Atrasado",IF(TODAY()+7>J8,"Próximo do prazo","No prazo"))) -> Finalizado | T8: =IF(L8="Concluído",0,J8-TODAY()) -> 0 | U8: CC-MKT | V8: Não
C9: PROJ-002 | D9: Novo Portal Web | E9: Orbital Engenharia | F9: Marketing | G9: Camila Duarte | H9: Baixa | I9: 2024-01-21 | J9: 2024-05-26 | K9: 2024-05-12 | L9: Concluído | M9: 100% | N9: 428,890.44 | O9: 319,116.72 | P9: 348,127.43 | Q9: =N9-O9 -> 109,773.72 | R9: =N9-P9 -> 80,763.01 | S9: =IF(L9="Concluído","Finalizado",IF(TODAY()>J9,"Atrasado",IF(TODAY()+7>J9,"Próximo do prazo","No prazo"))) -> Finalizado | T9: =IF(L9="Concluído",0,J9-TODAY()) -> 0 | U9: CC-TI | V9: Não
C10: PROJ-003 | D10: App Mobile Vendas | E10: Vértice Consultoria | F10: Implantação | G10: André Machado | H10: Média | I10: 2024-04-11 | J10: 2024-09-10 | K10: 2024-10-23 | L10: Concluído | M10: 100% | N10: 478,073.71 | O10: 337,556.09 | P10: 370,990.61 | Q10: 140,517.62 | R10: 107,083.10 | S10: Finalizado | T10: 0 | U10: CC-ENG | V10: Não
C11: PROJ-004 | D11: Automação de RH | E11: Ápice Logística | F11: Interno | G11: Beatriz Alves | H11: Média | I11: 2024-02-01 | J11: 2024-04-24 | K11: 2024-05-02 | L11: Concluído | M11: 100% | N11: 810,361.93 | O11: 502,458.29 | P11: 440,057.46 | Q11: 307,903.64 | R11: 370,304.47 | S11: Finalizado | T11: 0 | U11: CC-FIN | V11: Não
C12: PROJ-005 | D12: BI Dashboard | E12: Bravus Construtora | F12: Desenvolvimento | G12: Diego Fonseca | H12: Alta | I12: 2024-06-09 | J12: 2024-11-08 | K12: 2024-11-04 | L12: Concluído | M12: 100% | N12: 67,483.67 | O12: 37,773.56 | P12: 37,938.12 | Q12: 29,710.11 | R12: 29,545.55 | S12: Finalizado | T12: 0 | U12: CC-OPS | V12: Não
C13: PROJ-006 | D13: Integração CRM | E13: Solaris Energia | F13: Manutenção | G13: Elisa Prado | H13: Média | I13: 2024-04-23 | J13: 2024-07-05 | L13: Cancelado | M13: 5% | N13: 737,653.06 | O13: 304,299.65 | P13: 0.00 | Q13: 433,353.41 | R13: 737,653.06 | S13: Atrasado | T13: -769 | U13: CC-COM | V13: Não
C14: PROJ-007 | D14: Reforma Sede | E14: Titanium Seguros | F14: Manutenção | G14: Felipe Neves | H14: Alta | I14: 2024-04-21 | J14: 2024-07-01 | K14: 2024-07-04 | L14: Concluído | M14: 100% | N14: 593,267.67 | O14: 354,766.37 | P14: 390,020.48 | Q14: 238,501.30 | R14: 203,247.19 | S14: Finalizado | T14: 0 | U14: CC-ADM | V14: Não
C15: PROJ-008 | D15: Campanha Digital Q1 | E15: Nova Horizonte Edu | F15: Desenvolvimento | G15: Ricardo Monteiro | H15: Média | I15: 2024-06-18 | J15: 2024-10-22 | K15: 2024-10-02 | L15: Concluído | M15: 100% | N15: 549,770.27 | O15: 408,734.47 | P15: 493,741.08 | Q15: 141,035.80 | R15: 56,029.19 | S15: Finalizado | T15: 0 | U15: CC-TI | V15: Não
C16: PROJ-009 | D16: Auditoria Fiscal | E16: Quartzo Mineração | F16: Interno | G16: Camila Duarte | H16: Alta | I16: 2024-03-07 | J16: 2024-06-19 | L16: Cancelado | M16: 30% | N16: 591,218.46 | O16: 348,618.91 | P16: 0.00 | Q16: 242,599.55 | R16: 591,218.46 | S16: Atrasado | T16: -785 | U16: CC-OPS | V16: Não
C17: PROJ-010 | D17: Consultoria ISO 9001 | E17: Pulsar Marketing | F17: Consultoria | G17: André Machado | H17: Crítica | I17: 2024-01-06 | J17: 2024-04-19 | K17: 2024-04-27 | L17: Concluído | M17: 100% | N17: 651,890.34 | O17: 520,076.03 | P17: 641,519.93 | Q17: 131,814.31 | R17: 10,370.41 | S17: Finalizado | T17: 0 | U17: CC-ENG | V17: Não
C18: PROJ-011 | D18: Expansão Filial Norte | E18: Zenith Farmacêutica | F18: Manutenção | G18: Beatriz Alves | H18: Alta | I18: 2025-09-09 | J18: 2026-02-23 | L18: Em andamento | M18: 63% | N18: 498,789.54 | O18: 394,671.23 | P18: 154,744.27 | Q18: 104,118.31 | R18: 344,045.27 | S18: Atrasado | T18: -171 | U18: CC-ADM | V18: Sim
C19: PROJ-012 | D19: Plataforma E-commerce | E19: Croma Design | F19: Marketing | G19: Diego Fonseca | H19: Média | I19: 2024-06-08 | J19: 2024-12-15 | K19: 2024-12-11 | L19: Concluído | M19: 100% | N19: 638,091.02 | O19: 319,406.27 | P19: 411,116.53 | Q19: 318,684.75 | R19: 226,974.49 | S19: Finalizado | T19: 0 | U19: CC-MKT | V19: Não
C20: PROJ-013 | D20: Treinamento Liderança | E20: Fortuna Investimentos | F20: Implantação | G20: Elisa Prado | H20: Média | I20: 2024-08-14 | J20: 2025-01-31 | K20: 2025-01-11 | L20: Concluído | M20: 100% | N20: 139,766.99 | O20: 46,938.91 | P20: 36,973.40 | Q20: 92,828.08 | R20: 102,793.59 | S20: Finalizado | T20: 0 | U20: CC-ENG | V20: Não
C21: PROJ-014 | D21: Sistema de Tickets | E21: Onda Verde Ambiental | F21: Desenvolvimento | G21: Felipe Neves | H21: Baixa | I21: 2024-11-24 | J21: 2025-09-04 | L21: Em andamento | M21: 85% | N21: 68,614.67 | O21: 52,006.45 | P21: 36,693.76 | Q21: 16,608.22 | R21: 31,920.91 | S21: Atrasado | T21: -343 | U21: CC-TI | V21: Sim
C22: PROJ-015 | D22: Gestão de Frotas | E22: Atlas Transporte | F22: Marketing | G22: Ricardo Monteiro | H22: Crítica | I22: 2024-05-19 | J22: 2025-01-14 | K22: 2025-01-22 | L22: Concluído | M22: 100% | N22: 784,948.12 | O22: 536,513.96 | P22: 575,879.11 | Q22: 248,434.16 | R22: 209,069.01 | S22: Finalizado | T22: 0 | U22: CC-FIN | V22: Não
C23: PROJ-016 | D23: Portal do Fornecedor | E23: Magma Siderurgia | F23: Consultoria | G23: Camila Duarte | H23: Alta | I23: 2024-07-28 | J23: 2025-01-26 | L23: Em pausa | M23: 18% | N23: 389,124.08 | O23: 155,458.64 | P23: 25,012.58 | Q23: 233,665.44 | R23: 364,111.50 | S23: Atrasado | T23: -564 | U23: CC-OPS | V23: Sim
C24: PROJ-017 | D24: Chatbot Atendimento | E24: Criativa Publicidade | F24: Consultoria | G24: André Machado | H24: Média | I24: 2024-08-05 | J24: 2025-06-01 | L24: Em andamento | M24: 73% | N24: 193,447.67 | O24: 84,710.52 | P24: 61,891.30 | Q24: 108,737.15 | R24: 131,556.37 | S24: Atrasado | T24: -438 | U24: CC-COM | V24: Sim
C25: PROJ-018 | D25: Migração Cloud AWS | E25: Primus Saúde | F25: Consultoria | G25: Beatriz Alves | H25: Média | I25: 2024-10-30 | J25: 2025-06-08 | L25: Cancelado | M25: 20% | N25: 827,479.25 | O25: 599,277.55 | P25: 0.00 | Q25: 228,201.70 | R25: 827,479.25 | S25: Atrasado | T25: -431 | U25: CC-FIN | V25: Não
C26: PROJ-019 | D26: Projeto Sustentabilidade | E26: Velox TI | F26: Interno | G26: Diego Fonseca | H26: Média | I26: 2024-12-17 | J26: 2025-06-18 | L26: Em andamento | M26: 39% | N26: 551,903.23 | O26: 361,948.40 | P26: 88,685.72 | Q26: 189,954.83 | R26: 463,217.51 | S26: Atrasado | T26: -421 | U26: CC-TI | V26: Sim
C27: PROJ-020 | D27: Análise de Mercado | E27: Terra Nova Agro | F27: Interno | G27: Elisa Prado | H27: Média | I27: 2024-10-08 | J27: 2025-05-14 | K27: 2025-05-02 | L27: Concluído | M27: 100% | N27: 206,361.52 | O27: 108,506.52 | P27: 128,965.51 | Q27: 97,855.00 | R27: 77,396.01 | S27: Finalizado | T27: 0 | U27: CC-ADM | V27: Não
C28: PROJ-021 | D28: Redesign Marca | E28: Safira Joias | F28: Desenvolvimento | G28: Felipe Neves | H28: Média | I28: 2024-08-06 | J28: 2025-10-03 | L28: Em andamento | M28: 46% | N28: 377,853.82 | O28: 303,709.02 | P28: 117,009.55 | Q28: 74,144.80 | R28: 260,844.27 | S28: Atrasado | T28: -314 | U28: CC-MKT | V28: Sim
C29: PROJ-022 | D29: Implantação SAP | E29: Helio Telecom | F29: Manutenção | G29: Ricardo Monteiro | H29: Crítica | I29: 2024-06-09 | J29: 2025-04-05 | K29: 2025-04-30 | L29: Concluído | M29: 100% | N29: 479,283.78 | O29: 235,488.43 | P29: 295,181.73 | Q29: 243,795.35 | R29: 184,102.05 | S29: Finalizado | T29: 0 | U29: CC-ENG | V29: Não
C30: PROJ-023 | D30: Otimização Logística | E30: Acqua Tratamento | F30: Marketing | G30: Camila Duarte | H30: Baixa | I30: 2024-08-25 | J30: 2025-03-15 | L30: Em pausa | M30: 18% | N30: 381,632.69 | O30: 272,100.98 | P30: 44,514.24 | Q30: 109,531.71 | R30: 337,118.45 | S30: Atrasado | T30: -516 | U30: CC-ENG | V30: Sim
C31: PROJ-024 | D31: Sistema de Ponto | E31: Nexus Tecnologia | F31: Desenvolvimento | G31: André Machado | H31: Baixa | I31: 2024-09-18 | J31: 2025-05-04 | K31: 2025-05-09 | L31: Concluído | M31: 100% | N31: 662,616.87 | O31: 316,822.32 | P31: 309,485.09 | Q31: 345,794.55 | R31: 353,131.78 | S31: Finalizado | T31: 0 | U31: CC-ENG | V31: Não
C32: PROJ-025 | D32: Campanha Black Friday | E32: Orbital Engenharia | F32: Interno | G32: Beatriz Alves | H32: Baixa | I32: 2024-07-03 | J32: 2025-03-31 | K32: 2025-05-19 | L32: Concluído | M32: 100% | N32: 87,234.61 | O32: 64,696.03 | P32: 72,673.45 | Q32: 22,538.58 | R32: 14,561.16 | S32: Finalizado | T32: 0 | U32: CC-TI | V32: Não
C33: PROJ-026 | D33: Compliance LGPD | E33: Vértice Consultoria | F33: Consultoria | G33: Diego Fonseca | H33: Alta | I33: 2025-04-27 | J33: 2025-09-21 | L33: Em pausa | M33: 55% | N33: 690,872.47 | O33: 411,940.64 | P33: 193,427.95 | Q33: 278,931.83 | R33: 497,444.52 | S33: Atrasado | T33: -326 | U33: CC-MKT | V33: Sim
C34: PROJ-027 | D34: Novo Data Center | E34: Ápice Logística | F34: Implantação | G34: Elisa Prado | H34: Baixa | I34: 2025-02-10 | J34: 2025-06-09 | L34: Em andamento | M34: 70% | N34: 95,966.90 | O34: 72,712.70 | P34: 41,618.85 | Q34: 23,254.20 | R34: 54,348.05 | S34: Atrasado | T34: -430 | U34: CC-COM | V34: Sim
C35: PROJ-028 | D35: App Manutenção | E35: Bravus Construtora | F35: Manutenção | G35: Felipe Neves | H35: Alta | I35: 2025-04-30 | J35: 2025-10-20 | L35: Em andamento | M35: 40% | N35: 53,076.50 | O35: 30,701.41 | P35: 10,442.39 | Q35: 22,375.09 | R35: 42,634.11 | S35: Atrasado | T35: -297 | U35: CC-TI | V35: Sim
C36: PROJ-029 | D36: Intranet Corporativa | E36: Solaris Energia | F36: Desenvolvimento | G36: Ricardo Monteiro | H36: Crítica | I36: 2025-07-05 | J36: 2025-11-16 | L36: Em andamento | M36: 49% | N36: 75,371.11 | O36: 42,146.31 | P36: 20,718.60 | Q36: 33,224.80 | R36: 54,652.51 | S36: Atrasado | T36: -270 | U36: CC-OPS | V36: Sim
C37: PROJ-030 | D37: Programa Trainee | E37: Titanium Seguros | F37: Consultoria | G37: Camila Duarte | H37: Alta | I37: 2025-06-22 | J37: 2026-01-24 | L37: Em andamento | M37: 27% | N37: 578,109.95 | O37: 429,920.39 | P37: 135,743.73 | Q37: 148,189.56 | R37: 442,366.22 | S37: Atrasado | T37: -201 | U37: CC-MKT | V37: Sim
C38: PROJ-031 | D38: CRM Integrado | E38: Nova Horizonte Edu | F38: Marketing | G38: André Machado | H38: Média | I38: 2025-05-04 | J38: 2025-11-14 | L38: Em andamento | M38: 19% | N38: 216,873.95 | O38: 112,104.97 | P38: 23,893.79 | Q38: 104,768.98 | R38: 192,980.16 | S38: Atrasado | T38: -272 | U38: CC-ADM | V38: Sim
C39: PROJ-032 | D39: Pesquisa de Satisfação | E39: Quartzo Mineração | F39: Baixa | G39: Beatriz Alves | H39: Baixa | I39: 2025-04-12 | J39: 2025-07-27 | K39: 2025-07-14 | L39: Concluído | M39: 100% | N39: 840,983.52 | O39: 432,744.47 | P39: 471,638.29 | Q39: 408,239.05 | R39: 369,345.23 | S39: Finalizado | T39: 0 | U39: CC-COM | V39: Não
C40: PROJ-033 | D40: Automação Industrial | E40: Pulsar Marketing | F40: Desenvolvimento | G40: Diego Fonseca | H40: Baixa | I40: 2025-10-19 | J40: 2026-03-29 | L40: Planejado | M40: 0% | N40: 830,510.44 | O40: 359,868.50 | P40: 0.00 | Q40: 470,641.94 | R40: 830,510.44 | S40: Atrasado | T40: -137 | U40: CC-FIN | V40: Sim
C41: PROJ-034 | D41: Gestão de Contratos | E41: Zenith Farmacêutica | F41: Desenvolvimento | G41: Elisa Prado | H41: Média | I41: 2025-03-22 | J41: 2025-08-23 | K41: 2025-09-01 | L41: Concluído | M41: 100% | N41: 627,584.86 | O41: 387,902.69 | P41: 449,088.28 | Q41: =N41-O41 -> 239,682.17 | R41: =N41-P41 -> 178,496.58 | S41: =IF(L41="Concluído","Finalizado",IF(TODAY()>J41,"Atrasado",IF(TODAY()+7>J41,"Próximo do prazo","No prazo"))) -> Finalizado | T41: =IF(L41="Concluído",0,J41-TODAY()) -> 0 | U41: CC-ADM | V41: Não
C42: PROJ-035 | D42: Hub de Inovação | E42: Croma Design | F42: Marketing | G42: Felipe Neves | H42: Alta | I42: 2025-04-13 | J42: 2025-10-11 | L42: Em pausa | M42: 22% | N42: 717,152.46 | O42: 369,647.57 | P42: 83,415.42 | Q42: 347,504.89 | R42: 633,737.04 | S42: Atrasado | T42: -306 | U42: CC-MKT | V42: Sim
C43: PROJ-036 | D43: Sistema Financeiro | E43: Fortuna Investimentos | F43: Interno | G43: Ricardo Monteiro | H43: Crítica | I43: 2025-06-04 | J43: 2025-10-03 | K43: 2025-11-05 | L43: Concluído | M43: 100% | N43: 345,184.24 | O43: 225,277.98 | P43: 207,438.43 | Q43: 119,906.26 | R43: 137,745.81 | S43: Finalizado | T43: 0 | U43: CC-OPS | V43: Não
C44: PROJ-037 | D44: Campanha Verão | E44: Onda Verde Ambiental | F44: Interno | G44: Camila Duarte | H44: Média | I44: 2025-02-19 | J44: 2025-04-29 | L44: Em andamento | M44: 40% | N44: 787,549.03 | O44: 549,999.33 | P44: 174,362.70 | Q44: 237,549.70 | R44: 613,186.33 | S44: Atrasado | T44: -471 | U44: CC-MKT | V44: Sim
C45: PROJ-038 | D45: Plano de Carreira | E45: Atlas Transporte | F45: Consultoria | G45: André Machado | H45: Baixa | I45: 2025-05-15 | J45: 2026-01-15 | L45: Em andamento | M45: 28% | N45: 340,013.91 | O45: 242,588.82 | P45: 65,576.58 | Q45: 97,425.09 | R45: 274,437.33 | S45: Atrasado | T45: -210 | U45: CC-TI | V45: Sim
C46: PROJ-039 | D46: Manutenção Preventiva | E46: Magma Siderurgia | F46: Marketing | G46: Beatriz Alves | H46: Baixa | I46: 2025-06-02 | J46: 2025-09-06 | K46: 2025-10-04 | L46: Concluído | M46: 100% | N46: 30,079.67 | O46: 24,774.01 | P46: 30,841.77 | Q46: 5,305.66 | R46: -762.10 | S46: Finalizado | T46: 0 | U46: CC-TI | V46: Não
C47: PROJ-040 | D47: E-learning Platform | E47: Criativa Publicidade | F47: Interno | G47: Diego Fonseca | H47: Baixa | I47: 2025-02-18 | J47: 2025-06-03 | L47: Em andamento | M47: 42% | N47: 228,692.69 | O47: 188,359.52 | P47: 80,891.40 | Q47: 40,333.17 | R47: 147,801.29 | S47: Atrasado | T47: -436 | U47: CC-COM | V47: Sim
C48: PROJ-041 | D48: Gestão de Estoques | E48: Primus Saúde | F48: Implantação | G48: Elisa Prado | H48: Alta | I48: 2025-10-16 | J48: 2026-04-02 | K48: 2026-04-30 | L48: Concluído | M48: 100% | N48: 656,008.05 | O48: 529,358.24 | P48: 493,050.47 | Q48: 126,649.81 | R48: 162,957.58 | S48: Finalizado | T48: 0 | U48: CC-MKT | V48: Não
C49: PROJ-042 | D49: Portal de RH | E49: Velox TI | F49: Consultoria | G49: Felipe Neves | H49: Alta | I49: 2025-06-08 | J49: 2025-08-23 | L49: Planejado | M49: 0% | N49: 198,454.65 | O49: 108,500.76 | P49: 0.00 | Q49: 89,953.89 | R49: 198,454.65 | S49: Atrasado | T49: -355 | U49: CC-ADM | V49: Sim
C50: PROJ-043 | D50: Integração ERP-CRM | E50: Terra Nova Agro | F50: Consultoria | G50: Ricardo Monteiro | H50: Alta | I50: 2025-06-08 | J50: 2025-09-30 | L50: Em andamento | M50: 51% | N50: 29,076.00 | O50: 21,361.18 | P50: 8,048.83 | Q50: 7,714.82 | R50: 21,027.17 | S50: Atrasado | T50: -317 | U50: CC-COM | V50: Sim
C51: PROJ-044 | D51: Central de Custos | E51: Safira Joias | F51: Implantação | G51: Camila Duarte | H51: Alta | I51: 2025-09-18 | J51: 2026-03-06 | L51: Em pausa | M51: 48% | N51: 440,560.82 | O51: 222,849.51 | P51: 111,977.49 | Q51: 217,711.31 | R51: 328,583.33 | S51: Atrasado | T51: -160 | U51: CC-ENG | V51: Sim
C52: PROJ-045 | D52: Projeto Solar | E52: Helio Telecom | F52: Implantação | G52: André Machado | H52: Crítica | I52: 2025-03-10 | J52: 2025-10-07 | L52: Planejado | M52: 0% | N52: 393,898.71 | O52: 244,428.98 | P52: 0.00 | Q52: 149,469.73 | R52: 393,898.71 | S52: Atrasado | T52: -310 | U52: CC-FIN | V52: Sim
C53: PROJ-046 | D53: Marketing de Conteúdo | E53: Acqua Tratamento | F53: Implantação | G53: Beatriz Alves | H53: Alta | I53: 2025-11-02 | J53: 2026-02-21 | L53: Em pausa | M53: 20% | N53: 752,465.39 | O53: 523,682.18 | P53: 103,622.78 | Q53: 228,783.21 | R53: 648,842.61 | S53: Atrasado | T53: -173 | U53: CC-ADM | V53: Sim
C54: PROJ-047 | D54: Rebranding Digital | E54: Nexus Tecnologia | F54: Implantação | G54: Diego Fonseca | H54: Alta | I54: 2026-03-31 | J54: 2026-07-08 | L54: Planejado | M54: 0% | N54: 373,812.17 | O54: 307,406.95 | P54: 0.00 | Q54: 66,405.22 | R54: 373,812.17 | S54: Atrasado | T54: -36 | U54: CC-OPS | V54: Sim
C55: PROJ-048 | D55: Sistema de Qualidade | E55: Orbital Engenharia | F55: Desenvolvimento | G55: Elisa Prado | H55: Alta | I55: 2025-11-26 | J55: 2026-08-10 | L55: Planejado | M55: 0% | N55: 717,989.13 | O55: 530,084.66 | P55: 0.00 | Q55: 187,904.47 | R55: 717,989.13 | S55: Atrasado | T55: -3 | U55: CC-COM | V55: Sim
C56: PROJ-049 | D56: Expansão Regional Sul | E56: Vértice Consultoria | F56: Manutenção | G56: Felipe Neves | H56: Baixa | I56: 2025-12-28 | J56: 2026-06-19 | L56: Em andamento | M56: 73% | N56: 643,696.91 | O56: 468,240.92 | P56: 245,274.48 | Q56: 175,455.99 | R56: 398,422.43 | S56: Atrasado | T56: -55 | U56: CC-FIN | V56: Sim
C57: PROJ-050 | D57: Consultoria Tributária | E57: Ápice Logística | F57: Implantação | G57: Ricardo Monteiro | H57: Média | I57: 2025-12-25 | J57: 2026-10-13 | L57: Planejado | M57: 0% | N57: 847,335.88 | O57: 632,390.30 | P57: 0.00 | Q57: 214,945.58 | R57: 847,335.88 | S57: No prazo | T57: 61 | U57: CC-OPS | V57: Sim
C58: PROJ-051 | D58: App Financeiro | E58: Bravus Construtora | F58: Marketing | G58: Camila Duarte | H58: Média | I58: 2025-11-28 | J58: 2026-09-04 | L58: Planejado | M58: 0% | N58: 173,921.28 | O58: 109,514.28 | P58: 0.00 | Q58: 64,407.00 | R58: 173,921.28 | S58: No prazo | T58: 22 | U58: CC-ENG | V58: Sim
C59: PROJ-052 | D59: Implantação TOTVS | E59: Solaris Energia | F59: Interno | G59: André Machado | H59: Média | I59: 2026-02-21 | J59: 2026-05-13 | L59: Planejado | M59: 0% | N59: 378,244.36 | O59: 175,907.19 | P59: 0.00 | Q59: 202,337.17 | R59: 378,244.36 | S59: Atrasado | T59: -92 | U59: CC-ADM | V59: Sim
C60: PROJ-053 | D60: Automação de Vendas | E60: Titanium Seguros | F60: Consultoria | G60: Beatriz Alves | H60: Alta | I60: 2026-03-09 | J60: 2026-06-04 | L60: Planejado | M60: 0% | N60: 88,833.32 | O60: 53,837.84 | P60: 0.00 | Q60: 34,995.48 | R60: 88,833.32 | S60: Atrasado | T60: -70 | U60: CC-ADM | V60: Sim
C61: PROJ-054 | D61: Segurança da Informação | E61: Nova Horizonte Edu | F61: Implantação | G61: Diego Fonseca | H61: Baixa | I61: 2025-12-27 | J61: 2026-05-19 | L61: Planejado | M61: 0% | N61: 625,715.28 | O61: 449,659.82 | P61: 0.00 | Q61: 176,055.46 | R61: 625,715.28 | S61: Atrasado | T61: -86 | U61: CC-TI | V61: Sim
C62: PROJ-055 | D62: Programa de Estágio | E62: Quartzo Mineração | F62: Interno | G62: Elisa Prado | H62: Alta | I62: 2026-03-18 | J62: 2026-06-28 | L62: Planejado | M62: 0% | N62: 821,368.74 | O62: 409,129.61 | P62: 0.00 | Q62: 412,239.13 | R62: 821,368.74 | S62: Atrasado | T62: -46 | U62: CC-COM | V62: Sim
C63: PROJ-056 | D63: Portal B2B | E63: Pulsar Marketing | F63: Consultoria | G63: Felipe Neves | H63: Média | I63: 2025-12-15 | J63: 2026-10-01 | L63: Em andamento | M63: 43% | N63: 305,669.54 | O63: 128,184.81 | P63: 47,542.95 | Q63: 177,484.73 | R63: 258,126.59 | S63: No prazo | T63: 49 | U63: CC-FIN | V63: Sim
C64: PROJ-057 | D64: Gestão de Riscos | E64: Zenith Farmacêutica | F64: Manutenção | G64: Ricardo Monteiro | H64: Crítica | I64: 2026-02-22 | J64: 2026-11-11 | L64: Em andamento | M64: 92% | N64: 519,119.85 | O64: 337,854.81 | P64: 330,795.25 | Q64: 181,265.04 | R64: 188,324.60 | S64: No prazo | T64: 90 | U64: CC-ENG | V64: Sim
C65: PROJ-058 | D65: Campanha Dia das Mães | E65: Croma Design | F65: Interno | G65: Camila Duarte | H65: Média | I65: 2026-03-12 | J65: 2026-10-19 | L65: Planejado | M65: 0% | N65: 379,155.37 | O65: 163,315.67 | P65: 0.00 | Q65: 215,839.70 | R65: 379,155.37 | S65: No prazo | T65: 67 | U65: CC-OPS | V65: Sim
C66: PROJ-059 | D66: Otimização SEO | E66: Fortuna Investimentos | F66: Manutenção | G66: André Machado | H66: Média | I66: 2026-03-02 | J66: 2026-10-01 | L66: Em andamento | M66: 77% | N66: 98,933.96 | O66: 64,024.02 | P66: 35,320.48 | Q66: 34,909.94 | R66: 63,613.48 | S66: No prazo | T66: 49 | U66: CC-OPS | V66: Sim
C67: PROJ-060 | D67: Plataforma de Dados | E67: Onda Verde Ambiental | F67: Marketing | G67: Beatriz Alves | H67: Baixa | I67: 2025-11-25 | J67: 2026-02-25 | L67: Em andamento | M67: 49% | N67: 469,331.94 | O67: 267,875.71 | P67: 130,741.77 | Q67: 201,456.23 | R67: 338,590.17 | S67: Atrasado | T67: -169 | U67: CC-ENG | V67: Sim
C68: PROJ-061 | D68: Sistema de Compras | E68: Atlas Transporte | F68: Marketing | G68: Diego Fonseca | H68: Média | I68: 2025-11-15 | J68: 2026-01-31 | L68: Planejado | M68: 0% | N68: 97,334.29 | O68: 39,130.22 | P68: 0.00 | Q68: 58,204.07 | R68: 97,334.29 | S68: Atrasado | T68: -194 | U68: CC-COM | V68: Sim
C69: PROJ-062 | D69: Novo Almoxarifado | E69: Magma Siderurgia | F69: Consultoria | G69: Elisa Prado | H69: Média | I69: 2026-03-15 | J69: 2026-09-24 | L69: Em pausa | M69: 24% | N69: 762,447.44 | O69: 351,258.87 | P69: 96,390.61 | Q69: 411,188.57 | R69: 666,056.83 | S69: No prazo | T69: 42 | U69: CC-ENG | V69: Sim
C70: PROJ-063 | D70: Integração Bancária | E70: Criativa Publicidade | F70: Desenvolvimento | G70: Felipe Neves | H70: Média | I70: 2026-03-01 | J70: 2026-08-27 | L70: Planejado | M70: 0% | N70: 358,438.12 | O70: 232,476.94 | P70: 0.00 | Q70: 125,961.18 | R70: 358,438.12 | S70: No prazo | T70: 14 | U70: CC-OPS | V70: Sim
C71: PROJ-064 | D71: Campanha Institucional | E71: Primus Saúde | F71: Consultoria | G71: Ricardo Monteiro | H71: Média | I71: 2026-01-08 | J71: 2026-03-09 | L71: Em pausa | M71: 21% | N71: 558,776.84 | O71: 349,182.10 | P71: 62,384.78 | Q71: 209,594.74 | R71: 496,392.06 | S71: Atrasado | T71: -157 | U71: CC-ENG | V71: Sim
C72: PROJ-065 | D72: Projeto IoT | E72: Velox TI | F72: Interno | G72: Camila Duarte | H72: Crítica | I72: 2025-10-29 | J72: 2026-06-12 | L72: Em andamento | M72: 25% | N72: 551,881.48 | O72: 467,095.43 | P72: 127,037.07 | Q72: 84,786.05 | R72: 424,844.41 | S72: Atrasado | T72: -62 | U72: CC-FIN | V72: Sim
C73: PROJ-066 | D73: Migração Database | E73: Terra Nova Agro | F73: Implantação | G73: André Machado | H73: Baixa | I73: 2026-02-04 | J73: 2026-07-02 | L73: Em andamento | M73: 76% | N73: 429,674.70 | O73: 310,742.92 | P73: 190,894.95 | Q73: 118,931.78 | R73: 238,779.75 | S73: Atrasado | T73: -42 | U73: CC-ADM | V73: Sim
C74: PROJ-067 | D74: Expansão Nordeste | E74: Safira Joias | F74: Interno | G74: Beatriz Alves | H74: Média | I74: 2025-11-28 | J74: 2026-03-17 | L74: Em pausa | M74: 56% | N74: 473,677.95 | O74: 250,969.26 | P74: 141,161.18 | Q74: 222,708.69 | R74: 332,516.77 | S74: Atrasado | T74: -149 | U74: CC-ENG | V74: Sim

Sheet Cronograma (hidden)
C2: CRONOGRAMA DE TAREFAS
U6: GANTT — Próximos 60 dias
C7: Cod_Item | D7: Cod_Projeto | E7: Projeto | F7: Etapa | G7: Tarefa | H7: Responsavel | I7: Data_Inicio_Plan | J7: Data_Fim_Plan | K7: Data_Inicio_Real | L7: Data_Fim_Real | M7: Duracao_Planejada | N7: Duracao_Real | O7: Status_Tarefa | P7: Perc_Conclusao | Q7: Dependencia | R7: Atraso_Dias | S7: Observacoes | U7: 2026-05-03T00:29:29.015Z | V7: 2026-05-04T00:29:29.015Z | W7: 2026-05-05T00:29:29.015Z | X7: 2026-05-06T00:29:29.015Z | Y7: 2026-05-07T00:29:29.015Z | Z7: 2026-05-08T00:29:29.015Z | AA7: 2026-05-09T00:29:29.015Z | AB7: 2026-05-10T00:29:29.015Z | AC7: 2026-05-11T00:29:29.015Z | AD7: 2026-05-12T00:29:29.015Z | AE7: 2026-05-13T00:29:29.015Z | AF7: 2026-05-14T00:29:29.015Z | AG7: 2026-05-15T00:29:29.015Z | AH7: 2026-05-16T00:29:29.015Z | AI7: 2026-05-17T00:29:29.015Z | AJ7: 2026-05-18T00:29:29.015Z | AK7: 2026-05-19T00:29:29.015Z | AL7: 2026-05-20T00:29:29.015Z | AM7: 2026-05-21T00:29:29.015Z | AN7: 2026-05-22T00:29:29.015Z | AO7: 2026-05-23T00:29:29.015Z | AP7: 2026-05-24T00:29:29.015Z | AQ7: 2026-05-25T00:29:29.015Z | AR7: 2026-05-26T00:29:29.015Z | AS7: 2026-05-27T00:29:29.015Z | AT7: 2026-05-28T00:29:29.015Z | AU7: 2026-05-29T00:29:29.015Z | AV7: 2026-05-30T00:29:29.015Z | AW7: 2026-05-31T00:29:29.015Z | AX7: 2026-06-01T00:29:29.015Z | AY7: 2026-06-02T00:29:29.015Z | AZ7: 2026-06-03T00:29:29.015Z | BA7: 2026-06-04T00:29:29.015Z | BB7: 2026-06-05T00:29:29.015Z | BC7: 2026-06-06T00:29:29.015Z | BD7: 2026-06-07T00:29:29.015Z | BE7: 2026-06-08T00:29:29.015Z | BF7: 2026-06-09T00:29:29.015Z | BG7: 2026-06-10T00:29:29.015Z | BH7: 2026-06-11T00:29:29.015Z | BI7: 2026-06-12T00:29:29.015Z | BJ7: 2026-06-13T00:29:29.015Z | BK7: 2026-06-14T00:29:29.015Z | BL7: 2026-06-15T00:29:29.015Z | BM7: 2026-06-16T00:29:29.015Z | BN7: 2026-06-17T00:29:29.015Z | BO7: 2026-06-18T00:29:29.015Z | BP7: 2026-06-19T00:29:29.015Z | BQ7: 2026-06-20T00:29:29.015Z | BR7: 2026-06-21T00:29:29.015Z | BS7: 2026-06-22T00:29:29.015Z | BT7: 2026-06-23T00:29:29.015Z | BU7: 2026-06-24T00:29:29.015Z | BV7: 2026-06-25T00:29:29.015Z | BW7: 2026-06-26T00:29:29.015Z | BX7: 2026-06-27T00:29:29.015Z | BY7: 2026-06-28T00:29:29.015Z | BZ7: 2026-06-29T00:29:29.015Z | CA7: 2026-06-30T00:29:29.015Z | CB7: 2026-07-01T00:29:29.015Z
C8: TAR-0001 | D8: PROJ-001 | E8: =IFERROR(VLOOKUP(D8,tbProjetos[],2,FALSE),"") -> Migração de ERP | F8: Planejamento | G8: Definição de escopo | H8: Camila Duarte | I8: 2024-02-28 | J8: 2024-03-06 | K8: 2024-02-28 | L8: 2024-03-11 | M8: =IF(OR(J8="",I8=""),"",J8-I8+1) -> 8 | N8: =IF(AND(K8<>"",L8<>""),L8-K8+1,"") -> 13 | O8: Concluída | P8: 100% | R8: =IF(OR(O8="",J8="",tbCronograma[[#This Row],[Status_Tarefa]]="Suspensa"),"",IF(O8="Concluída",MAX(0,L8-J8),IF(O8="Não iniciada",0,MAX(0,TODAY()-J8)))) -> 5 | U8: =IF(AND(U$7>=$I8,U$7<=$J8),IF($O8="Concluída","■","□"),"") ->  | V8: =IF(AND(V$7>=$I8,V$7<=$J8),IF($O8="Concluída","■","□"),"") -> 
C9: TAR-0002 | D9: PROJ-001 | E9: =IFERROR(VLOOKUP(D9,tbProjetos[],2,FALSE),"") -> Migração de ERP | F9: Execução | G9: Desenvolvimento do protótipo | H9: André Machado | I9: 2024-03-07 | J9: 2024-03-10 | K9: 2024-03-07 | L9: 2024-03-12 | M9: 4 | N9: =IF(AND(K9<>"",L9<>""),L9-K9+1,"") -> 6 | O9: Concluída | P9: 100% | R9: =IF(OR(O9="",J9="",tbCronograma[[#This Row],[Status_Tarefa]]="Suspensa"),"",IF(O9="Concluída",MAX(0,L9-J9),IF(O9="Não iniciada",0,MAX(0,TODAY()-J9)))) -> 2
C10: TAR-0003 | D10: PROJ-001 | E10: =IFERROR(VLOOKUP(D10,tbProjetos[],2,FALSE),"") -> Migração de ERP | F10: Testes | G10: Testes de integração | H10: Camila Duarte | I10: 2024-03-08 | J10: 2024-03-15 | K10: 2024-03-11 | L10: 2024-03-14 | M10: 8 | N10: 4 | O10: Concluída | P10: 100% | R10: =IF(OR(O10="",J10="",tbCronograma[[#This Row],[Status_Tarefa]]="Suspensa"),"",IF(O10="Concluída",MAX(0,L10-J10),IF(O10="Não iniciada",0,MAX(0,TODAY()-J10)))) -> 0
C11: TAR-0004 | D11: PROJ-001 | E11: =IFERROR(VLOOKUP(D11,tbProjetos[],2,FALSE),"") -> Migração de ERP | F11: Implantação | G11: Preparação do ambiente produtivo | H11: Felipe Neves | I11: 2024-03-12 | J11: 2024-03-20 | K11: 2024-03-13 | L11: 2024-03-20 | M11: 9 | N11: 8 | O11: Concluída | P11: 100% | R11: =IF(OR(O11="",J11="",tbCronograma[[#This Row],[Status_Tarefa]]="Suspensa"),"",IF(O11="Concluída",MAX(0,L11-J11),IF(O11="Não iniciada",0,MAX(0,TODAY()-J11)))) -> 0
C12: TAR-0005 | D12: PROJ-001 | E12: =IFERROR(VLOOKUP(D12,tbProjetos[],2,FALSE),"") -> Migração de ERP | F12: Encerramento | G12: Encerramento administrativo | H12: Camila Duarte | I12: 2024-03-21 | J12: 2024-03-28 | K12: 2024-03-21 | L12: 2024-03-28 | M12: 8 | N12: 8 | O12: Concluída | P12: 100% | R12: =IF(OR(O12="",J12="",tbCronograma[[#This Row],[Status_Tarefa]]="Suspensa"),"",IF(O12="Concluída",MAX(0,L12-J12),IF(O12="Não iniciada",0,MAX(0,TODAY()-J12)))) -> 0
C13: TAR-0006 | D13: PROJ-002 | E13: =IFERROR(VLOOKUP(D13,tbProjetos[],2,FALSE),"") -> Novo Portal Web | F13: Planejamento | G13: Análise de viabilidade | H13: André Machado | I13: 2024-04-17 | J13: 2024-05-05 | K13: 2024-04-19 | L13: 2024-05-03 | M13: 19 | N13: 15 | O13: Concluída | P13: 100% | R13: =IF(OR(O13="",J13="",tbCronograma[[#This Row],[Status_Tarefa]]="Suspensa"),"",IF(O13="Concluída",MAX(0,L13-J13),IF(O13="Não iniciada",0,MAX(0,TODAY()-J13)))) -> 0
C14: TAR-0007 | D14: PROJ-002 | E14: =IFERROR(VLOOKUP(D14,tbProjetos[],2,FALSE),"") -> Novo Portal Web | F14: Execução | G14: Desenvolvimento do protótipo | H14: Diego Fonseca | I14: 2024-05-06 | J14: 2024-05-24 | K14: 2024-05-07 | L14: 2024-06-05 | M14: 19 | N14: 30 | O14: Concluída | P14: 100% | Q14: TAR-0006 | R14: =IF(OR(O14="",J14="",tbCronograma[[#This Row],[Status_Tarefa]]="Suspensa"),"",IF(O14="Concluída",MAX(0,L14-J14),IF(O14="Não iniciada",0,MAX(0,TODAY()-J14)))) -> 12
C15: TAR-0008 | D15: PROJ-002 | E15: =IFERROR(VLOOKUP(D15,tbProjetos[],2,FALSE),"") -> Novo Portal Web | F15: Testes | G15: Testes de integração | H15: Camila Duarte | I15: 2024-05-25 | J15: 2024-06-12 | K15: 2024-05-23 | L15: 2024-06-09 | M15: 19 | N15: 18 | O15: Concluída | P15: 100% | R15: =IF(OR(O15="",J15="",tbCronograma[[#This Row],[Status_Tarefa]]="Suspensa"),"",IF(O15="Concluída",MAX(0,L15-J15),IF(O15="Não iniciada",0,MAX(0,TODAY()-J15)))) -> 0
C16: TAR-0009 | D16: PROJ-002 | E16: =IFERROR(VLOOKUP(D16,tbProjetos[],2,FALSE),"") -> Novo Portal Web | F16: Implantação | G16: Suporte pós-implantação | H16: Beatriz Alves | I16: 2024-06-13 | J16: 2024-07-01 | K16: 2024-06-18 | L16: 2024-06-28 | M16: 19 | N16: 11 | O16: Concluída | P16: 100% | Q16: TAR-0008 | R16: =IF(OR(O16="",J16="",tbCronograma[[#This Row],[Status_Tarefa]]="Suspensa"),"",IF(O16="Concluída",MAX(0,L16-J16),IF(O16="Não iniciada",0,MAX(0,TODAY()-J16)))) -> 0
C17: TAR-0010 | D17: PROJ-002 | E17: =IFERROR(VLOOKUP(D17,tbProjetos[],2,FALSE),"") -> Novo Portal Web | F17: Encerramento | G17: Lições aprendidas | H17: Elisa Prado | I17: 2024-07-02 | J17: 2024-07-20 | K17: 2024-07-04 | L17: 2024-07-17 | M17: 19 | N17: 14 | O17: Concluída | P17: 100% | Q17: TAR-0009 | R17: =IF(OR(O17="",J17="",tbCronograma[[#This Row],[Status_Tarefa]]="Suspensa"),"",IF(O17="Concluída",MAX(0,L17-J17),IF(O17="Não iniciada",0,MAX(0,TODAY()-J17)))) -> 0
C18: TAR-0011 | D18: PROJ-002 | E18: =IFERROR(VLOOKUP(D18,tbProjetos[],2,FALSE),"") -> Novo Portal Web | F18: Encerramento | G18: Encerramento administrativo | H18: Felipe Neves | I18: 2024-07-21 | J18: 2024-08-08 | K18: 2024-07-19 | L18: 2024-08-20 | M18: 19 | N18: 33 | O18: Concluída | P18: 100% | R18: =IF(OR(O18="",J18="",tbCronograma[[#This Row],[Status_Tarefa]]="Suspensa"),"",IF(O18="Concluída",MAX(0,L18-J18),IF(O18="Não iniciada",0,MAX(0,TODAY()-J18)))) -> 12
C19: TAR-0012 | D19: PROJ-003 | E19: =IFERROR(VLOOKUP(D19,tbProjetos[],2,FALSE),"") -> App Mobile Vendas | F19: Planejamento | G19: Elaboração do cronograma | H19: Elisa Prado | I19: 2024-01-22 | J19: 2024-02-29 | K19: 2024-01-27 | L19: 2024-02-27 | M19: 39 | N19: 32 | O19: Concluída | P19: 100% | R19: =IF(OR(O19="",J19="",tbCronograma[[#This Row],[Status_Tarefa]]="Suspensa"),"",IF(O19="Concluída",MAX(0,L19-J19),IF(O19="Não iniciada",0,MAX(0,TODAY()-J19)))) -> 0
C20: TAR-0013 | D20: PROJ-003 | E20: =IFERROR(VLOOKUP(D20,tbProjetos[],2,FALSE),"") -> App Mobile Vendas | F20: Execução | G20: Integração de sistemas | H20: Diego Fonseca | I20: 2024-03-01 | J20: 2024-04-08 | K20: 2024-02-27 | L20: 2024-04-15 | M20: 39 | N20: 49 | O20: Concluída | P20: 100% | R20: =IF(OR(O20="",J20="",tbCronograma[[#This Row],[Status_Tarefa]]="Suspensa"),"",IF(O20="Concluída",MAX(0,L20-J20),IF(O20="Não iniciada",0,MAX(0,TODAY()-J20)))) -> 7
C21: TAR-0014 | D21: PROJ-003 | E21: =IFERROR(VLOOKUP(D21,tbProjetos[],2,FALSE),"") -> App Mobile Vendas | F21: Testes | G21: Homologação | H21: Diego Fonseca | I21: 2024-04-09 | J21: 2024-05-17 | K21: 2024-04-09 | L21: 2024-05-19 | M21: 39 | N21: 41 | O21: Concluída | P21: 100% | R21: =IF(OR(O21="",J21="",tbCronograma[[#This Row],[Status_Tarefa]]="Suspensa"),"",IF(O21="Concluída",MAX(0,L21-J21),IF(O21="Não iniciada",0,MAX(0,TODAY()-J21)))) -> 2
C22: TAR-0015 | D22: PROJ-003 | E22: =IFERROR(VLOOKUP(D22,tbProjetos[],2,FALSE),"") -> App Mobile Vendas | F22: Implantação | G22: Go-live | H22: Elisa Prado | I22: 2024-05-18 | J22: 2024-06-25 | K22: 2024-05-17 | L22: 2024-07-02 | M22: 39 | N22: 47 | O22: Concluída | P22: 100% | Q22: TAR-0014 | R22: =IF(OR(O22="",J22="",tbCronograma[[#This Row],[Status_Tarefa]]="Suspensa"),"",IF(O22="Concluída",MAX(0,L22-J22),IF(O22="Não iniciada",0,MAX(0,TODAY()-J22)))) -> 7
C23: TAR-0016 | D23: PROJ-003 | E23: =IFERROR(VLOOKUP(D23,tbProjetos[],2,FALSE),"") -> App Mobile Vendas | F23: Encerramento | G23: Documentação final | H23: Ricardo Monteiro | I23: 2024-06-26 | J23: 2024-08-03 | K23: 2024-06-30 | L23: 2024-08-18 | M23: 39 | N23: 50 | O23: Concluída | P23: 100% | Q23: TAR-0015 | R23: =IF(OR(O23="",J23="",tbCronograma[[#This Row],[Status_Tarefa]]="Suspensa"),"",IF(O23="Concluída",MAX(0,L23-J23),IF(O23="Não iniciada",0,MAX(0,TODAY()-J23)))) -> 15
C24: TAR-0017 | D24: PROJ-004 | E24: =IFERROR(VLOOKUP(D24,tbProjetos[],2,FALSE),"") -> Automação de RH | F24: Planejamento | G24: Elaboração do cronograma | H24: Ricardo Monteiro | I24: 2024-04-28 | J24: 2024-06-04 | K24: 2024-05-01 | M24: 38 | O24: Suspensa | P24: 30% | R24: =IF(OR(O24="",J24="",tbCronograma[[#This Row],[Status_Tarefa]]="Suspensa"),"",IF(O24="Concluída",MAX(0,L24-J24),IF(O24="Não iniciada",0,MAX(0,TODAY()-J24)))) -> 
C25: TAR-0018 | D25: PROJ-004 | E25: =IFERROR(VLOOKUP(D25,tbProjetos[],2,FALSE),"") -> Automação de RH | F25: Execução | G25: Desenvolvimento do protótipo | H25: Elisa Prado | I25: 2024-06-05 | J25: 2024-07-12 | M25: 38 | O25: Suspensa | P25: 14% | R25: =IF(OR(O25="",J25="",tbCronograma[[#This Row],[Status_Tarefa]]="Suspensa"),"",IF(O25="Concluída",MAX(0,L25-J25),IF(O25="Não iniciada",0,MAX(0,TODAY()-J25)))) -> 
C26: TAR-0019 | D26: PROJ-004 | E26: =IFERROR(VLOOKUP(D26,tbProjetos[],2,FALSE),"") -> Automação de RH | F26: Testes | G26: Testes unitários | H26: Camila Duarte | I26: 2024-07-13 | J26: 2024-08-19 | M26: 38 | O26: Suspensa | P26: 9% | Q26: TAR-0018 | R26: =IF(OR(O26="",J26="",tbCronograma[[#This Row],[Status_Tarefa]]="Suspensa"),"",IF(O26="Concluída",MAX(0,L26-J26),IF(O26="Não iniciada",0,MAX(0,TODAY()-J26)))) -> 
C27: TAR-0020 | D27: PROJ-004 | E27: =IFERROR(VLOOKUP(D27,tbProjetos[],2,FALSE),"") -> Automação de RH | F27: Implantação | G27: Go-live | H27: André Machado | I27: 2024-08-20 | J27: 2024-09-26 | M27: 38 | O27: Suspensa | P27: 28% | R27: =IF(OR(O27="",J27="",tbCronograma[[#This Row],[Status_Tarefa]]="Suspensa"),"",IF(O27="Concluída",MAX(0,L27-J27),IF(O27="Não iniciada",0,MAX(0,TODAY()-J27)))) -> 
C28: TAR-0021 | D28: PROJ-004 | E28: =IFERROR(VLOOKUP(D28,tbProjetos[],2,FALSE),"") -> Automação de RH | F28: Encerramento | G28: Documentação final | H28: Ricardo Monteiro | I28: 2024-09-27 | J28: 2024-11-03 | M28: 38 | O28: Suspensa | P28: 24% | Q28: TAR-0020 | R28: =IF(OR(O28="",J28="",tbCronograma[[#This Row],[Status_Tarefa]]="Suspensa"),"",IF(O28="Concluída",MAX(0,L28-J28),IF(O28="Não iniciada",0,MAX(0,TODAY()-J28)))) -> 
C29: TAR-0022 | D29: PROJ-005 | E29: =IFERROR(VLOOKUP(D29,tbProjetos[],2,FALSE),"") -> BI Dashboard | F29: Planejamento | G29: Levantamento de requisitos | H29: Camila Duarte | I29: 2024-04-23 | J29: 2024-05-27 | K29: 2024-04-26 | L29: 2024-05-27 | M29: 35 | N29: 32 | O29: Concluída | P29: 100% | R29: =IF(OR(O29="",J29="",tbCronograma[[#This Row],[Status_Tarefa]]="Suspensa"),"",IF(O29="Concluída",MAX(0,L29-J29),IF(O29="Não iniciada",0,MAX(0,TODAY()-J29)))) -> 0
C30: TAR-0023 | D30: PROJ-005 | E30: =IFERROR(VLOOKUP(D30,tbProjetos[],2,FALSE),"") -> BI Dashboard | F30: Execução | G30: Configuração do ambiente | H30: Beatriz Alves | I30: 2024-05-28 | J30: 2024-07-01 | M30: 35 | O30: Suspensa | P30: 3% | R30: =IF(OR(O30="",J30="",tbCronograma[[#This Row],[Status_Tarefa]]="Suspensa"),"",IF(O30="Concluída",MAX(0,L30-J30),IF(O30="Não iniciada",0,MAX(0,TODAY()-J30)))) -> 
C31: TAR-0024 | D31: PROJ-005 | E31: =IFERROR(VLOOKUP(D31,tbProjetos[],2,FALSE),"") -> BI Dashboard | F31: Testes | G31: Testes de integração | H31: André Machado | I31: 2024-07-02 | J31: 2024-08-05 | M31: 35 | O31: Suspensa | P31: 6% | R31: =IF(OR(O31="",J31="",tbCronograma[[#This Row],[Status_Tarefa]]="Suspensa"),"",IF(O31="Concluída",MAX(0,L31-J31),IF(O31="Não iniciada",0,MAX(0,TODAY()-J31)))) -> 
C32: TAR-0025 | D32: PROJ-006 | E32: =IFERROR(VLOOKUP(D32,tbProjetos[],2,FALSE),"") -> Integração CRM | F32: Planejamento | G32: Análise de viabilidade | H32: Camila Duarte | I32: 2024-04-18 | J32: 2024-05-07 | K32: 2024-04-15 | L32: 2024-05-03 | M32: 20 | N32: 19 | O32: Concluída | P32: 100% | R32: =IF(OR(O32="",J32="",tbCronograma[[#This Row],[Status_Tarefa]]="Suspensa"),"",IF(O32="Concluída",MAX(0,L32-J32),IF(O32="Não iniciada",0,MAX(0,TODAY()-J32)))) -> 0
C33: TAR-0026 | D33: PROJ-006 | E33: =IFERROR(VLOOKUP(D33,tbProjetos[],2,FALSE),"") -> Integração CRM | F33: Execução | G33: Implementação do módulo principal | H33: Elisa Prado | I33: 2024-05-08 | J33: 2024-05-27 | K33: 2024-05-13 | L33: 2024-06-03 | M33: 20 | N33: 22 | O33: Concluída | P33: 100% | R33: =IF(OR(O33="",J33="",tbCronograma[[#This Row],[Status_Tarefa]]="Suspensa"),"",IF(O33="Concluída",MAX(0,L33-J33),IF(O33="Não iniciada",0,MAX(0,TODAY()-J33)))) -> 7
C34: TAR-0027 | D34: PROJ-006 | E34: =IFERROR(VLOOKUP(D34,tbProjetos[],2,FALSE),"") -> Integração CRM | F34: Testes | G34: Homologação | H34: Elisa Prado | I34: 2024-05-28 | J34: 2024-06-16 | K34: 2024-05-31 | L34: 2024-06-26 | M34: 20 | N34: 27 | O34: Concluída | P34: 100% | R34: =IF(OR(O34="",J34="",tbCronograma[[#This Row],[Status_Tarefa]]="Suspensa"),"",IF(O34="Concluída",MAX(0,L34-J34),IF(O34="Não iniciada",0,MAX(0,TODAY()-J34)))) -> 10
C35: TAR-0028 | D35: PROJ-006 | E35: =IFERROR(VLOOKUP(D35,tbProjetos[],2,FALSE),"") -> Integração CRM | F35: Implantação | G35: Suporte pós-implantação | H35: Felipe Neves | I35: 2024-06-17 | J35: 2024-07-06 | K35: 2024-06-15 | L35: 2024-07-16 | M35: 20 | N35: 32 | O35: Concluída | P35: 100% | R35: =IF(OR(O35="",J35="",tbCronograma[[#This Row],[Status_Tarefa]]="Suspensa"),"",IF(O35="Concluída",MAX(0,L35-J35),IF(O35="Não iniciada",0,MAX(0,TODAY()-J35)))) -> 10
C36: TAR-0029 | D36: PROJ-007 | E36: =IFERROR(VLOOKUP(D36,tbProjetos[],2,FALSE),"") -> Reforma Sede | F36: Planejamento | G36: Aprovação do projeto | H36: André Machado | I36: 2024-05-19 | J36: 2024-06-19 | K36: 2024-05-20 | M36: 32 | O36: Suspensa | P36: 14% | R36: =IF(OR(O36="",J36="",tbCronograma[[#This Row],[Status_Tarefa]]="Suspensa"),"",IF(O36="Concluída",MAX(0,L36-J36),IF(O36="Não iniciada",0,MAX(0,TODAY()-J36)))) -> 
C37: TAR-0030 | D37: PROJ-007 | E37: =IFERROR(VLOOKUP(D37,tbProjetos[],2,FALSE),"") -> Reforma Sede | F37: Execução | G37: Desenvolvimento do protótipo | H37: Diego Fonseca | I37: 2024-06-20 | J37: 2024-07-21 | M37: 32 | O37: Suspensa | P37: 15% | Q37: TAR-0029 | R37: =IF(OR(O37="",J37="",tbCronograma[[#This Row],[Status_Tarefa]]="Suspensa"),"",IF(O37="Concluída",MAX(0,L37-J37),IF(O37="Não iniciada",0,MAX(0,TODAY()-J37)))) -> 
C38: TAR-0031 | D38: PROJ-007 | E38: =IFERROR(VLOOKUP(D38,tbProjetos[],2,FALSE),"") -> Reforma Sede | F38: Testes | G38: Testes de integração | H38: Elisa Prado | I38: 2024-07-22 | J38: 2024-08-22 | M38: 32 | O38: Suspensa | P38: 27% | R38: =IF(OR(O38="",J38="",tbCronograma[[#This Row],[Status_Tarefa]]="Suspensa"),"",IF(O38="Concluída",MAX(0,L38-J38),IF(O38="Não iniciada",0,MAX(0,TODAY()-J38)))) -> 
C39: TAR-0032 | D39: PROJ-007 | E39: =IFERROR(VLOOKUP(D39,tbProjetos[],2,FALSE),"") -> Reforma Sede | F39: Implantação | G39: Go-live | H39: Ricardo Monteiro | I39: 2024-08-23 | J39: 2024-09-23 | M39: 32 | O39: Suspensa | P39: 23% | R39: =IF(OR(O39="",J39="",tbCronograma[[#This Row],[Status_Tarefa]]="Suspensa"),"",IF(O39="Concluída",MAX(0,L39-J39),IF(O39="Não iniciada",0,MAX(0,TODAY()-J39)))) -> 
C40: TAR-0033 | D40: PROJ-008 | E40: =IFERROR(VLOOKUP(D40,tbProjetos[],2,FALSE),"") -> Campanha Digital Q1 | F40: Planejamento | G40: Aprovação do projeto | H40: Diego Fonseca | I40: 2024-04-29 | J40: 2024-06-01 | K40: 2024-05-01 | L40: 2024-05-31 | M40: =IF(OR(J40="",I40=""),"",J40-I40+1) -> 34 | N40: 31 | O40: Concluída | P40: 100% | R40: =IF(OR(O40="",J40="",tbCronograma[[#This Row],[Status_Tarefa]]="Suspensa"),"",IF(O40="Concluída",MAX(0,L40-J40),IF(O40="Não iniciada",0,MAX(0,TODAY()-J40)))) -> 0
C41: TAR-0034 | D41: PROJ-008 | E41: =IFERROR(VLOOKUP(D41,tbProjetos[],2,FALSE),"") -> Campanha Digital Q1 | F41: Execução | G41: Implementação do módulo principal | H41: Elisa Prado | I41: 2024-06-02 | J41: 2024-07-05 | K41: 2024-06-02 | L41: 2024-07-13 | M41: 34 | N41: 42 | O41: Concluída | P41: 100% | Q41: TAR-0033 | R41: =IF(OR(O41="",J41="",tbCronograma[[#This Row],[Status_Tarefa]]="Suspensa"),"",IF(O41="Concluída",MAX(0,L41-J41),IF(O41="Não iniciada",0,MAX(0,TODAY()-J41)))) -> 8
C42: TAR-0035 | D42: PROJ-008 | E42: =IFERROR(VLOOKUP(D42,tbProjetos[],2,FALSE),"") -> Campanha Digital Q1 | F42: Testes | G42: Homologação | H42: Beatriz Alves | I42: 2024-07-06 | J42: 2024-08-08 | K42: 2024-07-07 | L42: 2024-08-17 | M42: 34 | N42: 42 | O42: Concluída | P42: 100% | R42: =IF(OR(O42="",J42="",tbCronograma[[#This Row],[Status_Tarefa]]="Suspensa"),"",IF(O42="Concluída",MAX(0,L42-J42),IF(O42="Não iniciada",0,MAX(0,TODAY()-J42)))) -> 9
C43: TAR-0036 | D43: PROJ-008 | E43: =IFERROR(VLOOKUP(D43,tbProjetos[],2,FALSE),"") -> Campanha Digital Q1 | F43: Implantação | G43: Go-live | H43: Ricardo Monteiro | I43: 2024-08-09 | J43: 2024-09-11 | K43: 2024-08-12 | L43: 2024-09-09 | M43: 34 | N43: 29 | O43: Concluída | P43: 100% | Q43: TAR-0035 | R43: =IF(OR(O43="",J43="",tbCronograma[[#This Row],[Status_Tarefa]]="Suspensa"),"",IF(O43="Concluída",MAX(0,L43-J43),IF(O43="Não iniciada",0,MAX(0,TODAY()-J43)))) -> 0
C44: TAR-0037 | D44: PROJ-008 | E44: =IFERROR(VLOOKUP(D44,tbProjetos[],2,FALSE),"") -> Campanha Digital Q1 | F44: Encerramento | G44: Entrega formal | H44: Camila Duarte | I44: 2024-09-12 | J44: 2024-10-15 | K44: 2024-09-16 | L44: 2024-10-17 | M44: 34 | N44: 32 | O44: Concluída | P44: 100% | R44: =IF(OR(O44="",J44="",tbCronograma[[#This Row],[Status_Tarefa]]="Suspensa"),"",IF(O44="Concluída",MAX(0,L44-J44),IF(O44="Não iniciada",0,MAX(0,TODAY()-J44)))) -> 2
C45: TAR-0038 | D45: PROJ-009 | E45: =IFERROR(VLOOKUP(D45,tbProjetos[],2,FALSE),"") -> Auditoria Fiscal | F45: Planejamento | G45: Aprovação do projeto | H45: Beatriz Alves | I45: 2024-06-27 | J45: 2024-08-12 | K45: 2024-06-30 | L45: 2024-08-21 | M45: 47 | N45: 53 | O45: Concluída | P45: 100% | R45: =IF(OR(O45="",J45="",tbCronograma[[#This Row],[Status_Tarefa]]="Suspensa"),"",IF(O45="Concluída",MAX(0,L45-J45),IF(O45="Não iniciada",0,MAX(0,TODAY()-J45)))) -> 9
C46: TAR-0039 | D46: PROJ-009 | E46: =IFERROR(VLOOKUP(D46,tbProjetos[],2,FALSE),"") -> Auditoria Fiscal | F46: Execução | G46: Migração de dados | H46: Diego Fonseca | I46: 2024-08-13 | J46: 2024-09-28 | K46: 2024-08-14 | L46: 2024-09-21 | M46: 47 | N46: 39 | O46: Concluída | P46: 100% | R46: =IF(OR(O46="",J46="",tbCronograma[[#This Row],[Status_Tarefa]]="Suspensa"),"",IF(O46="Concluída",MAX(0,L46-J46),IF(O46="Não iniciada",0,MAX(0,TODAY()-J46)))) -> 0
C47: TAR-0040 | D47: PROJ-009 | E47: =IFERROR(VLOOKUP(D47,tbProjetos[],2,FALSE),"") -> Auditoria Fiscal | F47: Testes | G47: Homologação | H47: Beatriz Alves | I47: 2024-09-29 | J47: 2024-11-14 | K47: 2024-09-28 | L47: 2024-11-10 | M47: 47 | N47: 44 | O47: Concluída | P47: 100% | R47: =IF(OR(O47="",J47="",tbCronograma[[#This Row],[Status_Tarefa]]="Suspensa"),"",IF(O47="Concluída",MAX(0,L47-J47),IF(O47="Não iniciada",0,MAX(0,TODAY()-J47)))) -> 0
C48: TAR-0041 | D48: PROJ-009 | E48: =IFERROR(VLOOKUP(D48,tbProjetos[],2,FALSE),"") -> Auditoria Fiscal | F48: Implantação | G48: Preparação do ambiente produtivo | H48: André Machado | I48: 2024-11-15 | J48: 2024-12-31 | K48: 2024-11-18 | L48: 2025-01-08 | M48: 47 | N48: 52 | O48: Concluída | P48: 100% | R48: =IF(OR(O48="",J48="",tbCronograma[[#This Row],[Status_Tarefa]]="Suspensa"),"",IF(O48="Concluída",MAX(0,L48-J48),IF(O48="Não iniciada",0,MAX(0,TODAY()-J48)))) -> 8
C49: TAR-0042 | D49: PROJ-010 | E49: =IFERROR(VLOOKUP(D49,tbProjetos[],2,FALSE),"") -> Consultoria ISO 9001 | F49: Planejamento | G49: Análise de viabilidade | H49: Ricardo Monteiro | I49: 2024-04-18 | J49: 2024-05-04 | K49: 2024-04-16 | L49: 2024-05-08 | M49: 17 | N49: 23 | O49: Concluída | P49: 100% | R49: =IF(OR(O49="",J49="",tbCronograma[[#This Row],[Status_Tarefa]]="Suspensa"),"",IF(O49="Concluída",MAX(0,L49-J49),IF(O49="Não iniciada",0,MAX(0,TODAY()-J49)))) -> 4
C50: TAR-0043 | D50: PROJ-010 | E50: =IFERROR(VLOOKUP(D50,tbProjetos[],2,FALSE),"") -> Consultoria ISO 9001 | F50: Execução | G50: Configuração do ambiente | H50: André Machado | I50: 2024-05-05 | J50: 2024-05-21 | K50: 2024-05-06 | L50: 2024-06-05 | M50: 17 | N50: 31 | O50: Concluída | P50: 100% | R50: =IF(OR(O50="",J50="",tbCronograma[[#This Row],[Status_Tarefa]]="Suspensa"),"",IF(O50="Concluída",MAX(0,L50-J50),IF(O50="Não iniciada",0,MAX(0,TODAY()-J50)))) -> 15
C51: TAR-0044 | D51: PROJ-010 | E51: =IFERROR(VLOOKUP(D51,tbProjetos[],2,FALSE),"") -> Consultoria ISO 9001 | F51: Testes | G51: Testes de aceitação | H51: Diego Fonseca | I51: 2024-05-22 | J51: 2024-06-07 | K51: 2024-05-19 | L51: 2024-06-16 | M51: 17 | N51: 29 | O51: Concluída | P51: 100% | R51: =IF(OR(O51="",J51="",tbCronograma[[#This Row],[Status_Tarefa]]="Suspensa"),"",IF(O51="Concluída",MAX(0,L51-J51),IF(O51="Não iniciada",0,MAX(0,TODAY()-J51)))) -> 9
C52: TAR-0045 | D52: PROJ-010 | E52: =IFERROR(VLOOKUP(D52,tbProjetos[],2,FALSE),"") -> Consultoria ISO 9001 | F52: Implantação | G52: Treinamento de usuários | H52: Beatriz Alves | I52: 2024-06-08 | J52: 2024-06-24 | K52: 2024-06-12 | L52: 2024-06-28 | M52: 17 | N52: 17 | O52: Concluída | P52: 100% | Q52: TAR-0044 | R52: =IF(OR(O52="",J52="",tbCronograma[[#This Row],[Status_Tarefa]]="Suspensa"),"",IF(O52="Concluída",MAX(0,L52-J52),IF(O52="Não iniciada",0,MAX(0,TODAY()-J52)))) -> 4
C53: TAR-0046 | D53: PROJ-010 | E53: =IFERROR(VLOOKUP(D53,tbProjetos[],2,FALSE),"") -> Consultoria ISO 9001 | F53: Encerramento | G53: Lições aprendidas | H53: Elisa Prado | I53: 2024-06-25 | J53: 2024-07-11 | K53: 2024-06-27 | L53: 2024-07-26 | M53: 17 | N53: 30 | O53: Concluída | P53: 100% | R53: =IF(OR(O53="",J53="",tbCronograma[[#This Row],[Status_Tarefa]]="Suspensa"),"",IF(O53="Concluída",MAX(0,L53-J53),IF(O53="Não iniciada",0,MAX(0,TODAY()-J53)))) -> 15
C54: TAR-0069 | D54: PROJ-015 | E54: =IFERROR(VLOOKUP(D54,tbProjetos[],2,FALSE),"") -> Gestão de Frotas | F54: Encerramento | G54: Entrega formal | H54: André Machado | I54: 2025-07-06 | J54: 2025-07-26 | K54: 2025-07-05 | L54: 2025-07-31 | M54: 21 | N54: 27 | O54: Concluída | P54: 100% | R54: =IF(OR(O54="",J54="",tbCronograma[[#This Row],[Status_Tarefa]]="Suspensa"),"",IF(O54="Concluída",MAX(0,L54-J54),IF(O54="Não iniciada",0,MAX(0,TODAY()-J54)))) -> 5
C55: TAR-0070 | D55: PROJ-016 | E55: =IFERROR(VLOOKUP(D55,tbProjetos[],2,FALSE),"") -> Portal do Fornecedor | F55: Planejamento | G55: Análise de viabilidade | H55: André Machado | I55: 2025-01-27 | J55: 2025-02-22 | K55: 2025-01-30 | L55: 2025-02-17 | M55: 27 | N55: 19 | O55: Concluída | P55: 100% | R55: =IF(OR(O55="",J55="",tbCronograma[[#This Row],[Status_Tarefa]]="Suspensa"),"",IF(O55="Concluída",MAX(0,L55-J55),IF(O55="Não iniciada",0,MAX(0,TODAY()-J55)))) -> 0
C56: TAR-0071 | D56: PROJ-016 | E56: =IFERROR(VLOOKUP(D56,tbProjetos[],2,FALSE),"") -> Portal do Fornecedor | F56: Execução | G56: Configuração do ambiente | H56: Diego Fonseca | I56: 2025-02-23 | J56: 2025-03-21 | K56: 2025-02-21 | L56: 2025-04-01 | M56: 27 | N56: 40 | O56: Concluída | P56: 100% | R56: =IF(OR(O56="",J56="",tbCronograma[[#This Row],[Status_Tarefa]]="Suspensa"),"",IF(O56="Concluída",MAX(0,L56-J56),IF(O56="Não iniciada",0,MAX(0,TODAY()-J56)))) -> 11
C57: TAR-0072 | D57: PROJ-016 | E57: =IFERROR(VLOOKUP(D57,tbProjetos[],2,FALSE),"") -> Portal do Fornecedor | F57: Testes | G57: Testes de integração | H57: Camila Duarte | I57: 2025-03-22 | J57: 2025-04-17 | K57: 2025-03-19 | L57: 2025-04-27 | M57: 27 | N57: 40 | O57: Concluída | P57: 100% | Q57: TAR-0071 | R57: =IF(OR(O57="",J57="",tbCronograma[[#This Row],[Status_Tarefa]]="Suspensa"),"",IF(O57="Concluída",MAX(0,L57-J57),IF(O57="Não iniciada",0,MAX(0,TODAY()-J57)))) -> 10
C58: TAR-0073 | D58: PROJ-016 | E58: =IFERROR(VLOOKUP(D58,tbProjetos[],2,FALSE),"") -> Portal do Fornecedor | F58: Implantação | G58: Go-live | H58: Ricardo Monteiro | I58: 2025-04-18 | J58: 2025-05-14 | K58: 2025-04-16 | L58: 2025-05-09 | M58: 27 | N58: 24 | O58: Concluída | P58: 100% | Q58: TAR-0072 | R58: =IF(OR(O58="",J58="",tbCronograma[[#This Row],[Status_Tarefa]]="Suspensa"),"",IF(O58="Concluída",MAX(0,L58-J58),IF(O58="Não iniciada",0,MAX(0,TODAY()-J58)))) -> 0
C59: TAR-0074 | D59: PROJ-017 | E59: =IFERROR(VLOOKUP(D59,tbProjetos[],2,FALSE),"") -> Chatbot Atendimento | F59: Planejamento | G59: Elaboração do cronograma | H59: Beatriz Alves | I59: 2024-12-25 | J59: 2025-02-02 | K59: 2024-12-24 | L59: 2025-02-05 | M59: 40 | N59: 44 | O59: Concluída | P59: 100% | R59: =IF(OR(O59="",J59="",tbCronograma[[#This Row],[Status_Tarefa]]="Suspensa"),"",IF(O59="Concluída",MAX(0,L59-J59),IF(O59="Não iniciada",0,MAX(0,TODAY()-J59)))) -> 3
C60: TAR-0075 | D60: PROJ-017 | E60: =IFERROR(VLOOKUP(D60,tbProjetos[],2,FALSE),"") -> Chatbot Atendimento | F60: Execução | G60: Migração de dados | H60: André Machado | I60: 2025-02-03 | J60: 2025-03-14 | K60: 2025-02-01 | L60: 2025-03-16 | M60: 40 | N60: 44 | O60: Concluída | P60: 100% | Q60: TAR-0074 | R60: =IF(OR(O60="",J60="",tbCronograma[[#This Row],[Status_Tarefa]]="Suspensa"),"",IF(O60="Concluída",MAX(0,L60-J60),IF(O60="Não iniciada",0,MAX(0,TODAY()-J60)))) -> 2
C61: TAR-0076 | D61: PROJ-017 | E61: =IFERROR(VLOOKUP(D61,tbProjetos[],2,FALSE),"") -> Chatbot Atendimento | F61: Testes | G61: Homologação | H61: Felipe Neves | I61: 2025-03-15 | J61: 2025-04-23 | K61: 2025-03-18 | L61: 2025-04-29 | M61: 40 | N61: 43 | O61: Concluída | P61: 100% | Q61: TAR-0075 | R61: =IF(OR(O61="",J61="",tbCronograma[[#This Row],[Status_Tarefa]]="Suspensa"),"",IF(O61="Concluída",MAX(0,L61-J61),IF(O61="Não iniciada",0,MAX(0,TODAY()-J61)))) -> 6
C62: TAR-0077 | D62: PROJ-017 | E62: =IFERROR(VLOOKUP(D62,tbProjetos[],2,FALSE),"") -> Chatbot Atendimento | F62: Implantação | G62: Suporte pós-implantação | H62: Diego Fonseca | I62: 2025-04-24 | J62: 2025-06-02 | K62: 2025-04-25 | L62: 2025-06-10 | M62: 40 | N62: 47 | O62: Concluída | P62: 100% | R62: =IF(OR(O62="",J62="",tbCronograma[[#This Row],[Status_Tarefa]]="Suspensa"),"",IF(O62="Concluída",MAX(0,L62-J62),IF(O62="Não iniciada",0,MAX(0,TODAY()-J62)))) -> 8
C63: TAR-0078 | D63: PROJ-017 | E63: =IFERROR(VLOOKUP(D63,tbProjetos[],2,FALSE),"") -> Chatbot Atendimento | F63: Encerramento | G63: Encerramento administrativo | H63: Camila Duarte | I63: 2025-06-03 | J63: 2025-07-12 | K63: 2025-06-08 | L63: 2025-07-23 | M63: 40 | N63: 46 | O63: Concluída | P63: 100% | R63: =IF(OR(O63="",J63="",tbCronograma[[#This Row],[Status_Tarefa]]="Suspensa"),"",IF(O63="Concluída",MAX(0,L63-J63),IF(O63="Não iniciada",0,MAX(0,TODAY()-J63)))) -> 11
C64: TAR-0079 | D64: PROJ-018 | E64: =IFERROR(VLOOKUP(D64,tbProjetos[],2,FALSE),"") -> Migração Cloud AWS | F64: Planejamento | G64: Aprovação do projeto | H64: Beatriz Alves | I64: 2024-06-07 | J64: 2024-07-10 | K64: 2024-06-05 | L64: 2024-07-16 | M64: 34 | N64: 42 | O64: Concluída | P64: 100% | R64: =IF(OR(O64="",J64="",tbCronograma[[#This Row],[Status_Tarefa]]="Suspensa"),"",IF(O64="Concluída",MAX(0,L64-J64),IF(O64="Não iniciada",0,MAX(0,TODAY()-J64)))) -> 6
C65: TAR-0080 | D65: PROJ-018 | E65: =IFERROR(VLOOKUP(D65,tbProjetos[],2,FALSE),"") -> Migração Cloud AWS | F65: Execução | G65: Implementação do módulo principal | H65: Ricardo Monteiro | I65: 2024-07-11 | J65: 2024-08-13 | K65: 2024-07-15 | L65: 2024-08-15 | M65: 34 | N65: 32 | O65: Concluída | P65: 100% | Q65: TAR-0079 | R65: =IF(OR(O65="",J65="",tbCronograma[[#This Row],[Status_Tarefa]]="Suspensa"),"",IF(O65="Concluída",MAX(0,L65-J65),IF(O65="Não iniciada",0,MAX(0,TODAY()-J65)))) -> 2
C66: TAR-0081 | D66: PROJ-018 | E66: =IFERROR(VLOOKUP(D66,tbProjetos[],2,FALSE),"") -> Migração Cloud AWS | F66: Testes | G66: Homologação | H66: André Machado | I66: 2024-08-14 | J66: 2024-09-16 | K66: 2024-08-15 | L66: 2024-09-21 | M66: 34 | N66: 38 | O66: Concluída | P66: 100% | R66: =IF(OR(O66="",J66="",tbCronograma[[#This Row],[Status_Tarefa]]="Suspensa"),"",IF(O66="Concluída",MAX(0,L66-J66),IF(O66="Não iniciada",0,MAX(0,TODAY()-J66)))) -> 5
C67: TAR-0082 | D67: PROJ-018 | E67: =IFERROR(VLOOKUP(D67,tbProjetos[],2,FALSE),"") -> Migração Cloud AWS | F67: Implantação | G67: Treinamento de usuários | H67: Elisa Prado | I67: 2024-09-17 | J67: 2024-10-20 | K67: 2024-09-19 | L67: 2024-10-22 | M67: 34 | N67: 34 | O67: Concluída | P67: 100% | R67: =IF(OR(O67="",J67="",tbCronograma[[#This Row],[Status_Tarefa]]="Suspensa"),"",IF(O67="Concluída",MAX(0,L67-J67),IF(O67="Não iniciada",0,MAX(0,TODAY()-J67)))) -> 2
C68: TAR-0083 | D68: PROJ-018 | E68: =IFERROR(VLOOKUP(D68,tbProjetos[],2,FALSE),"") -> Migração Cloud AWS | F68: Encerramento | G68: Documentação final | H68: Ricardo Monteiro | I68: 2024-10-21 | J68: 2024-11-23 | K68: 2024-10-18 | L68: 2024-12-05 | M68: 34 | N68: 49 | O68: Concluída | P68: 100% | Q68: TAR-0082 | R68: =IF(OR(O68="",J68="",tbCronograma[[#This Row],[Status_Tarefa]]="Suspensa"),"",IF(O68="Concluída",MAX(0,L68-J68),IF(O68="Não iniciada",0,MAX(0,TODAY()-J68)))) -> 12
C69: TAR-0084 | D69: PROJ-018 | E69: =IFERROR(VLOOKUP(D69,tbProjetos[],2,FALSE),"") -> Migração Cloud AWS | F69: Encerramento | G69: Documentação final | H69: Beatriz Alves | I69: 2024-11-24 | J69: 2024-12-27 | K69: 2024-11-22 | L69: 2024-12-28 | M69: 34 | N69: 37 | O69: Concluída | P69: 100% | R69: =IF(OR(O69="",J69="",tbCronograma[[#This Row],[Status_Tarefa]]="Suspensa"),"",IF(O69="Concluída",MAX(0,L69-J69),IF(O69="Não iniciada",0,MAX(0,TODAY()-J69)))) -> 1
C70: TAR-0085 | D70: PROJ-019 | E70: =IFERROR(VLOOKUP(D70,tbProjetos[],2,FALSE),"") -> Projeto Sustentabilidade | F70: Planejamento | G70: Análise de viabilidade | H70: Diego Fonseca | I70: 2024-11-18 | J70: 2024-12-14 | K70: 2024-11-19 | M70: 27 | O70: Suspensa | P70: 56% | R70: =IF(OR(O70="",J70="",tbCronograma[[#This Row],[Status_Tarefa]]="Suspensa"),"",IF(O70="Concluída",MAX(0,L70-J70),IF(O70="Não iniciada",0,MAX(0,TODAY()-J70)))) -> 
C71: TAR-0086 | D71: PROJ-019 | E71: =IFERROR(VLOOKUP(D71,tbProjetos[],2,FALSE),"") -> Projeto Sustentabilidade | F71: Execução | G71: Integração de sistemas | H71: André Machado | I71: 2024-12-15 | J71: 2025-01-10 | K71: 2024-12-15 | L71: 2025-01-18 | M71: 27 | N71: 35 | O71: Concluída | P71: 100% | Q71: TAR-0085 | R71: =IF(OR(O71="",J71="",tbCronograma[[#This Row],[Status_Tarefa]]="Suspensa"),"",IF(O71="Concluída",MAX(0,L71-J71),IF(O71="Não iniciada",0,MAX(0,TODAY()-J71)))) -> 8
C72: TAR-0087 | D72: PROJ-019 | E72: =IFERROR(VLOOKUP(D72,tbProjetos[],2,FALSE),"") -> Projeto Sustentabilidade | F72: Testes | G72: Homologação | H72: Diego Fonseca | I72: 2025-01-11 | J72: 2025-02-06 | K72: 2025-01-14 | M72: =IF(OR(J72="",I72=""),"",J72-I72+1) -> 27 | O72: Suspensa | P72: 29% | Q72: TAR-0086 | R72: =IF(OR(O72="",J72="",tbCronograma[[#This Row],[Status_Tarefa]]="Suspensa"),"",IF(O72="Concluída",MAX(0,L72-J72),IF(O72="Não iniciada",0,MAX(0,TODAY()-J72)))) -> 
C73: TAR-0088 | D73: PROJ-019 | E73: =IFERROR(VLOOKUP(D73,tbProjetos[],2,FALSE),"") -> Projeto Sustentabilidade | F73: Implantação | G73: Go-live | H73: Camila Duarte | I73: 2025-02-07 | J73: 2025-03-05 | M73: 27 | N73: =IF(AND(K73<>"",L73<>""),L73-K73+1,"") ->  | O73: Suspensa | P73: 0% | Q73: TAR-0087 | R73: =IF(OR(O73="",J73="",tbCronograma[[#This Row],[Status_Tarefa]]="Suspensa"),"",IF(O73="Concluída",MAX(0,L73-J73),IF(O73="Não iniciada",0,MAX(0,TODAY()-J73)))) -> 
C74: TAR-0089 | D74: PROJ-019 | E74: =IFERROR(VLOOKUP(D74,tbProjetos[],2,FALSE),"") -> Projeto Sustentabilidade | F74: Encerramento | G74: Documentação final | H74: Ricardo Monteiro | I74: 2025-03-06 | J74: 2025-04-01 | M74: 27 | O74: Suspensa | P74: 0% | Q74: TAR-0088 | R74: =IF(OR(O74="",J74="",tbCronograma[[#This Row],[Status_Tarefa]]="Suspensa"),"",IF(O74="Concluída",MAX(0,L74-J74),IF(O74="Não iniciada",0,MAX(0,TODAY()-J74)))) -> 
C75: TAR-0090 | D75: PROJ-019 | E75: =IFERROR(VLOOKUP(D75,tbProjetos[],2,FALSE),"") -> Projeto Sustentabilidade | F75: Encerramento | G75: Entrega formal | H75: Felipe Neves | I75: 2025-04-02 | J75: 2025-04-28 | M75: 27 | O75: Suspensa | P75: 0% | Q75: TAR-0089 | R75: =IF(OR(O75="",J75="",tbCronograma[[#This Row],[Status_Tarefa]]="Suspensa"),"",IF(O75="Concluída",MAX(0,L75-J75),IF(O75="Não iniciada",0,MAX(0,TODAY()-J75)))) -> 
C76: TAR-0091 | D76: PROJ-020 | E76: =IFERROR(VLOOKUP(D76,tbProjetos[],2,FALSE),"") -> Análise de Mercado | F76: Planejamento | G76: Aprovação do projeto | H76: Ricardo Monteiro | I76: 2024-07-30 | J76: 2024-08-23 | K76: 2024-07-31 | L76: 2024-08-31 | M76: 25 | N76: 32 | O76: Concluída | P76: 100% | R76: =IF(OR(O76="",J76="",tbCronograma[[#This Row],[Status_Tarefa]]="Suspensa"),"",IF(O76="Concluída",MAX(0,L76-J76),IF(O76="Não iniciada",0,MAX(0,TODAY()-J76)))) -> 8
C77: TAR-0092 | D77: PROJ-020 | E77: =IFERROR(VLOOKUP(D77,tbProjetos[],2,FALSE),"") -> Análise de Mercado | F77: Execução | G77: Migração de dados | H77: Ricardo Monteiro | I77: 2024-08-24 | J77: 2024-09-17 | K77: 2024-08-28 | L77: 2024-09-13 | M77: 25 | N77: 17 | O77: Concluída | P77: 100% | Q77: TAR-0091 | R77: =IF(OR(O77="",J77="",tbCronograma[[#This Row],[Status_Tarefa]]="Suspensa"),"",IF(O77="Concluída",MAX(0,L77-J77),IF(O77="Não iniciada",0,MAX(0,TODAY()-J77)))) -> 0
C78: TAR-0093 | D78: PROJ-020 | E78: =IFERROR(VLOOKUP(D78,tbProjetos[],2,FALSE),"") -> Análise de Mercado | F78: Testes | G78: Testes de aceitação | H78: Beatriz Alves | I78: 2024-09-18 | J78: 2024-10-12 | K78: 2024-09-17 | L78: 2024-10-10 | M78: 25 | N78: 24 | O78: Concluída | P78: 100% | R78: =IF(OR(O78="",J78="",tbCronograma[[#This Row],[Status_Tarefa]]="Suspensa"),"",IF(O78="Concluída",MAX(0,L78-J78),IF(O78="Não iniciada",0,MAX(0,TODAY()-J78)))) -> 0
C79: TAR-0094 | D79: PROJ-020 | E79: =IFERROR(VLOOKUP(D79,tbProjetos[],2,FALSE),"") -> Análise de Mercado | F79: Implantação | G79: Suporte pós-implantação | H79: André Machado | I79: 2024-10-13 | J79: 2024-11-06 | K79: 2024-10-14 | L79: 2024-11-04 | M79: 25 | N79: 22 | O79: Concluída | P79: 100% | R79: =IF(OR(O79="",J79="",tbCronograma[[#This Row],[Status_Tarefa]]="Suspensa"),"",IF(O79="Concluída",MAX(0,L79-J79),IF(O79="Não iniciada",0,MAX(0,TODAY()-J79)))) -> 0
C80: TAR-0095 | D80: PROJ-020 | E80: =IFERROR(VLOOKUP(D80,tbProjetos[],2,FALSE),"") -> Análise de Mercado | F80: Encerramento | G80: Entrega formal | H80: Felipe Neves | I80: 2024-11-07 | J80: 2024-12-01 | K80: 2024-11-12 | L80: 2024-12-04 | M80: 25 | N80: 23 | O80: Concluída | P80: 100% | Q80: TAR-0094 | R80: =IF(OR(O80="",J80="",tbCronograma[[#This Row],[Status_Tarefa]]="Suspensa"),"",IF(O80="Concluída",MAX(0,L80-J80),IF(O80="Não iniciada",0,MAX(0,TODAY()-J80)))) -> 3
C81: TAR-0096 | D81: PROJ-020 | E81: =IFERROR(VLOOKUP(D81,tbProjetos[],2,FALSE),"") -> Análise de Mercado | F81: Encerramento | G81: Entrega formal | H81: André Machado | I81: 2024-12-02 | J81: 2024-12-26 | K81: 2024-12-06 | L81: 2024-12-28 | M81: 25 | N81: 23 | O81: Concluída | P81: 100% | Q81: TAR-0095 | R81: =IF(OR(O81="",J81="",tbCronograma[[#This Row],[Status_Tarefa]]="Suspensa"),"",IF(O81="Concluída",MAX(0,L81-J81),IF(O81="Não iniciada",0,MAX(0,TODAY()-J81)))) -> 2
C82: TAR-0097 | D82: PROJ-021 | E82: =IFERROR(VLOOKUP(D82,tbProjetos[],2,FALSE),"") -> Redesign Marca | F82: Planejamento | G82: Análise de viabilidade | H82: Elisa Prado | I82: 2024-07-25 | J82: 2024-08-08 | K82: 2024-07-30 | L82: 2024-08-10 | M82: 15 | N82: 12 | O82: Concluída | P82: 100% | R82: =IF(OR(O82="",J82="",tbCronograma[[#This Row],[Status_Tarefa]]="Suspensa"),"",IF(O82="Concluída",MAX(0,L82-J82),IF(O82="Não iniciada",0,MAX(0,TODAY()-J82)))) -> 2
C83: TAR-0098 | D83: PROJ-021 | E83: =IFERROR(VLOOKUP(D83,tbProjetos[],2,FALSE),"") -> Redesign Marca | F83: Execução | G83: Desenvolvimento do protótipo | H83: Felipe Neves | I83: 2024-08-09 | J83: 2024-08-23 | K83: 2024-08-14 | M83: 15 | O83: Atrasada | P83: 82% | Q83: TAR-0097 | R83: =IF(OR(O83="",J83="",tbCronograma[[#This Row],[Status_Tarefa]]="Suspensa"),"",IF(O83="Concluída",MAX(0,L83-J83),IF(O83="Não iniciada",0,MAX(0,TODAY()-J83)))) -> 720
C84: TAR-0099 | D84: PROJ-021 | E84: =IFERROR(VLOOKUP(D84,tbProjetos[],2,FALSE),"") -> Redesign Marca | F84: Testes | G84: Correção de bugs | H84: Camila Duarte | I84: 2024-08-24 | J84: 2024-09-07 | K84: 2024-08-26 | M84: 15 | O84: Atrasada | P84: 55% | R84: =IF(OR(O84="",J84="",tbCronograma[[#This Row],[Status_Tarefa]]="Suspensa"),"",IF(O84="Concluída",MAX(0,L84-J84),IF(O84="Não iniciada",0,MAX(0,TODAY()-J84)))) -> 705
C85: TAR-0100 | D85: PROJ-021 | E85: =IFERROR(VLOOKUP(D85,tbProjetos[],2,FALSE),"") -> Redesign Marca | F85: Implantação | G85: Treinamento de usuários | H85: André Machado | I85: 2024-09-08 | J85: 2024-09-22 | K85: 2024-09-13 | L85: 2024-09-26 | M85: 15 | N85: 14 | O85: Concluída | P85: 100% | R85: =IF(OR(O85="",J85="",tbCronograma[[#This Row],[Status_Tarefa]]="Suspensa"),"",IF(O85="Concluída",MAX(0,L85-J85),IF(O85="Não iniciada",0,MAX(0,TODAY()-J85)))) -> 4
C86: TAR-0101 | D86: PROJ-021 | E86: =IFERROR(VLOOKUP(D86,tbProjetos[],2,FALSE),"") -> Redesign Marca | F86: Encerramento | G86: Encerramento administrativo | H86: Ricardo Monteiro | I86: 2024-09-23 | J86: 2024-10-07 | K86: 2024-09-21 | L86: 2024-10-07 | M86: 15 | N86: 17 | O86: Concluída | P86: 100% | R86: =IF(OR(O86="",J86="",tbCronograma[[#This Row],[Status_Tarefa]]="Suspensa"),"",IF(O86="Concluída",MAX(0,L86-J86),IF(O86="Não iniciada",0,MAX(0,TODAY()-J86)))) -> 0
C87: TAR-0102 | D87: PROJ-022 | E87: =IFERROR(VLOOKUP(D87,tbProjetos[],2,FALSE),"") -> Implantação SAP | F87: Planejamento | G87: Análise de viabilidade | H87: André Machado | I87: 2025-01-27 | J87: 2025-03-10 | K87: 2025-02-01 | L87: 2025-03-15 | M87: 43 | N87: 43 | O87: Concluída | P87: 100% | R87: =IF(OR(O87="",J87="",tbCronograma[[#This Row],[Status_Tarefa]]="Suspensa"),"",IF(O87="Concluída",MAX(0,L87-J87),IF(O87="Não iniciada",0,MAX(0,TODAY()-J87)))) -> 5
C88: TAR-0103 | D88: PROJ-022 | E88: =IFERROR(VLOOKUP(D88,tbProjetos[],2,FALSE),"") -> Implantação SAP | F88: Execução | G88: Migração de dados | H88: Camila Duarte | I88: 2025-03-11 | J88: 2025-04-22 | K88: 2025-03-11 | L88: 2025-05-04 | M88: 43 | N88: 55 | O88: Concluída | P88: 100% | R88: =IF(OR(O88="",J88="",tbCronograma[[#This Row],[Status_Tarefa]]="Suspensa"),"",IF(O88="Concluída",MAX(0,L88-J88),IF(O88="Não iniciada",0,MAX(0,TODAY()-J88)))) -> 12
C89: TAR-0104 | D89: PROJ-022 | E89: =IFERROR(VLOOKUP(D89,tbProjetos[],2,FALSE),"") -> Implantação SAP | F89: Testes | G89: Testes de aceitação | H89: Diego Fonseca | I89: 2025-04-23 | J89: 2025-06-04 | K89: 2025-04-28 | M89: 43 | O89: Atrasada | P89: 59% | Q89: TAR-0103 | R89: =IF(OR(O89="",J89="",tbCronograma[[#This Row],[Status_Tarefa]]="Suspensa"),"",IF(O89="Concluída",MAX(0,L89-J89),IF(O89="Não iniciada",0,MAX(0,TODAY()-J89)))) -> 435
C90: TAR-0105 | D90: PROJ-023 | E90: =IFERROR(VLOOKUP(D90,tbProjetos[],2,FALSE),"") -> Otimização Logística | F90: Planejamento | G90: Elaboração do cronograma | H90: Ricardo Monteiro | I90: 2024-08-25 | J90: 2024-09-26 | K90: 2024-08-26 | L90: 2024-09-24 | M90: 33 | N90: 30 | O90: Concluída | P90: 100% | R90: =IF(OR(O90="",J90="",tbCronograma[[#This Row],[Status_Tarefa]]="Suspensa"),"",IF(O90="Concluída",MAX(0,L90-J90),IF(O90="Não iniciada",0,MAX(0,TODAY()-J90)))) -> 0
C91: TAR-0106 | D91: PROJ-023 | E91: =IFERROR(VLOOKUP(D91,tbProjetos[],2,FALSE),"") -> Otimização Logística | F91: Execução | G91: Migração de dados | H91: Camila Duarte | I91: 2024-09-27 | J91: 2024-10-29 | K91: 2024-09-27 | M91: 33 | O91: Suspensa | P91: 65% | Q91: TAR-0105 | R91: =IF(OR(O91="",J91="",tbCronograma[[#This Row],[Status_Tarefa]]="Suspensa"),"",IF(O91="Concluída",MAX(0,L91-J91),IF(O91="Não iniciada",0,MAX(0,TODAY()-J91)))) -> 
C92: TAR-0107 | D92: PROJ-023 | E92: =IFERROR(VLOOKUP(D92,tbProjetos[],2,FALSE),"") -> Otimização Logística | F92: Testes | G92: Testes de integração | H92: Diego Fonseca | I92: 2024-10-30 | J92: 2024-12-01 | K92: 2024-10-31 | M92: 33 | O92: Suspensa | P92: 50% | Q92: TAR-0106 | R92: =IF(OR(O92="",J92="",tbCronograma[[#This Row],[Status_Tarefa]]="Suspensa"),"",IF(O92="Concluída",MAX(0,L92-J92),IF(O92="Não iniciada",0,MAX(0,TODAY()-J92)))) -> 
C93: TAR-0108 | D93: PROJ-023 | E93: =IFERROR(VLOOKUP(D93,tbProjetos[],2,FALSE),"") -> Otimização Logística | F93: Implantação | G93: Treinamento de usuários | H93: Beatriz Alves | I93: 2024-12-02 | J93: 2025-01-03 | M93: 33 | O93: Suspensa | P93: 0% | R93: =IF(OR(O93="",J93="",tbCronograma[[#This Row],[Status_Tarefa]]="Suspensa"),"",IF(O93="Concluída",MAX(0,L93-J93),IF(O93="Não iniciada",0,MAX(0,TODAY()-J93)))) -> 
C94: TAR-0109 | D94: PROJ-023 | E94: =IFERROR(VLOOKUP(D94,tbProjetos[],2,FALSE),"") -> Otimização Logística | F94: Encerramento | G94: Documentação final | H94: Diego Fonseca | I94: 2025-01-04 | J94: 2025-02-05 | M94: 33 | O94: Suspensa | P94: 0% | Q94: TAR-0108 | R94: =IF(OR(O94="",J94="",tbCronograma[[#This Row],[Status_Tarefa]]="Suspensa"),"",IF(O94="Concluída",MAX(0,L94-J94),IF(O94="Não iniciada",0,MAX(0,TODAY()-J94)))) -> 
C95: TAR-0110 | D95: PROJ-023 | E95: =IFERROR(VLOOKUP(D95,tbProjetos[],2,FALSE),"") -> Otimização Logística | F95: Encerramento | G95: Documentação final | H95: Beatriz Alves | I95: 2025-02-06 | J95: 2025-03-10 | M95: 33 | O95: Suspensa | P95: 0% | R95: =IF(OR(O95="",J95="",tbCronograma[[#This Row],[Status_Tarefa]]="Suspensa"),"",IF(O95="Concluída",MAX(0,L95-J95),IF(O95="Não iniciada",0,MAX(0,TODAY()-J95)))) -> 
C96: TAR-0111 | D96: PROJ-024 | E96: =IFERROR(VLOOKUP(D96,tbProjetos[],2,FALSE),"") -> Sistema de Ponto | F96: Planejamento | G96: Elaboração do cronograma | H96: André Machado | I96: 2024-09-18 | J96: 2024-11-01 | K96: 2024-09-17 | L96: 2024-11-12 | M96: 45 | N96: 57 | O96: Concluída | P96: 100% | R96: =IF(OR(O96="",J96="",tbCronograma[[#This Row],[Status_Tarefa]]="Suspensa"),"",IF(O96="Concluída",MAX(0,L96-J96),IF(O96="Não iniciada",0,MAX(0,TODAY()-J96)))) -> 11
C97: TAR-0112 | D97: PROJ-024 | E97: =IFERROR(VLOOKUP(D97,tbProjetos[],2,FALSE),"") -> Sistema de Ponto | F97: Execução | G97: Implementação do módulo principal | H97: Elisa Prado | I97: 2024-11-02 | J97: 2024-12-16 | K97: 2024-11-06 | L97: 2024-12-11 | M97: 45 | N97: 36 | O97: Concluída | P97: 100% | Q97: TAR-0111 | R97: =IF(OR(O97="",J97="",tbCronograma[[#This Row],[Status_Tarefa]]="Suspensa"),"",IF(O97="Concluída",MAX(0,L97-J97),IF(O97="Não iniciada",0,MAX(0,TODAY()-J97)))) -> 0
C98: TAR-0113 | D98: PROJ-024 | E98: =IFERROR(VLOOKUP(D98,tbProjetos[],2,FALSE),"") -> Sistema de Ponto | F98: Testes | G98: Correção de bugs | H98: Beatriz Alves | I98: 2024-12-17 | J98: 2025-01-30 | K98: 2024-12-20 | L98: 2025-02-02 | M98: 45 | N98: 45 | O98: Concluída | P98: 100% | Q98: TAR-0112 | R98: =IF(OR(O98="",J98="",tbCronograma[[#This Row],[Status_Tarefa]]="Suspensa"),"",IF(O98="Concluída",MAX(0,L98-J98),IF(O98="Não iniciada",0,MAX(0,TODAY()-J98)))) -> 3
C99: TAR-0114 | D99: PROJ-024 | E99: =IFERROR(VLOOKUP(D99,tbProjetos[],2,FALSE),"") -> Sistema de Ponto | F99: Implantação | G99: Preparação do ambiente produtivo | H99: Felipe Neves | I99: 2025-01-31 | J99: 2025-03-16 | K99: 2025-01-29 | L99: 2025-03-18 | M99: 45 | N99: 49 | O99: Concluída | P99: 100% | Q99: TAR-0113 | R99: =IF(OR(O99="",J99="",tbCronograma[[#This Row],[Status_Tarefa]]="Suspensa"),"",IF(O99="Concluída",MAX(0,L99-J99),IF(O99="Não iniciada",0,MAX(0,TODAY()-J99)))) -> 2
C100: TAR-0115 | D100: PROJ-024 | E100: =IFERROR(VLOOKUP(D100,tbProjetos[],2,FALSE),"") -> Sistema de Ponto | F100: Encerramento | G100: Documentação final | H100: André Machado | I100: 2025-03-17 | J100: 2025-04-30 | K100: 2025-03-18 | L100: 2025-04-28 | M100: 45 | N100: 42 | O100: Concluída | P100: 100% | Q100: TAR-0114 | R100: =IF(OR(O100="",J100="",tbCronograma[[#This Row],[Status_Tarefa]]="Suspensa"),"",IF(O100="Concluída",MAX(0,L100-J100),IF(O100="Não iniciada",0,MAX(0,TODAY()-J100)))) -> 0
C101: TAR-0116 | D101: PROJ-025 | E101: =IFERROR(VLOOKUP(D101,tbProjetos[],2,FALSE),"") -> Campanha Black Friday | F101: Planejamento | G101: Análise de viabilidade | H101: Felipe Neves | I101: 2024-07-03 | J101: 2024-08-16 | K101: 2024-07-06 | L101: 2024-08-21 | M101: 45 | N101: 47 | O101: Concluída | P101: 100% | R101: =IF(OR(O101="",J101="",tbCronograma[[#This Row],[Status_Tarefa]]="Suspensa"),"",IF(O101="Concluída",MAX(0,L101-J101),IF(O101="Não iniciada",0,MAX(0,TODAY()-J101)))) -> 5
C102: TAR-0117 | D102: PROJ-025 | E102: =IFERROR(VLOOKUP(D102,tbProjetos[],2,FALSE),"") -> Campanha Black Friday | F102: Execução | G102: Desenvolvimento do protótipo | H102: Ricardo Monteiro | I102: 2024-08-17 | J102: 2024-09-30 | K102: 2024-08-18 | L102: 2024-10-08 | M102: 45 | N102: 52 | O102: Concluída | P102: 100% | Q102: TAR-0116 | R102: =IF(OR(O102="",J102="",tbCronograma[[#This Row],[Status_Tarefa]]="Suspensa"),"",IF(O102="Concluída",MAX(0,L102-J102),IF(O102="Não iniciada",0,MAX(0,TODAY()-J102)))) -> 8
C103: TAR-0118 | D103: PROJ-025 | E103: =IFERROR(VLOOKUP(D103,tbProjetos[],2,FALSE),"") -> Campanha Black Friday | F103: Testes | G103: Testes de aceitação | H103: André Machado | I103: 2024-10-01 | J103: 2024-11-14 | K103: 2024-09-28 | L103: 2024-11-18 | M103: 45 | N103: 52 | O103: Concluída | P103: 100% | R103: =IF(OR(O103="",J103="",tbCronograma[[#This Row],[Status_Tarefa]]="Suspensa"),"",IF(O103="Concluída",MAX(0,L103-J103),IF(O103="Não iniciada",0,MAX(0,TODAY()-J103)))) -> 4
C104: TAR-0119 | D104: PROJ-025 | E104: =IFERROR(VLOOKUP(D104,tbProjetos[],2,FALSE),"") -> Campanha Black Friday | F104: Implantação | G104: Treinamento de usuários | H104: André Machado | I104: 2024-11-15 | J104: 2024-12-29 | K104: 2024-11-13 | L104: 2024-12-30 | M104: =IF(OR(J104="",I104=""),"",J104-I104+1) -> 45 | N104: 48 | O104: Concluída | P104: 100% | R104: =IF(OR(O104="",J104="",tbCronograma[[#This Row],[Status_Tarefa]]="Suspensa"),"",IF(O104="Concluída",MAX(0,L104-J104),IF(O104="Não iniciada",0,MAX(0,TODAY()-J104)))) -> 1
C105: TAR-0120 | D105: PROJ-025 | E105: =IFERROR(VLOOKUP(D105,tbProjetos[],2,FALSE),"") -> Campanha Black Friday | F105: Encerramento | G105: Documentação final | H105: Beatriz Alves | I105: 2024-12-30 | J105: 2025-02-12 | K105: 2025-01-04 | L105: 2025-02-22 | M105: 45 | N105: 50 | O105: Concluída | P105: 100% | Q105: TAR-0119 | R105: =IF(OR(O105="",J105="",tbCronograma[[#This Row],[Status_Tarefa]]="Suspensa"),"",IF(O105="Concluída",MAX(0,L105-J105),IF(O105="Não iniciada",0,MAX(0,TODAY()-J105)))) -> 10
C106: TAR-0121 | D106: PROJ-025 | E106: =IFERROR(VLOOKUP(D106,tbProjetos[],2,FALSE),"") -> Campanha Black Friday | F106: Encerramento | G106: Entrega formal | H106: Felipe Neves | I106: 2025-02-13 | J106: 2025-03-29 | K106: 2025-02-16 | L106: 2025-03-25 | M106: 45 | N106: 38 | O106: Concluída | P106: 100% | R106: =IF(OR(O106="",J106="",tbCronograma[[#This Row],[Status_Tarefa]]="Suspensa"),"",IF(O106="Concluída",MAX(0,L106-J106),IF(O106="Não iniciada",0,MAX(0,TODAY()-J106)))) -> 0
C107: TAR-0100 | D107: PROJ-022 | E107: =IFERROR(VLOOKUP(D107,tbProjetos[],2,FALSE),"") -> Implantação SAP | R107: =IF(OR(O107="",J107="",tbCronograma[[#This Row],[Status_Tarefa]]="Suspensa"),"",IF(O107="Concluída",MAX(0,L107-J107),IF(O107="Não iniciada",0,MAX(0,TODAY()-J107)))) -> 
C108: TAR-0101 | D108: PROJ-023 | E108: =IFERROR(VLOOKUP(D108,tbProjetos[],2,FALSE),"") -> Otimização Logística | R108: =IF(OR(O108="",J108="",tbCronograma[[#This Row],[Status_Tarefa]]="Suspensa"),"",IF(O108="Concluída",MAX(0,L108-J108),IF(O108="Não iniciada",0,MAX(0,TODAY()-J108)))) -> 
C109: TAR-0102 | D109: PROJ-023 | E109: =IFERROR(VLOOKUP(D109,tbProjetos[],2,FALSE),"") -> Otimização Logística | R109: =IF(OR(O109="",J109="",tbCronograma[[#This Row],[Status_Tarefa]]="Suspensa"),"",IF(O109="Concluída",MAX(0,L109-J109),IF(O109="Não iniciada",0,MAX(0,TODAY()-J109)))) -> 
C110: TAR-0103 | D110: PROJ-023 | E110: =IFERROR(VLOOKUP(D110,tbProjetos[],2,FALSE),"") -> Otimização Logística | R110: =IF(OR(O110="",J110="",tbCronograma[[#This Row],[Status_Tarefa]]="Suspensa"),"",IF(O110="Concluída",MAX(0,L110-J110),IF(O110="Não iniciada",0,MAX(0,TODAY()-J110)))) -> 
C111: TAR-0104 | D111: PROJ-024 | E111: =IFERROR(VLOOKUP(D111,tbProjetos[],2,FALSE),"") -> Sistema de Ponto | R111: =IF(OR(O111="",J111="",tbCronograma[[#This Row],[Status_Tarefa]]="Suspensa"),"",IF(O111="Concluída",MAX(0,L111-J111),IF(O111="Não iniciada",0,MAX(0,TODAY()-J111)))) -> 
C112: TAR-0105 | D112: PROJ-024 | E112: =IFERROR(VLOOKUP(D112,tbProjetos[],2,FALSE),"") -> Sistema de Ponto | R112: =IF(OR(O112="",J112="",tbCronograma[[#This Row],[Status_Tarefa]]="Suspensa"),"",IF(O112="Concluída",MAX(0,L112-J112),IF(O112="Não iniciada",0,MAX(0,TODAY()-J112)))) -> 
C113: TAR-0106 | D113: PROJ-024 | E113: =IFERROR(VLOOKUP(D113,tbProjetos[],2,FALSE),"") -> Sistema de Ponto | R113: =IF(OR(O113="",J113="",tbCronograma[[#This Row],[Status_Tarefa]]="Suspensa"),"",IF(O113="Concluída",MAX(0,L113-J113),IF(O113="Não iniciada",0,MAX(0,TODAY()-J113)))) -> 
C114: TAR-0107 | D114: PROJ-024 | E114: =IFERROR(VLOOKUP(D114,tbProjetos[],2,FALSE),"") -> Sistema de Ponto | R114: =IF(OR(O114="",J114="",tbCronograma[[#This Row],[Status_Tarefa]]="Suspensa"),"",IF(O114="Concluída",MAX(0,L114-J114),IF(O114="Não iniciada",0,MAX(0,TODAY()-J114)))) -> 
C115: TAR-0108 | D115: PROJ-025 | E115: =IFERROR(VLOOKUP(D115,tbProjetos[],2,FALSE),"") -> Campanha Black Friday | R115: =IF(OR(O115="",J115="",tbCronograma[[#This Row],[Status_Tarefa]]="Suspensa"),"",IF(O115="Concluída",MAX(0,L115-J115),IF(O115="Não iniciada",0,MAX(0,TODAY()-J115)))) -> 
C116: TAR-0109 | D116: PROJ-025 | E116: =IFERROR(VLOOKUP(D116,tbProjetos[],2,FALSE),"") -> Campanha Black Friday | R116: =IF(OR(O116="",J116="",tbCronograma[[#This Row],[Status_Tarefa]]="Suspensa"),"",IF(O116="Concluída",MAX(0,L116-J116),IF(O116="Não iniciada",0,MAX(0,TODAY()-J116)))) -> 
C117: TAR-0110 | D117: PROJ-025 | E117: =IFERROR(VLOOKUP(D117,tbProjetos[],2,FALSE),"") -> Campanha Black Friday | R117: =IF(OR(O117="",J117="",tbCronograma[[#This Row],[Status_Tarefa]]="Suspensa"),"",IF(O117="Concluída",MAX(0,L117-J117),IF(O117="Não iniciada",0,MAX(0,TODAY()-J117)))) -> 
C118: TAR-0111 | D118: PROJ-025 | E118: =IFERROR(VLOOKUP(D118,tbProjetos[],2,FALSE),"") -> Campanha Black Friday | R118: =IF(OR(O118="",J118="",tbCronograma[[#This Row],[Status_Tarefa]]="Suspensa"),"",IF(O118="Concluída",MAX(0,L118-J118),IF(O118="Não iniciada",0,MAX(0,TODAY()-J118)))) -> 
C119: TAR-0112 | D119: PROJ-025 | E119: =IFERROR(VLOOKUP(D119,tbProjetos[],2,FALSE),"") -> Campanha Black Friday | R119: =IF(OR(O119="",J119="",tbCronograma[[#This Row],[Status_Tarefa]]="Suspensa"),"",IF(O119="Concluída",MAX(0,L119-J119),IF(O119="Não iniciada",0,MAX(0,TODAY()-J119)))) -> 
C120: TAR-0113 | D120: PROJ-025 | E120: =IFERROR(VLOOKUP(D120,tbProjetos[],2,FALSE),"") -> Campanha Black Friday | R120: =IF(OR(O120="",J120="",tbCronograma[[#This Row],[Status_Tarefa]]="Suspensa"),"",IF(O120="Concluída",MAX(0,L120-J120),IF(O120="Não iniciada",0,MAX(0,TODAY()-J120)))) -> 
C121: TAR-0114 | D121: PROJ-026 | E121: =IFERROR(VLOOKUP(D121,tbProjetos[],2,FALSE),"") -> Compliance LGPD | R121: =IF(OR(O121="",J121="",tbCronograma[[#This Row],[Status_Tarefa]]="Suspensa"),"",IF(O121="Concluída",MAX(0,L121-J121),IF(O121="Não iniciada",0,MAX(0,TODAY()-J121)))) -> 
C122: TAR-0115 | D122: PROJ-026 | E122: =IFERROR(VLOOKUP(D122,tbProjetos[],2,FALSE),"") -> Compliance LGPD | R122: =IF(OR(O122="",J122="",tbCronograma[[#This Row],[Status_Tarefa]]="Suspensa"),"",IF(O122="Concluída",MAX(0,L122-J122),IF(O122="Não iniciada",0,MAX(0,TODAY()-J122)))) -> 

Sheet Orcamento (hidden)
C2: ORÇAMENTO E CONTROLE FINANCEIRO
C7: Cod_Lancamento | D7: Cod_Projeto | E7: Projeto | F7: Data_Lancamento | G7: Tipo_Valor | H7: Categoria_Custo | I7: Descricao | J7: Fornecedor | K7: Valor_Previsto | L7: Valor_Realizado | M7: Diferenca | N7: Status_Orcamento | O7: Receita_Prevista | P7: Receita_Realizada | Q7: Resultado_Real | R7: Competencia | S7: Observacoes
C8: ORC-001 | D8: PROJ-011 | E8: =IFERROR(VLOOKUP(tbOrcamento[[#This Row],[Cod_Projeto]],tbProjetos[[Cod_Projeto]:[Projeto]],2,0),"") -> Expansão Filial Norte | F8: 2026-02-02 | G8: Custo | H8: Mão de obra | I8: Equipe desenvolvimento front-end | J8: Interno | K8: R$ 42,000.00 | L8: R$ 38,500.00 | M8: =K8-L8 -> R$ 3,500.00 | N8: =IF(G8="Custo",IF(L8>K8,"Acima do previsto",IF(L8=K8,"Dentro do previsto","Abaixo do previsto")),"") -> Abaixo do previsto | O8: R$ 498,789.54 | P8: 0 | Q8: =P8-L8 -> -R$ 38,500.00 | R8: 2026-02-25
C9: ORC-002 | D9: PROJ-011 | E9: =IFERROR(VLOOKUP(tbOrcamento[[#This Row],[Cod_Projeto]],tbProjetos[[Cod_Projeto]:[Projeto]],2,0),"") -> Expansão Filial Norte | F9: 2026-02-15 | G9: Custo | H9: Software | I9: Licença plataforma gestão | J9: SAP Brasil | K9: R$ 28,000.00 | L9: R$ 31,200.00 | M9: =K9-L9 -> -R$ 3,200.00 | N9: =IF(G9="Custo",IF(L9>K9,"Acima do previsto",IF(L9=K9,"Dentro do previsto","Abaixo do previsto")),"") -> Acima do previsto | O9: 0 | P9: 0 | Q9: =P9-L9 -> -R$ 31,200.00 | R9: 2026-02-25
C10: ORC-003 | D10: PROJ-011 | E10: =IFERROR(VLOOKUP(tbOrcamento[[#This Row],[Cod_Projeto]],tbProjetos[[Cod_Projeto]:[Projeto]],2,0),"") -> Expansão Filial Norte | F10: 2026-03-01 | G10: Custo | H10: Terceiros | I10: Consultoria especializada expansão | J10: Consultoria Norte Ltda | K10: R$ 55,000.00 | L10: R$ 48,200.00 | M10: R$ 6,800.00 | N10: Abaixo do previsto | O10: 0 | P10: 0 | Q10: -R$ 48,200.00 | R10: 2026-03-28
C11: ORC-004 | D11: PROJ-014 | E11: =IFERROR(VLOOKUP(tbOrcamento[[#This Row],[Cod_Projeto]],tbProjetos[[Cod_Projeto]:[Projeto]],2,0),"") -> Sistema de Tickets | F11: 2026-01-18 | G11: Custo | H11: Mão de obra | I11: Desenvolvimento módulo tickets | J11: Interno | K11: R$ 18,000.00 | L11: R$ 16,500.00 | M11: R$ 1,500.00 | N11: Abaixo do previsto | O11: R$ 68,614.67 | P11: 0 | Q11: -R$ 16,500.00 | R11: 2026-01-18
C12: ORC-005 | D12: PROJ-014 | E12: =IFERROR(VLOOKUP(tbOrcamento[[#This Row],[Cod_Projeto]],tbProjetos[[Cod_Projeto]:[Projeto]],2,0),"") -> Sistema de Tickets | F12: 2026-02-02 | G12: Custo | H12: Software | I12: Infraestrutura cloud | J12: AWS Brasil | K12: R$ 12,000.00 | L12: R$ 11,500.00 | M12: R$ 500.00 | N12: Abaixo do previsto | O12: 0 | P12: 0 | Q12: -R$ 11,500.00 | R12: 2026-02-25
C13: ORC-006 | D13: PROJ-017 | E13: =IFERROR(VLOOKUP(tbOrcamento[[#This Row],[Cod_Projeto]],tbProjetos[[Cod_Projeto]:[Projeto]],2,0),"") -> Chatbot Atendimento | F13: 2025-12-19 | G13: Custo | H13: Terceiros | I13: Desenvolvimento chatbot IA | J13: TechBot Soluções | K13: R$ 35,000.00 | L13: R$ 33,800.00 | M13: R$ 1,200.00 | N13: Abaixo do previsto | O13: R$ 193,447.67 | P13: 0 | Q13: -R$ 33,800.00 | R13: 2026-01-18
C14: ORC-007 | D14: PROJ-017 | E14: =IFERROR(VLOOKUP(tbOrcamento[[#This Row],[Cod_Projeto]],tbProjetos[[Cod_Projeto]:[Projeto]],2,0),"") -> Chatbot Atendimento | F14: 2026-01-18 | G14: Custo | H14: Mão de obra | I14: Integração API atendimento | J14: Interno | K14: R$ 22,000.00 | L14: R$ 19,800.00 | M14: R$ 2,200.00 | N14: Abaixo do previsto | O14: 0 | P14: 0 | Q14: -R$ 19,800.00 | R14: 2026-01-18
C15: ORC-008 | D15: PROJ-019 | E15: =IFERROR(VLOOKUP(tbOrcamento[[#This Row],[Cod_Projeto]],tbProjetos[[Cod_Projeto]:[Projeto]],2,0),"") -> Projeto Sustentabilidade | F15: 2026-01-01 | G15: Custo | H15: Mão de obra | I15: Equipe análise sustentabilidade | J15: Interno | K15: R$ 48,000.00 | L15: R$ 44,700.00 | M15: R$ 3,300.00 | N15: Abaixo do previsto | O15: R$ 551,903.23 | P15: 0 | Q15: -R$ 44,700.00 | R15: 2026-01-29
C16: ORC-009 | D16: PROJ-019 | E16: =IFERROR(VLOOKUP(tbOrcamento[[#This Row],[Cod_Projeto]],tbProjetos[[Cod_Projeto]:[Projeto]],2,0),"") -> Projeto Sustentabilidade | F16: 2026-01-29 | G16: Custo | H16: Terceiros | I16: Auditoria ambiental externa | J16: EcoVeritas Consultoria | K16: R$ 30,000.00 | L16: 0 | M16: R$ 30,000.00 | N16: Abaixo do previsto | O16: 0 | P16: 0 | Q16: 0 | R16: 2026-02-25
C17: ORC-010 | D17: PROJ-021 | E17: =IFERROR(VLOOKUP(tbOrcamento[[#This Row],[Cod_Projeto]],tbProjetos[[Cod_Projeto]:[Projeto]],2,0),"") -> Redesign Marca | F17: 2025-12-07 | G17: Custo | H17: Mão de obra | I17: Equipe design identidade visual | J17: Interno | K17: R$ 62,000.00 | L17: R$ 58,900.00 | M17: R$ 3,100.00 | N17: Abaixo do previsto | O17: R$ 377,853.82 | P17: 0 | Q17: -R$ 58,900.00 | R17: 2026-01-01
C18: ORC-011 | D18: PROJ-021 | E18: =IFERROR(VLOOKUP(tbOrcamento[[#This Row],[Cod_Projeto]],tbProjetos[[Cod_Projeto]:[Projeto]],2,0),"") -> Redesign Marca | F18: 2026-01-01 | G18: Custo | H18: Terceiros | I18: Fotografia e produção de conteúdo | J18: Visual Studio MG | K18: R$ 18,500.00 | L18: R$ 21,000.00 | M18: -R$ 2,500.00 | N18: Acima do previsto | O18: 0 | P18: 0 | Q18: -R$ 21,000.00 | R18: 2026-01-29
C19: ORC-012 | D19: PROJ-016 | E19: =IFERROR(VLOOKUP(tbOrcamento[[#This Row],[Cod_Projeto]],tbProjetos[[Cod_Projeto]:[Projeto]],2,0),"") -> Portal do Fornecedor | F19: 2025-12-19 | G19: Custo | H19: Software | I19: Licença ERP fornecedores | J19: Oracle Brasil | K19: R$ 45,000.00 | L19: 0 | M19: R$ 45,000.00 | N19: Abaixo do previsto | O19: R$ 389,124.08 | P19: 0 | Q19: 0 | R19: 2026-01-18
C20: ORC-013 | D20: PROJ-016 | E20: =IFERROR(VLOOKUP(tbOrcamento[[#This Row],[Cod_Projeto]],tbProjetos[[Cod_Projeto]:[Projeto]],2,0),"") -> Portal do Fornecedor | F20: 2026-01-18 | G20: Custo | H20: Mão de obra | I20: Desenvolvimento portal fornecedores | J20: Interno | K20: R$ 38,000.00 | L20: R$ 25,012.58 | M20: R$ 12,987.42 | N20: Abaixo do previsto | O20: 0 | P20: 0 | Q20: -R$ 25,012.58 | R20: 2026-01-18
C21: ORC-014 | D21: PROJ-023 | E21: =IFERROR(VLOOKUP(tbOrcamento[[#This Row],[Cod_Projeto]],tbProjetos[[Cod_Projeto]:[Projeto]],2,0),"") -> Otimização Logística | F21: 2025-12-07 | G21: Custo | H21: Terceiros | I21: Análise de rotas logísticas | J21: LogTech Brasil | K21: R$ 52,000.00 | L21: R$ 44,514.24 | M21: R$ 7,485.76 | N21: Abaixo do previsto | O21: R$ 381,632.69 | P21: 0 | Q21: -R$ 44,514.24 | R21: 2026-01-01
C22: ORC-015 | D22: PROJ-023 | E22: =IFERROR(VLOOKUP(tbOrcamento[[#This Row],[Cod_Projeto]],tbProjetos[[Cod_Projeto]:[Projeto]],2,0),"") -> Otimização Logística | F22: 2026-01-01 | G22: Custo | H22: Software | I22: Sistema WMS integração | J22: Totvs S.A. | K22: R$ 35,000.00 | L22: 0 | M22: R$ 35,000.00 | N22: Abaixo do previsto | O22: 0 | P22: 0 | Q22: 0 | R22: 2026-01-29

Sheet Ocorrencias (hidden)
C2: REGISTRO DE OCORRÊNCIAS
C7: Cod_Ocorrencia | D7: Data_Registro | E7: Cod_Projeto | F7: Projeto | G7: Tipo_Registro | H7: Descricao | I7: Impacto | J7: Responsavel | K7: Acao_Definida | L7: Status | M7: Data_Limite | N7: Observacoes
C8: OCO-001 | D8: 2026-02-02 | E8: PROJ-011 | F8: Expansão Filial Norte | G8: Risco | H8: Risco de atraso na entrega por escassez de mão de obra especializada na região Norte | I8: Alto | J8: Ricardo Monteiro | K8: Contratar equipe temporária e acionar parceiros locais | L8: Em andamento | M8: 2026-03-28
C9: OCO-002 | D9: 2026-01-18 | E9: PROJ-014 | F9: Sistema de Tickets | G9: Problema | H9: Instabilidade no ambiente de testes afetando homologação do módulo de tickets | I9: Médio | J9: Felipe Neves | K9: Reinicialização do servidor e abertura de chamado com fornecedor de infra | L9: Resolvida | M9: 2026-01-25
C10: OCO-003 | D10: 2025-12-19 | E10: PROJ-017 | F10: Chatbot Atendimento | G10: Mudança | H10: Solicitação de inclusão de canal WhatsApp Business no escopo do chatbot | I10: Alto | J10: André Machado | K10: Avaliar impacto no cronograma e orçamento antes de aprovar a mudança | L10: Pendente | M10: 2026-01-08
C11: OCO-004 | D11: 2026-01-01 | E11: PROJ-019 | F11: Projeto Sustentabilidade | G11: Risco | H11: Parecer ambiental negativo pode inviabilizar certificados do projeto de sustentabilidade | I11: Alto | J11: Diego Fonseca | K11: Engajar consultoria ambiental e rever plano de ação com stakeholders | L11: Em andamento | M11: 2026-02-25
C12: OCO-005 | D12: 2025-12-07 | E12: PROJ-021 | F12: Redesign Marca | G12: Alinhamento | H12: Reunião de alinhamento com direção sobre novas diretrizes de identidade visual da marca | I12: Baixo | J12: Felipe Neves | K12: Documentação das diretrizes aprovadas e distribuição para equipe criativa | L12: Resolvida | M12: 2025-12-14
C13: OCO-006 | D13: 2026-01-18 | E13: PROJ-016 | F13: Portal do Fornecedor | G13: Pendência | H13: Documentação de homologação do portal pendente de aprovação pelo cliente Magma Siderurgia | I13: Médio | J13: Camila Duarte | K13: Enviar lembretes formais e escalar para gerente de conta | L13: Em andamento | M13: 2026-03-01
C14: OCO-007 | D14: 2026-01-01 | E14: PROJ-023 | F14: Otimização Logística | G14: Problema | H14: Dados de rotas logísticas divergentes entre sistema legado e nova plataforma | I14: Médio | J14: Camila Duarte | K14: Mapear inconsistências e executar processo de conciliação de dados | L14: Em andamento | M14: 2026-02-02

Sheet Relatorios (hidden)
C2: RELATÓRIOS E ACOMPANHAMENTO
C7: Total de Projetos | F7: Projetos Ativos | I7: Projetos Atrasados | L7: % Médio Conclusão | O7: Receita Total | R7: Margem Real Total
C8: =Calculos!D7 -> 67 | F8: =Calculos!D8 -> 44 | I8: =Calculos!D10 -> 39 | L8: =Calculos!D16 -> 51% | O8: =Calculos!D11 -> 30,024,312.37 | R8: =Calculos!D15 -> 20,682,845.60
C41: PROJETOS CRÍTICOS - TOP 10
C42: Projeto | D42: Responsável | E42: Prazo | F42: Situação Prazo | G42: % Conclusão | H42: Margem Real
C43: =IFERROR(INDEX(tbProjetos[Projeto],1),"") -> Migração de ERP | D43: =IF(C43="","",INDEX(tbProjetos[Responsavel],1)) -> Ricardo Monteiro | E43: =IF(C43="","",INDEX(tbProjetos[Prazo],1)) -> 2024-06-30 | F43: =IF(C43="","",INDEX(tbProjetos[Situacao_Prazo],1)) -> Finalizado | G43: =IF(C43="","",INDEX(tbProjetos[Perc_Conclusao],1)) -> 100% | H43: =IF(C43="","",INDEX(tbProjetos[Margem_Real],1)) -> R$ 77,806.94
C44: =IFERROR(INDEX(tbProjetos[Projeto],2),"") -> Novo Portal Web | D44: =IF(C44="","",INDEX(tbProjetos[Responsavel],2)) -> Camila Duarte | E44: =IF(C44="","",INDEX(tbProjetos[Prazo],2)) -> 2024-05-26 | F44: =IF(C44="","",INDEX(tbProjetos[Situacao_Prazo],2)) -> Finalizado | G44: =IF(C44="","",INDEX(tbProjetos[Perc_Conclusao],2)) -> 100% | H44: =IF(C44="","",INDEX(tbProjetos[Margem_Real],2)) -> R$ 80,763.01
C45: =IFERROR(INDEX(tbProjetos[Projeto],3),"") -> App Mobile Vendas | D45: =IF(C45="","",INDEX(tbProjetos[Responsavel],3)) -> André Machado | E45: =IF(C45="","",INDEX(tbProjetos[Prazo],3)) -> 2024-09-10 | F45: =IF(C45="","",INDEX(tbProjetos[Situacao_Prazo],3)) -> Finalizado | G45: =IF(C45="","",INDEX(tbProjetos[Perc_Conclusao],3)) -> 100% | H45: =IF(C45="","",INDEX(tbProjetos[Margem_Real],3)) -> R$ 107,083.10
C46: =IFERROR(INDEX(tbProjetos[Projeto],4),"") -> Automação de RH | D46: =IF(C46="","",INDEX(tbProjetos[Responsavel],4)) -> Beatriz Alves | E46: =IF(C46="","",INDEX(tbProjetos[Prazo],4)) -> 2024-04-24 | F46: =IF(C46="","",INDEX(tbProjetos[Situacao_Prazo],4)) -> Finalizado | G46: =IF(C46="","",INDEX(tbProjetos[Perc_Conclusao],4)) -> 100% | H46: =IF(C46="","",INDEX(tbProjetos[Margem_Real],4)) -> R$ 370,304.47
C47: =IFERROR(INDEX(tbProjetos[Projeto],5),"") -> BI Dashboard | D47: =IF(C47="","",INDEX(tbProjetos[Responsavel],5)) -> Diego Fonseca | E47: =IF(C47="","",INDEX(tbProjetos[Prazo],5)) -> 2024-11-08 | F47: =IF(C47="","",INDEX(tbProjetos[Situacao_Prazo],5)) -> Finalizado | G47: =IF(C47="","",INDEX(tbProjetos[Perc_Conclusao],5)) -> 100% | H47: =IF(C47="","",INDEX(tbProjetos[Margem_Real],5)) -> R$ 29,545.55
C48: =IFERROR(INDEX(tbProjetos[Projeto],6),"") -> Integração CRM | D48: =IF(C48="","",INDEX(tbProjetos[Responsavel],6)) -> Elisa Prado | E48: =IF(C48="","",INDEX(tbProjetos[Prazo],6)) -> 2024-07-05 | F48: =IF(C48="","",INDEX(tbProjetos[Situacao_Prazo],6)) -> Atrasado | G48: =IF(C48="","",INDEX(tbProjetos[Perc_Conclusao],6)) -> 5% | H48: =IF(C48="","",INDEX(tbProjetos[Margem_Real],6)) -> R$ 737,653.06
C49: =IFERROR(INDEX(tbProjetos[Projeto],7),"") -> Reforma Sede | D49: =IF(C49="","",INDEX(tbProjetos[Responsavel],7)) -> Felipe Neves | E49: =IF(C49="","",INDEX(tbProjetos[Prazo],7)) -> 2024-07-01 | F49: =IF(C49="","",INDEX(tbProjetos[Situacao_Prazo],7)) -> Finalizado | G49: =IF(C49="","",INDEX(tbProjetos[Perc_Conclusao],7)) -> 100% | H49: =IF(C49="","",INDEX(tbProjetos[Margem_Real],7)) -> R$ 203,247.19
C50: =IFERROR(INDEX(tbProjetos[Projeto],8),"") -> Campanha Digital Q1 | D50: =IF(C50="","",INDEX(tbProjetos[Responsavel],8)) -> Ricardo Monteiro | E50: =IF(C50="","",INDEX(tbProjetos[Prazo],8)) -> 2024-10-22 | F50: =IF(C50="","",INDEX(tbProjetos[Situacao_Prazo],8)) -> Finalizado | G50: =IF(C50="","",INDEX(tbProjetos[Perc_Conclusao],8)) -> 100% | H50: =IF(C50="","",INDEX(tbProjetos[Margem_Real],8)) -> R$ 56,029.19
C51: =IFERROR(INDEX(tbProjetos[Projeto],9),"") -> Auditoria Fiscal | D51: =IF(C51="","",INDEX(tbProjetos[Responsavel],9)) -> Camila Duarte | E51: =IF(C51="","",INDEX(tbProjetos[Prazo],9)) -> 2024-06-19 | F51: =IF(C51="","",INDEX(tbProjetos[Situacao_Prazo],9)) -> Atrasado | G51: =IF(C51="","",INDEX(tbProjetos[Perc_Conclusao],9)) -> 30% | H51: =IF(C51="","",INDEX(tbProjetos[Margem_Real],9)) -> R$ 591,218.46
C52: =IFERROR(INDEX(tbProjetos[Projeto],10),"") -> Consultoria ISO 9001 | D52: =IF(C52="","",INDEX(tbProjetos[Responsavel],10)) -> André Machado | E52: =IF(C52="","",INDEX(tbProjetos[Prazo],10)) -> 2024-04-19 | F52: =IF(C52="","",INDEX(tbProjetos[Situacao_Prazo],10)) -> Finalizado | G52: =IF(C52="","",INDEX(tbProjetos[Perc_Conclusao],10)) -> 100% | H52: =IF(C52="","",INDEX(tbProjetos[Margem_Real],10)) -> R$ 10,370.41

Sheet Cad_Apoio (hidden)
C2: CADASTRO DE APOIO — Listas de Validação
C6: Status do Projeto | E6: Prioridade | G6: Categoria de Projeto | I6: Status de Tarefa | K6: Categoria de Custo | M6: Tipo de Registro
C7: Planejado | E7: Baixa | G7: Implantação | I7: Não iniciada | K7: Mão de obra | M7: Risco
C8: Em andamento | E8: Média | G8: Desenvolvimento | I8: Em andamento | K8: Software | M8: Problema
C9: Em pausa | E9: Alta | G9: Consultoria | I9: Concluída | K9: Material | M9: Mudança
C10: Concluído | E10: Crítica | G10: Marketing | I10: Atrasada | K10: Terceiros | M10: Alinhamento
C11: Cancelado | G11: Interno | I11: Suspensa | K11: Transporte | M11: Pendência
G12: Manutenção | K12: Administrativo
K13: Outros

Sheet Gantt (hidden)
C6: PROJETO | D6: DATA INÍCIO | I6: 💡 Ajuste DATA INÍCIO (D6) para navegar entre períodos
C7: PROJ-001 | D7: =IFERROR(MIN(AM9:AM48),TODAY()) -> 2024-02-28 | I7: =TEXT($D$7,"ddd dd/mm")&" → "&TEXT($D$7+29,"ddd dd/mm") -> Wed 28/02 → Thu 28/03
C8: Cód. Item | D8: Projeto | E8: Etapa | F8: Tarefa | G8: Responsável | H8: Status | I8: =$D$7+0 -> 2024-02-28 | J8: =$D$7+1 -> 2024-02-29 | K8: =$D$7+2 -> 2024-03-01 | L8: =$D$7+3 -> 2024-03-02 | M8: =$D$7+4 -> 2024-03-03 | N8: =$D$7+5 -> 2024-03-04 | O8: =$D$7+6 -> 2024-03-05 | P8: =$D$7+7 -> 2024-03-06 | Q8: =$D$7+8 -> 2024-03-07 | R8: =$D$7+9 -> 2024-03-08 | S8: =$D$7+10 -> 2024-03-09 | T8: =$D$7+11 -> 2024-03-10 | U8: =$D$7+12 -> 2024-03-11 | V8: =$D$7+13 -> 2024-03-12 | W8: =$D$7+14 -> 2024-03-13 | X8: =$D$7+15 -> 2024-03-14 | Y8: =$D$7+16 -> 2024-03-15 | Z8: =$D$7+17 -> 2024-03-16 | AA8: =$D$7+18 -> 2024-03-17 | AB8: =$D$7+19 -> 2024-03-18 | AC8: =$D$7+20 -> 2024-03-19 | AD8: =$D$7+21 -> 2024-03-20 | AE8: =$D$7+22 -> 2024-03-21 | AF8: =$D$7+23 -> 2024-03-22 | AG8: =$D$7+24 -> 2024-03-23 | AH8: =$D$7+25 -> 2024-03-24 | AI8: =$D$7+26 -> 2024-03-25 | AJ8: =$D$7+27 -> 2024-03-26 | AK8: =$D$7+28 -> 2024-03-27 | AL8: =$D$7+29 -> 2024-03-28
C9: =IFERROR(INDEX(Cronograma!C:C,_xlfn.AGGREGATE(15,6,ROW(Cronograma!$D$8:$D$122)/(Cronograma!$D$8:$D$122=$C$7),1)),"") -> TAR-0001 | D9: =IFERROR(INDEX(Cronograma!E:E,_xlfn.AGGREGATE(15,6,ROW(Cronograma!$D$8:$D$122)/(Cronograma!$D$8:$D$122=$C$7),1)),"") -> Migração de ERP | E9: =IFERROR(INDEX(Cronograma!F:F,_xlfn.AGGREGATE(15,6,ROW(Cronograma!$D$8:$D$122)/(Cronograma!$D$8:$D$122=$C$7),1)),"") -> Planejamento | F9: =IFERROR(INDEX(Cronograma!G:G,_xlfn.AGGREGATE(15,6,ROW(Cronograma!$D$8:$D$122)/(Cronograma!$D$8:$D$122=$C$7),1)),"") -> Definição de escopo | G9: =IFERROR(INDEX(Cronograma!H:H,_xlfn.AGGREGATE(15,6,ROW(Cronograma!$D$8:$D$122)/(Cronograma!$D$8:$D$122=$C$7),1)),"") -> Camila Duarte | H9: =IFERROR(INDEX(Cronograma!O:O,_xlfn.AGGREGATE(15,6,ROW(Cronograma!$D$8:$D$122)/(Cronograma!$D$8:$D$122=$C$7),1)),"") -> Concluída | AM9: =IFERROR(INDEX(Cronograma!I:I,_xlfn.AGGREGATE(15,6,ROW(Cronograma!$D$8:$D$122)/(Cronograma!$D$8:$D$122=$C$7),1)),"") -> 2024-02-28 | AN9: =IFERROR(INDEX(Cronograma!J:J,_xlfn.AGGREGATE(15,6,ROW(Cronograma!$D$8:$D$122)/(Cronograma!$D$8:$D$122=$C$7),1)),"") -> 2024-03-06 | AO9: =IFERROR(INDEX(Cronograma!K:K,_xlfn.AGGREGATE(15,6,ROW(Cronograma!$D$8:$D$122)/(Cronograma!$D$8:$D$122=$C$7),1)),"") -> 2024-02-28 | AP9: =IFERROR(INDEX(Cronograma!L:L,_xlfn.AGGREGATE(15,6,ROW(Cronograma!$D$8:$D$122)/(Cronograma!$D$8:$D$122=$C$7),1)),"") -> 2024-03-11 | AQ9: =IFERROR(INDEX(Cronograma!P:P,_xlfn.AGGREGATE(15,6,ROW(Cronograma!$D$8:$D$122)/(Cronograma!$D$8:$D$122=$C$7),1)),"") -> 1 | AR9: =IFERROR(INDEX(Cronograma!R:R,_xlfn.AGGREGATE(15,6,ROW(Cronograma!$D$8:$D$122)/(Cronograma!$D$8:$D$122=$C$7),1)),"") -> 5
C10: =IFERROR(INDEX(Cronograma!C:C,_xlfn.AGGREGATE(15,6,ROW(Cronograma!$D$8:$D$122)/(Cronograma!$D$8:$D$122=$C$7),2)),"") -> TAR-0002 | D10: =IFERROR(INDEX(Cronograma!E:E,_xlfn.AGGREGATE(15,6,ROW(Cronograma!$D$8:$D$122)/(Cronograma!$D$8:$D$122=$C$7),2)),"") -> Migração de ERP | E10: =IFERROR(INDEX(Cronograma!F:F,_xlfn.AGGREGATE(15,6,ROW(Cronograma!$D$8:$D$122)/(Cronograma!$D$8:$D$122=$C$7),2)),"") -> Execução | F10: =IFERROR(INDEX(Cronograma!G:G,_xlfn.AGGREGATE(15,6,ROW(Cronograma!$D$8:$D$122)/(Cronograma!$D$8:$D$122=$C$7),2)),"") -> Desenvolvimento do protótipo | G10: =IFERROR(INDEX(Cronograma!H:H,_xlfn.AGGREGATE(15,6,ROW(Cronograma!$D$8:$D$122)/(Cronograma!$D$8:$D$122=$C$7),2)),"") -> André Machado | H10: =IFERROR(INDEX(Cronograma!O:O,_xlfn.AGGREGATE(15,6,ROW(Cronograma!$D$8:$D$122)/(Cronograma!$D$8:$D$122=$C$7),2)),"") -> Concluída | AM10: =IFERROR(INDEX(Cronograma!I:I,_xlfn.AGGREGATE(15,6,ROW(Cronograma!$D$8:$D$122)/(Cronograma!$D$8:$D$122=$C$7),2)),"") -> 2024-03-07 | AN10: =IFERROR(INDEX(Cronograma!J:J,_xlfn.AGGREGATE(15,6,ROW(Cronograma!$D$8:$D$122)/(Cronograma!$D$8:$D$122=$C$7),2)),"") -> 2024-03-10 | AO10: =IFERROR(INDEX(Cronograma!K:K,_xlfn.AGGREGATE(15,6,ROW(Cronograma!$D$8:$D$122)/(Cronograma!$D$8:$D$122=$C$7),2)),"") -> 2024-03-07 | AP10: =IFERROR(INDEX(Cronograma!L:L,_xlfn.AGGREGATE(15,6,ROW(Cronograma!$D$8:$D$122)/(Cronograma!$D$8:$D$122=$C$7),2)),"") -> 2024-03-12 | AQ10: =IFERROR(INDEX(Cronograma!P:P,_xlfn.AGGREGATE(15,6,ROW(Cronograma!$D$8:$D$122)/(Cronograma!$D$8:$D$122=$C$7),2)),"") -> 1 | AR10: =IFERROR(INDEX(Cronograma!R:R,_xlfn.AGGREGATE(15,6,ROW(Cronograma!$D$8:$D$122)/(Cronograma!$D$8:$D$122=$C$7),2)),"") -> 2
C11: =IFERROR(INDEX(Cronograma!C:C,_xlfn.AGGREGATE(15,6,ROW(Cronograma!$D$8:$D$122)/(Cronograma!$D$8:$D$122=$C$7),3)),"") -> TAR-0003 | D11: =IFERROR(INDEX(Cronograma!E:E,_xlfn.AGGREGATE(15,6,ROW(Cronograma!$D$8:$D$122)/(Cronograma!$D$8:$D$122=$C$7),3)),"") -> Migração de ERP | E11: =IFERROR(INDEX(Cronograma!F:F,_xlfn.AGGREGATE(15,6,ROW(Cronograma!$D$8:$D$122)/(Cronograma!$D$8:$D$122=$C$7),3)),"") -> Testes | F11: =IFERROR(INDEX(Cronograma!G:G,_xlfn.AGGREGATE(15,6,ROW(Cronograma!$D$8:$D$122)/(Cronograma!$D$8:$D$122=$C$7),3)),"") -> Testes de integração | G11: =IFERROR(INDEX(Cronograma!H:H,_xlfn.AGGREGATE(15,6,ROW(Cronograma!$D$8:$D$122)/(Cronograma!$D$8:$D$122=$C$7),3)),"") -> Camila Duarte | H11: =IFERROR(INDEX(Cronograma!O:O,_xlfn.AGGREGATE(15,6,ROW(Cronograma!$D$8:$D$122)/(Cronograma!$D$8:$D$122=$C$7),3)),"") -> Concluída | AM11: =IFERROR(INDEX(Cronograma!I:I,_xlfn.AGGREGATE(15,6,ROW(Cronograma!$D$8:$D$122)/(Cronograma!$D$8:$D$122=$C$7),3)),"") -> 2024-03-08 | AN11: =IFERROR(INDEX(Cronograma!J:J,_xlfn.AGGREGATE(15,6,ROW(Cronograma!$D$8:$D$122)/(Cronograma!$D$8:$D$122=$C$7),3)),"") -> 2024-03-15 | AO11: =IFERROR(INDEX(Cronograma!K:K,_xlfn.AGGREGATE(15,6,ROW(Cronograma!$D$8:$D$122)/(Cronograma!$D$8:$D$122=$C$7),3)),"") -> 2024-03-11 | AP11: =IFERROR(INDEX(Cronograma!L:L,_xlfn.AGGREGATE(15,6,ROW(Cronograma!$D$8:$D$122)/(Cronograma!$D$8:$D$122=$C$7),3)),"") -> 2024-03-14 | AQ11: =IFERROR(INDEX(Cronograma!P:P,_xlfn.AGGREGATE(15,6,ROW(Cronograma!$D$8:$D$122)/(Cronograma!$D$8:$D$122=$C$7),3)),"") -> 1 | AR11: =IFERROR(INDEX(Cronograma!R:R,_xlfn.AGGREGATE(15,6,ROW(Cronograma!$D$8:$D$122)/(Cronograma!$D$8:$D$122=$C$7),3)),"") -> 0
C12: =IFERROR(INDEX(Cronograma!C:C,_xlfn.AGGREGATE(15,6,ROW(Cronograma!$D$8:$D$122)/(Cronograma!$D$8:$D$122=$C$7),4)),"") -> TAR-0004 | D12: =IFERROR(INDEX(Cronograma!E:E,_xlfn.AGGREGATE(15,6,ROW(Cronograma!$D$8:$D$122)/(Cronograma!$D$8:$D$122=$C$7),4)),"") -> Migração de ERP | E12: =IFERROR(INDEX(Cronograma!F:F,_xlfn.AGGREGATE(15,6,ROW(Cronograma!$D$8:$D$122)/(Cronograma!$D$8:$D$122=$C$7),4)),"") -> Implantação | F12: =IFERROR(INDEX(Cronograma!G:G,_xlfn.AGGREGATE(15,6,ROW(Cronograma!$D$8:$D$122)/(Cronograma!$D$8:$D$122=$C$7),4)),"") -> Preparação do ambiente produtivo | G12: =IFERROR(INDEX(Cronograma!H:H,_xlfn.AGGREGATE(15,6,ROW(Cronograma!$D$8:$D$122)/(Cronograma!$D$8:$D$122=$C$7),4)),"") -> Felipe Neves | H12: =IFERROR(INDEX(Cronograma!O:O,_xlfn.AGGREGATE(15,6,ROW(Cronograma!$D$8:$D$122)/(Cronograma!$D$8:$D$122=$C$7),4)),"") -> Concluída | AM12: =IFERROR(INDEX(Cronograma!I:I,_xlfn.AGGREGATE(15,6,ROW(Cronograma!$D$8:$D$122)/(Cronograma!$D$8:$D$122=$C$7),4)),"") -> 2024-03-12 | AN12: =IFERROR(INDEX(Cronograma!J:J,_xlfn.AGGREGATE(15,6,ROW(Cronograma!$D$8:$D$122)/(Cronograma!$D$8:$D$122=$C$7),4)),"") -> 2024-03-20 | AO12: =IFERROR(INDEX(Cronograma!K:K,_xlfn.AGGREGATE(15,6,ROW(Cronograma!$D$8:$D$122)/(Cronograma!$D$8:$D$122=$C$7),4)),"") -> 2024-03-13 | AP12: =IFERROR(INDEX(Cronograma!L:L,_xlfn.AGGREGATE(15,6,ROW(Cronograma!$D$8:$D$122)/(Cronograma!$D$8:$D$122=$C$7),4)),"") -> 2024-03-20 | AQ12: =IFERROR(INDEX(Cronograma!P:P,_xlfn.AGGREGATE(15,6,ROW(Cronograma!$D$8:$D$122)/(Cronograma!$D$8:$D$122=$C$7),4)),"") -> 1 | AR12: =IFERROR(INDEX(Cronograma!R:R,_xlfn.AGGREGATE(15,6,ROW(Cronograma!$D$8:$D$122)/(Cronograma!$D$8:$D$122=$C$7),4)),"") -> 0
C13: =IFERROR(INDEX(Cronograma!C:C,_xlfn.AGGREGATE(15,6,ROW(Cronograma!$D$8:$D$122)/(Cronograma!$D$8:$D$122=$C$7),5)),"") -> TAR-0005 | D13: =IFERROR(INDEX(Cronograma!E:E,_xlfn.AGGREGATE(15,6,ROW(Cronograma!$D$8:$D$122)/(Cronograma!$D$8:$D$122=$C$7),5)),"") -> Migração de ERP | E13: =IFERROR(INDEX(Cronograma!F:F,_xlfn.AGGREGATE(15,6,ROW(Cronograma!$D$8:$D$122)/(Cronograma!$D$8:$D$122=$C$7),5)),"") -> Encerramento | F13: =IFERROR(INDEX(Cronograma!G:G,_xlfn.AGGREGATE(15,6,ROW(Cronograma!$D$8:$D$122)/(Cronograma!$D$8:$D$122=$C$7),5)),"") -> Encerramento administrativo | G13: =IFERROR(INDEX(Cronograma!H:H,_xlfn.AGGREGATE(15,6,ROW(Cronograma!$D$8:$D$122)/(Cronograma!$D$8:$D$122=$C$7),5)),"") -> Camila Duarte | H13: =IFERROR(INDEX(Cronograma!O:O,_xlfn.AGGREGATE(15,6,ROW(Cronograma!$D$8:$D$122)/(Cronograma!$D$8:$D$122=$C$7),5)),"") -> Concluída | AM13: =IFERROR(INDEX(Cronograma!I:I,_xlfn.AGGREGATE(15,6,ROW(Cronograma!$D$8:$D$122)/(Cronograma!$D$8:$D$122=$C$7),5)),"") -> 2024-03-21 | AN13: =IFERROR(INDEX(Cronograma!J:J,_xlfn.AGGREGATE(15,6,ROW(Cronograma!$D$8:$D$122)/(Cronograma!$D$8:$D$122=$C$7),5)),"") -> 2024-03-28 | AO13: =IFERROR(INDEX(Cronograma!K:K,_xlfn.AGGREGATE(15,6,ROW(Cronograma!$D$8:$D$122)/(Cronograma!$D$8:$D$122=$C$7),5)),"") -> 2024-03-21 | AP13: =IFERROR(INDEX(Cronograma!L:L,_xlfn.AGGREGATE(15,6,ROW(Cronograma!$D$8:$D$122)/(Cronograma!$D$8:$D$122=$C$7),5)),"") -> 2024-03-28 | AQ13: =IFERROR(INDEX(Cronograma!P:P,_xlfn.AGGREGATE(15,6,ROW(Cronograma!$D$8:$D$122)/(Cronograma!$D$8:$D$122=$C$7),5)),"") -> 1 | AR13: =IFERROR(INDEX(Cronograma!R:R,_xlfn.AGGREGATE(15,6,ROW(Cronograma!$D$8:$D$122)/(Cronograma!$D$8:$D$122=$C$7),5)),"") -> 0
C14: =IFERROR(INDEX(Cronograma!C:C,_xlfn.AGGREGATE(15,6,ROW(Cronograma!$D$8:$D$122)/(Cronograma!$D$8:$D$122=$C$7),6)),"") ->  | D14: =IFERROR(INDEX(Cronograma!E:E,_xlfn.AGGREGATE(15,6,ROW(Cronograma!$D$8:$D$122)/(Cronograma!$D$8:$D$122=$C$7),6)),"") ->  | E14: =IFERROR(INDEX(Cronograma!F:F,_xlfn.AGGREGATE(15,6,ROW(Cronograma!$D$8:$D$122)/(Cronograma!$D$8:$D$122=$C$7),6)),"") ->  | F14: =IFERROR(INDEX(Cronograma!G:G,_xlfn.AGGREGATE(15,6,ROW(Cronograma!$D$8:$D$122)/(Cronograma!$D$8:$D$122=$C$7),6)),"") ->  | G14: =IFERROR(INDEX(Cronograma!H:H,_xlfn.AGGREGATE(15,6,ROW(Cronograma!$D$8:$D$122)/(Cronograma!$D$8:$D$122=$C$7),6)),"") ->  | H14: =IFERROR(INDEX(Cronograma!O:O,_xlfn.AGGREGATE(15,6,ROW(Cronograma!$D$8:$D$122)/(Cronograma!$D$8:$D$122=$C$7),6)),"") ->  | AM14: =IFERROR(INDEX(Cronograma!I:I,_xlfn.AGGREGATE(15,6,ROW(Cronograma!$D$8:$D$122)/(Cronograma!$D$8:$D$122=$C$7),6)),"") ->  | AN14: =IFERROR(INDEX(Cronograma!J:J,_xlfn.AGGREGATE(15,6,ROW(Cronograma!$D$8:$D$122)/(Cronograma!$D$8:$D$122=$C$7),6)),"") ->  | AO14: =IFERROR(INDEX(Cronograma!K:K,_xlfn.AGGREGATE(15,6,ROW(Cronograma!$D$8:$D$122)/(Cronograma!$D$8:$D$122=$C$7),6)),"") ->  | AP14: =IFERROR(INDEX(Cronograma!L:L,_xlfn.AGGREGATE(15,6,ROW(Cronograma!$D$8:$D$122)/(Cronograma!$D$8:$D$122=$C$7),6)),"") ->  | AQ14: =IFERROR(INDEX(Cronograma!P:P,_xlfn.AGGREGATE(15,6,ROW(Cronograma!$D$8:$D$122)/(Cronograma!$D$8:$D$122=$C$7),6)),"") ->  | AR14: =IFERROR(INDEX(Cronograma!R:R,_xlfn.AGGREGATE(15,6,ROW(Cronograma!$D$8:$D$122)/(Cronograma!$D$8:$D$122=$C$7),6)),"") -> 
C15: =IFERROR(INDEX(Cronograma!C:C,_xlfn.AGGREGATE(15,6,ROW(Cronograma!$D$8:$D$122)/(Cronograma!$D$8:$D$122=$C$7),7)),"") ->  | D15: =IFERROR(INDEX(Cronograma!E:E,_xlfn.AGGREGATE(15,6,ROW(Cronograma!$D$8:$D$122)/(Cronograma!$D$8:$D$122=$C$7),7)),"") ->  | E15: =IFERROR(INDEX(Cronograma!F:F,_xlfn.AGGREGATE(15,6,ROW(Cronograma!$D$8:$D$122)/(Cronograma!$D$8:$D$122=$C$7),7)),"") ->  | F15: =IFERROR(INDEX(Cronograma!G:G,_xlfn.AGGREGATE(15,6,ROW(Cronograma!$D$8:$D$122)/(Cronograma!$D$8:$D$122=$C$7),7)),"") ->  | G15: =IFERROR(INDEX(Cronograma!H:H,_xlfn.AGGREGATE(15,6,ROW(Cronograma!$D$8:$D$122)/(Cronograma!$D$8:$D$122=$C$7),7)),"") ->  | H15: =IFERROR(INDEX(Cronograma!O:O,_xlfn.AGGREGATE(15,6,ROW(Cronograma!$D$8:$D$122)/(Cronograma!$D$8:$D$122=$C$7),7)),"") ->  | AM15: =IFERROR(INDEX(Cronograma!I:I,_xlfn.AGGREGATE(15,6,ROW(Cronograma!$D$8:$D$122)/(Cronograma!$D$8:$D$122=$C$7),7)),"") ->  | AN15: =IFERROR(INDEX(Cronograma!J:J,_xlfn.AGGREGATE(15,6,ROW(Cronograma!$D$8:$D$122)/(Cronograma!$D$8:$D$122=$C$7),7)),"") ->  | AO15: =IFERROR(INDEX(Cronograma!K:K,_xlfn.AGGREGATE(15,6,ROW(Cronograma!$D$8:$D$122)/(Cronograma!$D$8:$D$122=$C$7),7)),"") ->  | AP15: =IFERROR(INDEX(Cronograma!L:L,_xlfn.AGGREGATE(15,6,ROW(Cronograma!$D$8:$D$122)/(Cronograma!$D$8:$D$122=$C$7),7)),"") ->  | AQ15: =IFERROR(INDEX(Cronograma!P:P,_xlfn.AGGREGATE(15,6,ROW(Cronograma!$D$8:$D$122)/(Cronograma!$D$8:$D$122=$C$7),7)),"") ->  | AR15: =IFERROR(INDEX(Cronograma!R:R,_xlfn.AGGREGATE(15,6,ROW(Cronograma!$D$8:$D$122)/(Cronograma!$D$8:$D$122=$C$7),7)),"") -> 
C16: =IFERROR(INDEX(Cronograma!C:C,_xlfn.AGGREGATE(15,6,ROW(Cronograma!$D$8:$D$122)/(Cronograma!$D$8:$D$122=$C$7),8)),"") ->  | D16: =IFERROR(INDEX(Cronograma!E:E,_xlfn.AGGREGATE(15,6,ROW(Cronograma!$D$8:$D$122)/(Cronograma!$D$8:$D$122=$C$7),8)),"") ->  | E16: =IFERROR(INDEX(Cronograma!F:F,_xlfn.AGGREGATE(15,6,ROW(Cronograma!$D$8:$D$122)/(Cronograma!$D$8:$D$122=$C$7),8)),"") ->  | F16: =IFERROR(INDEX(Cronograma!G:G,_xlfn.AGGREGATE(15,6,ROW(Cronograma!$D$8:$D$122)/(Cronograma!$D$8:$D$122=$C$7),8)),"") ->  | G16: =IFERROR(INDEX(Cronograma!H:H,_xlfn.AGGREGATE(15,6,ROW(Cronograma!$D$8:$D$122)/(Cronograma!$D$8:$D$122=$C$7),8)),"") ->  | H16: =IFERROR(INDEX(Cronograma!O:O,_xlfn.AGGREGATE(15,6,ROW(Cronograma!$D$8:$D$122)/(Cronograma!$D$8:$D$122=$C$7),8)),"") ->  | AM16: =IFERROR(INDEX(Cronograma!I:I,_xlfn.AGGREGATE(15,6,ROW(Cronograma!$D$8:$D$122)/(Cronograma!$D$8:$D$122=$C$7),8)),"") ->  | AN16: =IFERROR(INDEX(Cronograma!J:J,_xlfn.AGGREGATE(15,6,ROW(Cronograma!$D$8:$D$122)/(Cronograma!$D$8:$D$122=$C$7),8)),"") ->  | AO16: =IFERROR(INDEX(Cronograma!K:K,_xlfn.AGGREGATE(15,6,ROW(Cronograma!$D$8:$D$122)/(Cronograma!$D$8:$D$122=$C$7),8)),"") ->  | AP16: =IFERROR(INDEX(Cronograma!L:L,_xlfn.AGGREGATE(15,6,ROW(Cronograma!$D$8:$D$122)/(Cronograma!$D$8:$D$122=$C$7),8)),"") ->  | AQ16: =IFERROR(INDEX(Cronograma!P:P,_xlfn.AGGREGATE(15,6,ROW(Cronograma!$D$8:$D$122)/(Cronograma!$D$8:$D$122=$C$7),8)),"") ->  | AR16: =IFERROR(INDEX(Cronograma!R:R,_xlfn.AGGREGATE(15,6,ROW(Cronograma!$D$8:$D$122)/(Cronograma!$D$8:$D$122=$C$7),8)),"") -> 
C17: =IFERROR(INDEX(Cronograma!C:C,_xlfn.AGGREGATE(15,6,ROW(Cronograma!$D$8:$D$122)/(Cronograma!$D$8:$D$122=$C$7),9)),"") ->  | D17: =IFERROR(INDEX(Cronograma!E:E,_xlfn.AGGREGATE(15,6,ROW(Cronograma!$D$8:$D$122)/(Cronograma!$D$8:$D$122=$C$7),9)),"") ->  | E17: =IFERROR(INDEX(Cronograma!F:F,_xlfn.AGGREGATE(15,6,ROW(Cronograma!$D$8:$D$122)/(Cronograma!$D$8:$D$122=$C$7),9)),"") ->  | F17: =IFERROR(INDEX(Cronograma!G:G,_xlfn.AGGREGATE(15,6,ROW(Cronograma!$D$8:$D$122)/(Cronograma!$D$8:$D$122=$C$7),9)),"") ->  | G17: =IFERROR(INDEX(Cronograma!H:H,_xlfn.AGGREGATE(15,6,ROW(Cronograma!$D$8:$D$122)/(Cronograma!$D$8:$D$122=$C$7),9)),"") ->  | H17: =IFERROR(INDEX(Cronograma!O:O,_xlfn.AGGREGATE(15,6,ROW(Cronograma!$D$8:$D$122)/(Cronograma!$D$8:$D$122=$C$7),9)),"") ->  | AM17: =IFERROR(INDEX(Cronograma!I:I,_xlfn.AGGREGATE(15,6,ROW(Cronograma!$D$8:$D$122)/(Cronograma!$D$8:$D$122=$C$7),9)),"") ->  | AN17: =IFERROR(INDEX(Cronograma!J:J,_xlfn.AGGREGATE(15,6,ROW(Cronograma!$D$8:$D$122)/(Cronograma!$D$8:$D$122=$C$7),9)),"") ->  | AO17: =IFERROR(INDEX(Cronograma!K:K,_xlfn.AGGREGATE(15,6,ROW(Cronograma!$D$8:$D$122)/(Cronograma!$D$8:$D$122=$C$7),9)),"") ->  | AP17: =IFERROR(INDEX(Cronograma!L:L,_xlfn.AGGREGATE(15,6,ROW(Cronograma!$D$8:$D$122)/(Cronograma!$D$8:$D$122=$C$7),9)),"") ->  | AQ17: =IFERROR(INDEX(Cronograma!P:P,_xlfn.AGGREGATE(15,6,ROW(Cronograma!$D$8:$D$122)/(Cronograma!$D$8:$D$122=$C$7),9)),"") ->  | AR17: =IFERROR(INDEX(Cronograma!R:R,_xlfn.AGGREGATE(15,6,ROW(Cronograma!$D$8:$D$122)/(Cronograma!$D$8:$D$122=$C$7),9)),"") -> 
C18: =IFERROR(INDEX(Cronograma!C:C,_xlfn.AGGREGATE(15,6,ROW(Cronograma!$D$8:$D$122)/(Cronograma!$D$8:$D$122=$C$7),10)),"") ->  | D18: =IFERROR(INDEX(Cronograma!E:E,_xlfn.AGGREGATE(15,6,ROW(Cronograma!$D$8:$D$122)/(Cronograma!$D$8:$D$122=$C$7),10)),"") ->  | E18: =IFERROR(INDEX(Cronograma!F:F,_xlfn.AGGREGATE(15,6,ROW(Cronograma!$D$8:$D$122)/(Cronograma!$D$8:$D$122=$C$7),10)),"") ->  | F18: =IFERROR(INDEX(Cronograma!G:G,_xlfn.AGGREGATE(15,6,ROW(Cronograma!$D$8:$D$122)/(Cronograma!$D$8:$D$122=$C$7),10)),"") ->  | G18: =IFERROR(INDEX(Cronograma!H:H,_xlfn.AGGREGATE(15,6,ROW(Cronograma!$D$8:$D$122)/(Cronograma!$D$8:$D$122=$C$7),10)),"") ->  | H18: =IFERROR(INDEX(Cronograma!O:O,_xlfn.AGGREGATE(15,6,ROW(Cronograma!$D$8:$D$122)/(Cronograma!$D$8:$D$122=$C$7),10)),"") ->  | AM18: =IFERROR(INDEX(Cronograma!I:I,_xlfn.AGGREGATE(15,6,ROW(Cronograma!$D$8:$D$122)/(Cronograma!$D$8:$D$122=$C$7),10)),"") ->  | AN18: =IFERROR(INDEX(Cronograma!J:J,_xlfn.AGGREGATE(15,6,ROW(Cronograma!$D$8:$D$122)/(Cronograma!$D$8:$D$122=$C$7),10)),"") ->  | AO18: =IFERROR(INDEX(Cronograma!K:K,_xlfn.AGGREGATE(15,6,ROW(Cronograma!$D$8:$D$122)/(Cronograma!$D$8:$D$122=$C$7),10)),"") ->  | AP18: =IFERROR(INDEX(Cronograma!L:L,_xlfn.AGGREGATE(15,6,ROW(Cronograma!$D$8:$D$122)/(Cronograma!$D$8:$D$122=$C$7),10)),"") ->  | AQ18: =IFERROR(INDEX(Cronograma!P:P,_xlfn.AGGREGATE(15,6,ROW(Cronograma!$D$8:$D$122)/(Cronograma!$D$8:$D$122=$C$7),10)),"") ->  | AR18: =IFERROR(INDEX(Cronograma!R:R,_xlfn.AGGREGATE(15,6,ROW(Cronograma!$D$8:$D$122)/(Cronograma!$D$8:$D$122=$C$7),10)),"") -> 
C19: =IFERROR(INDEX(Cronograma!C:C,_xlfn.AGGREGATE(15,6,ROW(Cronograma!$D$8:$D$122)/(Cronograma!$D$8:$D$122=$C$7),11)),"") ->  | D19: =IFERROR(INDEX(Cronograma!E:E,_xlfn.AGGREGATE(15,6,ROW(Cronograma!$D$8:$D$122)/(Cronograma!$D$8:$D$122=$C$7),11)),"") ->  | E19: =IFERROR(INDEX(Cronograma!F:F,_xlfn.AGGREGATE(15,6,ROW(Cronograma!$D$8:$D$122)/(Cronograma!$D$8:$D$122=$C$7),11)),"") ->  | F19: =IFERROR(INDEX(Cronograma!G:G,_xlfn.AGGREGATE(15,6,ROW(Cronograma!$D$8:$D$122)/(Cronograma!$D$8:$D$122=$C$7),11)),"") ->  | G19: =IFERROR(INDEX(Cronograma!H:H,_xlfn.AGGREGATE(15,6,ROW(Cronograma!$D$8:$D$122)/(Cronograma!$D$8:$D$122=$C$7),11)),"") ->  | H19: =IFERROR(INDEX(Cronograma!O:O,_xlfn.AGGREGATE(15,6,ROW(Cronograma!$D$8:$D$122)/(Cronograma!$D$8:$D$122=$C$7),11)),"") ->  | AM19: =IFERROR(INDEX(Cronograma!I:I,_xlfn.AGGREGATE(15,6,ROW(Cronograma!$D$8:$D$122)/(Cronograma!$D$8:$D$122=$C$7),11)),"") ->  | AN19: =IFERROR(INDEX(Cronograma!J:J,_xlfn.AGGREGATE(15,6,ROW(Cronograma!$D$8:$D$122)/(Cronograma!$D$8:$D$122=$C$7),11)),"") ->  | AO19: =IFERROR(INDEX(Cronograma!K:K,_xlfn.AGGREGATE(15,6,ROW(Cronograma!$D$8:$D$122)/(Cronograma!$D$8:$D$122=$C$7),11)),"") ->  | AP19: =IFERROR(INDEX(Cronograma!L:L,_xlfn.AGGREGATE(15,6,ROW(Cronograma!$D$8:$D$122)/(Cronograma!$D$8:$D$122=$C$7),11)),"") ->  | AQ19: =IFERROR(INDEX(Cronograma!P:P,_xlfn.AGGREGATE(15,6,ROW(Cronograma!$D$8:$D$122)/(Cronograma!$D$8:$D$122=$C$7),11)),"") ->  | AR19: =IFERROR(INDEX(Cronograma!R:R,_xlfn.AGGREGATE(15,6,ROW(Cronograma!$D$8:$D$122)/(Cronograma!$D$8:$D$122=$C$7),11)),"") -> 
C20: =IFERROR(INDEX(Cronograma!C:C,_xlfn.AGGREGATE(15,6,ROW(Cronograma!$D$8:$D$122)/(Cronograma!$D$8:$D$122=$C$7),12)),"") ->  | D20: =IFERROR(INDEX(Cronograma!E:E,_xlfn.AGGREGATE(15,6,ROW(Cronograma!$D$8:$D$122)/(Cronograma!$D$8:$D$122=$C$7),12)),"") ->  | E20: =IFERROR(INDEX(Cronograma!F:F,_xlfn.AGGREGATE(15,6,ROW(Cronograma!$D$8:$D$122)/(Cronograma!$D$8:$D$122=$C$7),12)),"") ->  | F20: =IFERROR(INDEX(Cronograma!G:G,_xlfn.AGGREGATE(15,6,ROW(Cronograma!$D$8:$D$122)/(Cronograma!$D$8:$D$122=$C$7),12)),"") ->  | G20: =IFERROR(INDEX(Cronograma!H:H,_xlfn.AGGREGATE(15,6,ROW(Cronograma!$D$8:$D$122)/(Cronograma!$D$8:$D$122=$C$7),12)),"") ->  | H20: =IFERROR(INDEX(Cronograma!O:O,_xlfn.AGGREGATE(15,6,ROW(Cronograma!$D$8:$D$122)/(Cronograma!$D$8:$D$122=$C$7),12)),"") ->  | AM20: =IFERROR(INDEX(Cronograma!I:I,_xlfn.AGGREGATE(15,6,ROW(Cronograma!$D$8:$D$122)/(Cronograma!$D$8:$D$122=$C$7),12)),"") ->  | AN20: =IFERROR(INDEX(Cronograma!J:J,_xlfn.AGGREGATE(15,6,ROW(Cronograma!$D$8:$D$122)/(Cronograma!$D$8:$D$122=$C$7),12)),"") ->  | AO20: =IFERROR(INDEX(Cronograma!K:K,_xlfn.AGGREGATE(15,6,ROW(Cronograma!$D$8:$D$122)/(Cronograma!$D$8:$D$122=$C$7),12)),"") ->  | AP20: =IFERROR(INDEX(Cronograma!L:L,_xlfn.AGGREGATE(15,6,ROW(Cronograma!$D$8:$D$122)/(Cronograma!$D$8:$D$122=$C$7),12)),"") ->  | AQ20: =IFERROR(INDEX(Cronograma!P:P,_xlfn.AGGREGATE(15,6,ROW(Cronograma!$D$8:$D$122)/(Cronograma!$D$8:$D$122=$C$7),12)),"") ->  | AR20: =IFERROR(INDEX(Cronograma!R:R,_xlfn.AGGREGATE(15,6,ROW(Cronograma!$D$8:$D$122)/(Cronograma!$D$8:$D$122=$C$7),12)),"") -> 
C21: =IFERROR(INDEX(Cronograma!C:C,_xlfn.AGGREGATE(15,6,ROW(Cronograma!$D$8:$D$122)/(Cronograma!$D$8:$D$122=$C$7),13)),"") ->  | D21: =IFERROR(INDEX(Cronograma!E:E,_xlfn.AGGREGATE(15,6,ROW(Cronograma!$D$8:$D$122)/(Cronograma!$D$8:$D$122=$C$7),13)),"") ->  | E21: =IFERROR(INDEX(Cronograma!F:F,_xlfn.AGGREGATE(15,6,ROW(Cronograma!$D$8:$D$122)/(Cronograma!$D$8:$D$122=$C$7),13)),"") ->  | F21: =IFERROR(INDEX(Cronograma!G:G,_xlfn.AGGREGATE(15,6,ROW(Cronograma!$D$8:$D$122)/(Cronograma!$D$8:$D$122=$C$7),13)),"") ->  | G21: =IFERROR(INDEX(Cronograma!H:H,_xlfn.AGGREGATE(15,6,ROW(Cronograma!$D$8:$D$122)/(Cronograma!$D$8:$D$122=$C$7),13)),"") ->  | H21: =IFERROR(INDEX(Cronograma!O:O,_xlfn.AGGREGATE(15,6,ROW(Cronograma!$D$8:$D$122)/(Cronograma!$D$8:$D$122=$C$7),13)),"") ->  | AM21: =IFERROR(INDEX(Cronograma!I:I,_xlfn.AGGREGATE(15,6,ROW(Cronograma!$D$8:$D$122)/(Cronograma!$D$8:$D$122=$C$7),13)),"") ->  | AN21: =IFERROR(INDEX(Cronograma!J:J,_xlfn.AGGREGATE(15,6,ROW(Cronograma!$D$8:$D$122)/(Cronograma!$D$8:$D$122=$C$7),13)),"") ->  | AO21: =IFERROR(INDEX(Cronograma!K:K,_xlfn.AGGREGATE(15,6,ROW(Cronograma!$D$8:$D$122)/(Cronograma!$D$8:$D$122=$C$7),13)),"") ->  | AP21: =IFERROR(INDEX(Cronograma!L:L,_xlfn.AGGREGATE(15,6,ROW(Cronograma!$D$8:$D$122)/(Cronograma!$D$8:$D$122=$C$7),13)),"") ->  | AQ21: =IFERROR(INDEX(Cronograma!P:P,_xlfn.AGGREGATE(15,6,ROW(Cronograma!$D$8:$D$122)/(Cronograma!$D$8:$D$122=$C$7),13)),"") ->  | AR21: =IFERROR(INDEX(Cronograma!R:R,_xlfn.AGGREGATE(15,6,ROW(Cronograma!$D$8:$D$122)/(Cronograma!$D$8:$D$122=$C$7),13)),"") -> 
C22: =IFERROR(INDEX(Cronograma!C:C,_xlfn.AGGREGATE(15,6,ROW(Cronograma!$D$8:$D$122)/(Cronograma!$D$8:$D$122=$C$7),14)),"") ->  | D22: =IFERROR(INDEX(Cronograma!E:E,_xlfn.AGGREGATE(15,6,ROW(Cronograma!$D$8:$D$122)/(Cronograma!$D$8:$D$122=$C$7),14)),"") ->  | E22: =IFERROR(INDEX(Cronograma!F:F,_xlfn.AGGREGATE(15,6,ROW(Cronograma!$D$8:$D$122)/(Cronograma!$D$8:$D$122=$C$7),14)),"") ->  | F22: =IFERROR(INDEX(Cronograma!G:G,_xlfn.AGGREGATE(15,6,ROW(Cronograma!$D$8:$D$122)/(Cronograma!$D$8:$D$122=$C$7),14)),"") ->  | G22: =IFERROR(INDEX(Cronograma!H:H,_xlfn.AGGREGATE(15,6,ROW(Cronograma!$D$8:$D$122)/(Cronograma!$D$8:$D$122=$C$7),14)),"") ->  | H22: =IFERROR(INDEX(Cronograma!O:O,_xlfn.AGGREGATE(15,6,ROW(Cronograma!$D$8:$D$122)/(Cronograma!$D$8:$D$122=$C$7),14)),"") ->  | AM22: =IFERROR(INDEX(Cronograma!I:I,_xlfn.AGGREGATE(15,6,ROW(Cronograma!$D$8:$D$122)/(Cronograma!$D$8:$D$122=$C$7),14)),"") ->  | AN22: =IFERROR(INDEX(Cronograma!J:J,_xlfn.AGGREGATE(15,6,ROW(Cronograma!$D$8:$D$122)/(Cronograma!$D$8:$D$122=$C$7),14)),"") ->  | AO22: =IFERROR(INDEX(Cronograma!K:K,_xlfn.AGGREGATE(15,6,ROW(Cronograma!$D$8:$D$122)/(Cronograma!$D$8:$D$122=$C$7),14)),"") ->  | AP22: =IFERROR(INDEX(Cronograma!L:L,_xlfn.AGGREGATE(15,6,ROW(Cronograma!$D$8:$D$122)/(Cronograma!$D$8:$D$122=$C$7),14)),"") ->  | AQ22: =IFERROR(INDEX(Cronograma!P:P,_xlfn.AGGREGATE(15,6,ROW(Cronograma!$D$8:$D$122)/(Cronograma!$D$8:$D$122=$C$7),14)),"") ->  | AR22: =IFERROR(INDEX(Cronograma!R:R,_xlfn.AGGREGATE(15,6,ROW(Cronograma!$D$8:$D$122)/(Cronograma!$D$8:$D$122=$C$7),14)),"") -> 
C23: =IFERROR(INDEX(Cronograma!C:C,_xlfn.AGGREGATE(15,6,ROW(Cronograma!$D$8:$D$122)/(Cronograma!$D$8:$D$122=$C$7),15)),"") ->  | D23: =IFERROR(INDEX(Cronograma!E:E,_xlfn.AGGREGATE(15,6,ROW(Cronograma!$D$8:$D$122)/(Cronograma!$D$8:$D$122=$C$7),15)),"") ->  | E23: =IFERROR(INDEX(Cronograma!F:F,_xlfn.AGGREGATE(15,6,ROW(Cronograma!$D$8:$D$122)/(Cronograma!$D$8:$D$122=$C$7),15)),"") ->  | F23: =IFERROR(INDEX(Cronograma!G:G,_xlfn.AGGREGATE(15,6,ROW(Cronograma!$D$8:$D$122)/(Cronograma!$D$8:$D$122=$C$7),15)),"") ->  | G23: =IFERROR(INDEX(Cronograma!H:H,_xlfn.AGGREGATE(15,6,ROW(Cronograma!$D$8:$D$122)/(Cronograma!$D$8:$D$122=$C$7),15)),"") ->  | H23: =IFERROR(INDEX(Cronograma!O:O,_xlfn.AGGREGATE(15,6,ROW(Cronograma!$D$8:$D$122)/(Cronograma!$D$8:$D$122=$C$7),15)),"") ->  | AM23: =IFERROR(INDEX(Cronograma!I:I,_xlfn.AGGREGATE(15,6,ROW(Cronograma!$D$8:$D$122)/(Cronograma!$D$8:$D$122=$C$7),15)),"") ->  | AN23: =IFERROR(INDEX(Cronograma!J:J,_xlfn.AGGREGATE(15,6,ROW(Cronograma!$D$8:$D$122)/(Cronograma!$D$8:$D$122=$C$7),15)),"") ->  | AO23: =IFERROR(INDEX(Cronograma!K:K,_xlfn.AGGREGATE(15,6,ROW(Cronograma!$D$8:$D$122)/(Cronograma!$D$8:$D$122=$C$7),15)),"") ->  | AP23: =IFERROR(INDEX(Cronograma!L:L,_xlfn.AGGREGATE(15,6,ROW(Cronograma!$D$8:$D$122)/(Cronograma!$D$8:$D$122=$C$7),15)),"") ->  | AQ23: =IFERROR(INDEX(Cronograma!P:P,_xlfn.AGGREGATE(15,6,ROW(Cronograma!$D$8:$D$122)/(Cronograma!$D$8:$D$122=$C$7),15)),"") ->  | AR23: =IFERROR(INDEX(Cronograma!R:R,_xlfn.AGGREGATE(15,6,ROW(Cronograma!$D$8:$D$122)/(Cronograma!$D$8:$D$122=$C$7),15)),"") -> 
C24: =IFERROR(INDEX(Cronograma!C:C,_xlfn.AGGREGATE(15,6,ROW(Cronograma!$D$8:$D$122)/(Cronograma!$D$8:$D$122=$C$7),16)),"") ->  | D24: =IFERROR(INDEX(Cronograma!E:E,_xlfn.AGGREGATE(15,6,ROW(Cronograma!$D$8:$D$122)/(Cronograma!$D$8:$D$122=$C$7),16)),"") ->  | E24: =IFERROR(INDEX(Cronograma!F:F,_xlfn.AGGREGATE(15,6,ROW(Cronograma!$D$8:$D$122)/(Cronograma!$D$8:$D$122=$C$7),16)),"") ->  | F24: =IFERROR(INDEX(Cronograma!G:G,_xlfn.AGGREGATE(15,6,ROW(Cronograma!$D$8:$D$122)/(Cronograma!$D$8:$D$122=$C$7),16)),"") ->  | G24: =IFERROR(INDEX(Cronograma!H:H,_xlfn.AGGREGATE(15,6,ROW(Cronograma!$D$8:$D$122)/(Cronograma!$D$8:$D$122=$C$7),16)),"") ->  | H24: =IFERROR(INDEX(Cronograma!O:O,_xlfn.AGGREGATE(15,6,ROW(Cronograma!$D$8:$D$122)/(Cronograma!$D$8:$D$122=$C$7),16)),"") ->  | AM24: =IFERROR(INDEX(Cronograma!I:I,_xlfn.AGGREGATE(15,6,ROW(Cronograma!$D$8:$D$122)/(Cronograma!$D$8:$D$122=$C$7),16)),"") ->  | AN24: =IFERROR(INDEX(Cronograma!J:J,_xlfn.AGGREGATE(15,6,ROW(Cronograma!$D$8:$D$122)/(Cronograma!$D$8:$D$122=$C$7),16)),"") ->  | AO24: =IFERROR(INDEX(Cronograma!K:K,_xlfn.AGGREGATE(15,6,ROW(Cronograma!$D$8:$D$122)/(Cronograma!$D$8:$D$122=$C$7),16)),"") ->  | AP24: =IFERROR(INDEX(Cronograma!L:L,_xlfn.AGGREGATE(15,6,ROW(Cronograma!$D$8:$D$122)/(Cronograma!$D$8:$D$122=$C$7),16)),"") ->  | AQ24: =IFERROR(INDEX(Cronograma!P:P,_xlfn.AGGREGATE(15,6,ROW(Cronograma!$D$8:$D$122)/(Cronograma!$D$8:$D$122=$C$7),16)),"") ->  | AR24: =IFERROR(INDEX(Cronograma!R:R,_xlfn.AGGREGATE(15,6,ROW(Cronograma!$D$8:$D$122)/(Cronograma!$D$8:$D$122=$C$7),16)),"") -> 
C25: =IFERROR(INDEX(Cronograma!C:C,_xlfn.AGGREGATE(15,6,ROW(Cronograma!$D$8:$D$122)/(Cronograma!$D$8:$D$122=$C$7),17)),"") ->  | D25: =IFERROR(INDEX(Cronograma!E:E,_xlfn.AGGREGATE(15,6,ROW(Cronograma!$D$8:$D$122)/(Cronograma!$D$8:$D$122=$C$7),17)),"") ->  | E25: =IFERROR(INDEX(Cronograma!F:F,_xlfn.AGGREGATE(15,6,ROW(Cronograma!$D$8:$D$122)/(Cronograma!$D$8:$D$122=$C$7),17)),"") ->  | F25: =IFERROR(INDEX(Cronograma!G:G,_xlfn.AGGREGATE(15,6,ROW(Cronograma!$D$8:$D$122)/(Cronograma!$D$8:$D$122=$C$7),17)),"") ->  | G25: =IFERROR(INDEX(Cronograma!H:H,_xlfn.AGGREGATE(15,6,ROW(Cronograma!$D$8:$D$122)/(Cronograma!$D$8:$D$122=$C$7),17)),"") ->  | H25: =IFERROR(INDEX(Cronograma!O:O,_xlfn.AGGREGATE(15,6,ROW(Cronograma!$D$8:$D$122)/(Cronograma!$D$8:$D$122=$C$7),17)),"") ->  | AM25: =IFERROR(INDEX(Cronograma!I:I,_xlfn.AGGREGATE(15,6,ROW(Cronograma!$D$8:$D$122)/(Cronograma!$D$8:$D$122=$C$7),17)),"") ->  | AN25: =IFERROR(INDEX(Cronograma!J:J,_xlfn.AGGREGATE(15,6,ROW(Cronograma!$D$8:$D$122)/(Cronograma!$D$8:$D$122=$C$7),17)),"") ->  | AO25: =IFERROR(INDEX(Cronograma!K:K,_xlfn.AGGREGATE(15,6,ROW(Cronograma!$D$8:$D$122)/(Cronograma!$D$8:$D$122=$C$7),17)),"") ->  | AP25: =IFERROR(INDEX(Cronograma!L:L,_xlfn.AGGREGATE(15,6,ROW(Cronograma!$D$8:$D$122)/(Cronograma!$D$8:$D$122=$C$7),17)),"") ->  | AQ25: =IFERROR(INDEX(Cronograma!P:P,_xlfn.AGGREGATE(15,6,ROW(Cronograma!$D$8:$D$122)/(Cronograma!$D$8:$D$122=$C$7),17)),"") ->  | AR25: =IFERROR(INDEX(Cronograma!R:R,_xlfn.AGGREGATE(15,6,ROW(Cronograma!$D$8:$D$122)/(Cronograma!$D$8:$D$122=$C$7),17)),"") -> 
C26: =IFERROR(INDEX(Cronograma!C:C,_xlfn.AGGREGATE(15,6,ROW(Cronograma!$D$8:$D$122)/(Cronograma!$D$8:$D$122=$C$7),18)),"") ->  | D26: =IFERROR(INDEX(Cronograma!E:E,_xlfn.AGGREGATE(15,6,ROW(Cronograma!$D$8:$D$122)/(Cronograma!$D$8:$D$122=$C$7),18)),"") ->  | E26: =IFERROR(INDEX(Cronograma!F:F,_xlfn.AGGREGATE(15,6,ROW(Cronograma!$D$8:$D$122)/(Cronograma!$D$8:$D$122=$C$7),18)),"") ->  | F26: =IFERROR(INDEX(Cronograma!G:G,_xlfn.AGGREGATE(15,6,ROW(Cronograma!$D$8:$D$122)/(Cronograma!$D$8:$D$122=$C$7),18)),"") ->  | G26: =IFERROR(INDEX(Cronograma!H:H,_xlfn.AGGREGATE(15,6,ROW(Cronograma!$D$8:$D$122)/(Cronograma!$D$8:$D$122=$C$7),18)),"") ->  | H26: =IFERROR(INDEX(Cronograma!O:O,_xlfn.AGGREGATE(15,6,ROW(Cronograma!$D$8:$D$122)/(Cronograma!$D$8:$D$122=$C$7),18)),"") ->  | AM26: =IFERROR(INDEX(Cronograma!I:I,_xlfn.AGGREGATE(15,6,ROW(Cronograma!$D$8:$D$122)/(Cronograma!$D$8:$D$122=$C$7),18)),"") ->  | AN26: =IFERROR(INDEX(Cronograma!J:J,_xlfn.AGGREGATE(15,6,ROW(Cronograma!$D$8:$D$122)/(Cronograma!$D$8:$D$122=$C$7),18)),"") ->  | AO26: =IFERROR(INDEX(Cronograma!K:K,_xlfn.AGGREGATE(15,6,ROW(Cronograma!$D$8:$D$122)/(Cronograma!$D$8:$D$122=$C$7),18)),"") ->  | AP26: =IFERROR(INDEX(Cronograma!L:L,_xlfn.AGGREGATE(15,6,ROW(Cronograma!$D$8:$D$122)/(Cronograma!$D$8:$D$122=$C$7),18)),"") ->  | AQ26: =IFERROR(INDEX(Cronograma!P:P,_xlfn.AGGREGATE(15,6,ROW(Cronograma!$D$8:$D$122)/(Cronograma!$D$8:$D$122=$C$7),18)),"") ->  | AR26: =IFERROR(INDEX(Cronograma!R:R,_xlfn.AGGREGATE(15,6,ROW(Cronograma!$D$8:$D$122)/(Cronograma!$D$8:$D$122=$C$7),18)),"") -> 
C27: =IFERROR(INDEX(Cronograma!C:C,_xlfn.AGGREGATE(15,6,ROW(Cronograma!$D$8:$D$122)/(Cronograma!$D$8:$D$122=$C$7),19)),"") ->  | D27: =IFERROR(INDEX(Cronograma!E:E,_xlfn.AGGREGATE(15,6,ROW(Cronograma!$D$8:$D$122)/(Cronograma!$D$8:$D$122=$C$7),19)),"") ->  | E27: =IFERROR(INDEX(Cronograma!F:F,_xlfn.AGGREGATE(15,6,ROW(Cronograma!$D$8:$D$122)/(Cronograma!$D$8:$D$122=$C$7),19)),"") ->  | F27: =IFERROR(INDEX(Cronograma!G:G,_xlfn.AGGREGATE(15,6,ROW(Cronograma!$D$8:$D$122)/(Cronograma!$D$8:$D$122=$C$7),19)),"") ->  | G27: =IFERROR(INDEX(Cronograma!H:H,_xlfn.AGGREGATE(15,6,ROW(Cronograma!$D$8:$D$122)/(Cronograma!$D$8:$D$122=$C$7),19)),"") ->  | H27: =IFERROR(INDEX(Cronograma!O:O,_xlfn.AGGREGATE(15,6,ROW(Cronograma!$D$8:$D$122)/(Cronograma!$D$8:$D$122=$C$7),19)),"") ->  | AM27: =IFERROR(INDEX(Cronograma!I:I,_xlfn.AGGREGATE(15,6,ROW(Cronograma!$D$8:$D$122)/(Cronograma!$D$8:$D$122=$C$7),19)),"") ->  | AN27: =IFERROR(INDEX(Cronograma!J:J,_xlfn.AGGREGATE(15,6,ROW(Cronograma!$D$8:$D$122)/(Cronograma!$D$8:$D$122=$C$7),19)),"") ->  | AO27: =IFERROR(INDEX(Cronograma!K:K,_xlfn.AGGREGATE(15,6,ROW(Cronograma!$D$8:$D$122)/(Cronograma!$D$8:$D$122=$C$7),19)),"") ->  | AP27: =IFERROR(INDEX(Cronograma!L:L,_xlfn.AGGREGATE(15,6,ROW(Cronograma!$D$8:$D$122)/(Cronograma!$D$8:$D$122=$C$7),19)),"") ->  | AQ27: =IFERROR(INDEX(Cronograma!P:P,_xlfn.AGGREGATE(15,6,ROW(Cronograma!$D$8:$D$122)/(Cronograma!$D$8:$D$122=$C$7),19)),"") ->  | AR27: =IFERROR(INDEX(Cronograma!R:R,_xlfn.AGGREGATE(15,6,ROW(Cronograma!$D$8:$D$122)/(Cronograma!$D$8:$D$122=$C$7),19)),"") -> 
C28: =IFERROR(INDEX(Cronograma!C:C,_xlfn.AGGREGATE(15,6,ROW(Cronograma!$D$8:$D$122)/(Cronograma!$D$8:$D$122=$C$7),20)),"") ->  | D28: =IFERROR(INDEX(Cronograma!E:E,_xlfn.AGGREGATE(15,6,ROW(Cronograma!$D$8:$D$122)/(Cronograma!$D$8:$D$122=$C$7),20)),"") ->  | E28: =IFERROR(INDEX(Cronograma!F:F,_xlfn.AGGREGATE(15,6,ROW(Cronograma!$D$8:$D$122)/(Cronograma!$D$8:$D$122=$C$7),20)),"") ->  | F28: =IFERROR(INDEX(Cronograma!G:G,_xlfn.AGGREGATE(15,6,ROW(Cronograma!$D$8:$D$122)/(Cronograma!$D$8:$D$122=$C$7),20)),"") ->  | G28: =IFERROR(INDEX(Cronograma!H:H,_xlfn.AGGREGATE(15,6,ROW(Cronograma!$D$8:$D$122)/(Cronograma!$D$8:$D$122=$C$7),20)),"") ->  | H28: =IFERROR(INDEX(Cronograma!O:O,_xlfn.AGGREGATE(15,6,ROW(Cronograma!$D$8:$D$122)/(Cronograma!$D$8:$D$122=$C$7),20)),"") ->  | AM28: =IFERROR(INDEX(Cronograma!I:I,_xlfn.AGGREGATE(15,6,ROW(Cronograma!$D$8:$D$122)/(Cronograma!$D$8:$D$122=$C$7),20)),"") ->  | AN28: =IFERROR(INDEX(Cronograma!J:J,_xlfn.AGGREGATE(15,6,ROW(Cronograma!$D$8:$D$122)/(Cronograma!$D$8:$D$122=$C$7),20)),"") ->  | AO28: =IFERROR(INDEX(Cronograma!K:K,_xlfn.AGGREGATE(15,6,ROW(Cronograma!$D$8:$D$122)/(Cronograma!$D$8:$D$122=$C$7),20)),"") ->  | AP28: =IFERROR(INDEX(Cronograma!L:L,_xlfn.AGGREGATE(15,6,ROW(Cronograma!$D$8:$D$122)/(Cronograma!$D$8:$D$122=$C$7),20)),"") ->  | AQ28: =IFERROR(INDEX(Cronograma!P:P,_xlfn.AGGREGATE(15,6,ROW(Cronograma!$D$8:$D$122)/(Cronograma!$D$8:$D$122=$C$7),20)),"") ->  | AR28: =IFERROR(INDEX(Cronograma!R:R,_xlfn.AGGREGATE(15,6,ROW(Cronograma!$D$8:$D$122)/(Cronograma!$D$8:$D$122=$C$7),20)),"") -> 
C29: =IFERROR(INDEX(Cronograma!C:C,_xlfn.AGGREGATE(15,6,ROW(Cronograma!$D$8:$D$122)/(Cronograma!$D$8:$D$122=$C$7),21)),"") ->  | D29: =IFERROR(INDEX(Cronograma!E:E,_xlfn.AGGREGATE(15,6,ROW(Cronograma!$D$8:$D$122)/(Cronograma!$D$8:$D$122=$C$7),21)),"") ->  | E29: =IFERROR(INDEX(Cronograma!F:F,_xlfn.AGGREGATE(15,6,ROW(Cronograma!$D$8:$D$122)/(Cronograma!$D$8:$D$122=$C$7),21)),"") ->  | F29: =IFERROR(INDEX(Cronograma!G:G,_xlfn.AGGREGATE(15,6,ROW(Cronograma!$D$8:$D$122)/(Cronograma!$D$8:$D$122=$C$7),21)),"") ->  | G29: =IFERROR(INDEX(Cronograma!H:H,_xlfn.AGGREGATE(15,6,ROW(Cronograma!$D$8:$D$122)/(Cronograma!$D$8:$D$122=$C$7),21)),"") ->  | H29: =IFERROR(INDEX(Cronograma!O:O,_xlfn.AGGREGATE(15,6,ROW(Cronograma!$D$8:$D$122)/(Cronograma!$D$8:$D$122=$C$7),21)),"") ->  | AM29: =IFERROR(INDEX(Cronograma!I:I,_xlfn.AGGREGATE(15,6,ROW(Cronograma!$D$8:$D$122)/(Cronograma!$D$8:$D$122=$C$7),21)),"") ->  | AN29: =IFERROR(INDEX(Cronograma!J:J,_xlfn.AGGREGATE(15,6,ROW(Cronograma!$D$8:$D$122)/(Cronograma!$D$8:$D$122=$C$7),21)),"") ->  | AO29: =IFERROR(INDEX(Cronograma!K:K,_xlfn.AGGREGATE(15,6,ROW(Cronograma!$D$8:$D$122)/(Cronograma!$D$8:$D$122=$C$7),21)),"") ->  | AP29: =IFERROR(INDEX(Cronograma!L:L,_xlfn.AGGREGATE(15,6,ROW(Cronograma!$D$8:$D$122)/(Cronograma!$D$8:$D$122=$C$7),21)),"") ->  | AQ29: =IFERROR(INDEX(Cronograma!P:P,_xlfn.AGGREGATE(15,6,ROW(Cronograma!$D$8:$D$122)/(Cronograma!$D$8:$D$122=$C$7),21)),"") ->  | AR29: =IFERROR(INDEX(Cronograma!R:R,_xlfn.AGGREGATE(15,6,ROW(Cronograma!$D$8:$D$122)/(Cronograma!$D$8:$D$122=$C$7),21)),"") -> 
C30: =IFERROR(INDEX(Cronograma!C:C,_xlfn.AGGREGATE(15,6,ROW(Cronograma!$D$8:$D$122)/(Cronograma!$D$8:$D$122=$C$7),22)),"") ->  | D30: =IFERROR(INDEX(Cronograma!E:E,_xlfn.AGGREGATE(15,6,ROW(Cronograma!$D$8:$D$122)/(Cronograma!$D$8:$D$122=$C$7),22)),"") ->  | E30: =IFERROR(INDEX(Cronograma!F:F,_xlfn.AGGREGATE(15,6,ROW(Cronograma!$D$8:$D$122)/(Cronograma!$D$8:$D$122=$C$7),22)),"") ->  | F30: =IFERROR(INDEX(Cronograma!G:G,_xlfn.AGGREGATE(15,6,ROW(Cronograma!$D$8:$D$122)/(Cronograma!$D$8:$D$122=$C$7),22)),"") ->  | G30: =IFERROR(INDEX(Cronograma!H:H,_xlfn.AGGREGATE(15,6,ROW(Cronograma!$D$8:$D$122)/(Cronograma!$D$8:$D$122=$C$7),22)),"") ->  | H30: =IFERROR(INDEX(Cronograma!O:O,_xlfn.AGGREGATE(15,6,ROW(Cronograma!$D$8:$D$122)/(Cronograma!$D$8:$D$122=$C$7),22)),"") ->  | AM30: =IFERROR(INDEX(Cronograma!I:I,_xlfn.AGGREGATE(15,6,ROW(Cronograma!$D$8:$D$122)/(Cronograma!$D$8:$D$122=$C$7),22)),"") ->  | AN30: =IFERROR(INDEX(Cronograma!J:J,_xlfn.AGGREGATE(15,6,ROW(Cronograma!$D$8:$D$122)/(Cronograma!$D$8:$D$122=$C$7),22)),"") ->  | AO30: =IFERROR(INDEX(Cronograma!K:K,_xlfn.AGGREGATE(15,6,ROW(Cronograma!$D$8:$D$122)/(Cronograma!$D$8:$D$122=$C$7),22)),"") ->  | AP30: =IFERROR(INDEX(Cronograma!L:L,_xlfn.AGGREGATE(15,6,ROW(Cronograma!$D$8:$D$122)/(Cronograma!$D$8:$D$122=$C$7),22)),"") ->  | AQ30: =IFERROR(INDEX(Cronograma!P:P,_xlfn.AGGREGATE(15,6,ROW(Cronograma!$D$8:$D$122)/(Cronograma!$D$8:$D$122=$C$7),22)),"") ->  | AR30: =IFERROR(INDEX(Cronograma!R:R,_xlfn.AGGREGATE(15,6,ROW(Cronograma!$D$8:$D$122)/(Cronograma!$D$8:$D$122=$C$7),22)),"") -> 
C31: =IFERROR(INDEX(Cronograma!C:C,_xlfn.AGGREGATE(15,6,ROW(Cronograma!$D$8:$D$122)/(Cronograma!$D$8:$D$122=$C$7),23)),"") ->  | D31: =IFERROR(INDEX(Cronograma!E:E,_xlfn.AGGREGATE(15,6,ROW(Cronograma!$D$8:$D$122)/(Cronograma!$D$8:$D$122=$C$7),23)),"") ->  | E31: =IFERROR(INDEX(Cronograma!F:F,_xlfn.AGGREGATE(15,6,ROW(Cronograma!$D$8:$D$122)/(Cronograma!$D$8:$D$122=$C$7),23)),"") ->  | F31: =IFERROR(INDEX(Cronograma!G:G,_xlfn.AGGREGATE(15,6,ROW(Cronograma!$D$8:$D$122)/(Cronograma!$D$8:$D$122=$C$7),23)),"") ->  | G31: =IFERROR(INDEX(Cronograma!H:H,_xlfn.AGGREGATE(15,6,ROW(Cronograma!$D$8:$D$122)/(Cronograma!$D$8:$D$122=$C$7),23)),"") ->  | H31: =IFERROR(INDEX(Cronograma!O:O,_xlfn.AGGREGATE(15,6,ROW(Cronograma!$D$8:$D$122)/(Cronograma!$D$8:$D$122=$C$7),23)),"") ->  | AM31: =IFERROR(INDEX(Cronograma!I:I,_xlfn.AGGREGATE(15,6,ROW(Cronograma!$D$8:$D$122)/(Cronograma!$D$8:$D$122=$C$7),23)),"") ->  | AN31: =IFERROR(INDEX(Cronograma!J:J,_xlfn.AGGREGATE(15,6,ROW(Cronograma!$D$8:$D$122)/(Cronograma!$D$8:$D$122=$C$7),23)),"") ->  | AO31: =IFERROR(INDEX(Cronograma!K:K,_xlfn.AGGREGATE(15,6,ROW(Cronograma!$D$8:$D$122)/(Cronograma!$D$8:$D$122=$C$7),23)),"") ->  | AP31: =IFERROR(INDEX(Cronograma!L:L,_xlfn.AGGREGATE(15,6,ROW(Cronograma!$D$8:$D$122)/(Cronograma!$D$8:$D$122=$C$7),23)),"") ->  | AQ31: =IFERROR(INDEX(Cronograma!P:P,_xlfn.AGGREGATE(15,6,ROW(Cronograma!$D$8:$D$122)/(Cronograma!$D$8:$D$122=$C$7),23)),"") ->  | AR31: =IFERROR(INDEX(Cronograma!R:R,_xlfn.AGGREGATE(15,6,ROW(Cronograma!$D$8:$D$122)/(Cronograma!$D$8:$D$122=$C$7),23)),"") -> 
C32: =IFERROR(INDEX(Cronograma!C:C,_xlfn.AGGREGATE(15,6,ROW(Cronograma!$D$8:$D$122)/(Cronograma!$D$8:$D$122=$C$7),24)),"") ->  | D32: =IFERROR(INDEX(Cronograma!E:E,_xlfn.AGGREGATE(15,6,ROW(Cronograma!$D$8:$D$122)/(Cronograma!$D$8:$D$122=$C$7),24)),"") ->  | E32: =IFERROR(INDEX(Cronograma!F:F,_xlfn.AGGREGATE(15,6,ROW(Cronograma!$D$8:$D$122)/(Cronograma!$D$8:$D$122=$C$7),24)),"") ->  | F32: =IFERROR(INDEX(Cronograma!G:G,_xlfn.AGGREGATE(15,6,ROW(Cronograma!$D$8:$D$122)/(Cronograma!$D$8:$D$122=$C$7),24)),"") ->  | G32: =IFERROR(INDEX(Cronograma!H:H,_xlfn.AGGREGATE(15,6,ROW(Cronograma!$D$8:$D$122)/(Cronograma!$D$8:$D$122=$C$7),24)),"") ->  | H32: =IFERROR(INDEX(Cronograma!O:O,_xlfn.AGGREGATE(15,6,ROW(Cronograma!$D$8:$D$122)/(Cronograma!$D$8:$D$122=$C$7),24)),"") ->  | AM32: =IFERROR(INDEX(Cronograma!I:I,_xlfn.AGGREGATE(15,6,ROW(Cronograma!$D$8:$D$122)/(Cronograma!$D$8:$D$122=$C$7),24)),"") ->  | AN32: =IFERROR(INDEX(Cronograma!J:J,_xlfn.AGGREGATE(15,6,ROW(Cronograma!$D$8:$D$122)/(Cronograma!$D$8:$D$122=$C$7),24)),"") ->  | AO32: =IFERROR(INDEX(Cronograma!K:K,_xlfn.AGGREGATE(15,6,ROW(Cronograma!$D$8:$D$122)/(Cronograma!$D$8:$D$122=$C$7),24)),"") ->  | AP32: =IFERROR(INDEX(Cronograma!L:L,_xlfn.AGGREGATE(15,6,ROW(Cronograma!$D$8:$D$122)/(Cronograma!$D$8:$D$122=$C$7),24)),"") ->  | AQ32: =IFERROR(INDEX(Cronograma!P:P,_xlfn.AGGREGATE(15,6,ROW(Cronograma!$D$8:$D$122)/(Cronograma!$D$8:$D$122=$C$7),24)),"") ->  | AR32: =IFERROR(INDEX(Cronograma!R:R,_xlfn.AGGREGATE(15,6,ROW(Cronograma!$D$8:$D$122)/(Cronograma!$D$8:$D$122=$C$7),24)),"") -> 
C33: =IFERROR(INDEX(Cronograma!C:C,_xlfn.AGGREGATE(15,6,ROW(Cronograma!$D$8:$D$122)/(Cronograma!$D$8:$D$122=$C$7),25)),"") ->  | D33: =IFERROR(INDEX(Cronograma!E:E,_xlfn.AGGREGATE(15,6,ROW(Cronograma!$D$8:$D$122)/(Cronograma!$D$8:$D$122=$C$7),25)),"") ->  | E33: =IFERROR(INDEX(Cronograma!F:F,_xlfn.AGGREGATE(15,6,ROW(Cronograma!$D$8:$D$122)/(Cronograma!$D$8:$D$122=$C$7),25)),"") ->  | F33: =IFERROR(INDEX(Cronograma!G:G,_xlfn.AGGREGATE(15,6,ROW(Cronograma!$D$8:$D$122)/(Cronograma!$D$8:$D$122=$C$7),25)),"") ->  | G33: =IFERROR(INDEX(Cronograma!H:H,_xlfn.AGGREGATE(15,6,ROW(Cronograma!$D$8:$D$122)/(Cronograma!$D$8:$D$122=$C$7),25)),"") ->  | H33: =IFERROR(INDEX(Cronograma!O:O,_xlfn.AGGREGATE(15,6,ROW(Cronograma!$D$8:$D$122)/(Cronograma!$D$8:$D$122=$C$7),25)),"") ->  | AM33: =IFERROR(INDEX(Cronograma!I:I,_xlfn.AGGREGATE(15,6,ROW(Cronograma!$D$8:$D$122)/(Cronograma!$D$8:$D$122=$C$7),25)),"") ->  | AN33: =IFERROR(INDEX(Cronograma!J:J,_xlfn.AGGREGATE(15,6,ROW(Cronograma!$D$8:$D$122)/(Cronograma!$D$8:$D$122=$C$7),25)),"") ->  | AO33: =IFERROR(INDEX(Cronograma!K:K,_xlfn.AGGREGATE(15,6,ROW(Cronograma!$D$8:$D$122)/(Cronograma!$D$8:$D$122=$C$7),25)),"") ->  | AP33: =IFERROR(INDEX(Cronograma!L:L,_xlfn.AGGREGATE(15,6,ROW(Cronograma!$D$8:$D$122)/(Cronograma!$D$8:$D$122=$C$7),25)),"") ->  | AQ33: =IFERROR(INDEX(Cronograma!P:P,_xlfn.AGGREGATE(15,6,ROW(Cronograma!$D$8:$D$122)/(Cronograma!$D$8:$D$122=$C$7),25)),"") ->  | AR33: =IFERROR(INDEX(Cronograma!R:R,_xlfn.AGGREGATE(15,6,ROW(Cronograma!$D$8:$D$122)/(Cronograma!$D$8:$D$122=$C$7),25)),"") -> 
C34: =IFERROR(INDEX(Cronograma!C:C,_xlfn.AGGREGATE(15,6,ROW(Cronograma!$D$8:$D$122)/(Cronograma!$D$8:$D$122=$C$7),26)),"") ->  | D34: =IFERROR(INDEX(Cronograma!E:E,_xlfn.AGGREGATE(15,6,ROW(Cronograma!$D$8:$D$122)/(Cronograma!$D$8:$D$122=$C$7),26)),"") ->  | E34: =IFERROR(INDEX(Cronograma!F:F,_xlfn.AGGREGATE(15,6,ROW(Cronograma!$D$8:$D$122)/(Cronograma!$D$8:$D$122=$C$7),26)),"") ->  | F34: =IFERROR(INDEX(Cronograma!G:G,_xlfn.AGGREGATE(15,6,ROW(Cronograma!$D$8:$D$122)/(Cronograma!$D$8:$D$122=$C$7),26)),"") ->  | G34: =IFERROR(INDEX(Cronograma!H:H,_xlfn.AGGREGATE(15,6,ROW(Cronograma!$D$8:$D$122)/(Cronograma!$D$8:$D$122=$C$7),26)),"") ->  | H34: =IFERROR(INDEX(Cronograma!O:O,_xlfn.AGGREGATE(15,6,ROW(Cronograma!$D$8:$D$122)/(Cronograma!$D$8:$D$122=$C$7),26)),"") ->  | AM34: =IFERROR(INDEX(Cronograma!I:I,_xlfn.AGGREGATE(15,6,ROW(Cronograma!$D$8:$D$122)/(Cronograma!$D$8:$D$122=$C$7),26)),"") ->  | AN34: =IFERROR(INDEX(Cronograma!J:J,_xlfn.AGGREGATE(15,6,ROW(Cronograma!$D$8:$D$122)/(Cronograma!$D$8:$D$122=$C$7),26)),"") ->  | AO34: =IFERROR(INDEX(Cronograma!K:K,_xlfn.AGGREGATE(15,6,ROW(Cronograma!$D$8:$D$122)/(Cronograma!$D$8:$D$122=$C$7),26)),"") ->  | AP34: =IFERROR(INDEX(Cronograma!L:L,_xlfn.AGGREGATE(15,6,ROW(Cronograma!$D$8:$D$122)/(Cronograma!$D$8:$D$122=$C$7),26)),"") ->  | AQ34: =IFERROR(INDEX(Cronograma!P:P,_xlfn.AGGREGATE(15,6,ROW(Cronograma!$D$8:$D$122)/(Cronograma!$D$8:$D$122=$C$7),26)),"") ->  | AR34: =IFERROR(INDEX(Cronograma!R:R,_xlfn.AGGREGATE(15,6,ROW(Cronograma!$D$8:$D$122)/(Cronograma!$D$8:$D$122=$C$7),26)),"") -> 
C35: =IFERROR(INDEX(Cronograma!C:C,_xlfn.AGGREGATE(15,6,ROW(Cronograma!$D$8:$D$122)/(Cronograma!$D$8:$D$122=$C$7),27)),"") ->  | D35: =IFERROR(INDEX(Cronograma!E:E,_xlfn.AGGREGATE(15,6,ROW(Cronograma!$D$8:$D$122)/(Cronograma!$D$8:$D$122=$C$7),27)),"") ->  | E35: =IFERROR(INDEX(Cronograma!F:F,_xlfn.AGGREGATE(15,6,ROW(Cronograma!$D$8:$D$122)/(Cronograma!$D$8:$D$122=$C$7),27)),"") ->  | F35: =IFERROR(INDEX(Cronograma!G:G,_xlfn.AGGREGATE(15,6,ROW(Cronograma!$D$8:$D$122)/(Cronograma!$D$8:$D$122=$C$7),27)),"") ->  | G35: =IFERROR(INDEX(Cronograma!H:H,_xlfn.AGGREGATE(15,6,ROW(Cronograma!$D$8:$D$122)/(Cronograma!$D$8:$D$122=$C$7),27)),"") ->  | H35: =IFERROR(INDEX(Cronograma!O:O,_xlfn.AGGREGATE(15,6,ROW(Cronograma!$D$8:$D$122)/(Cronograma!$D$8:$D$122=$C$7),27)),"") ->  | AM35: =IFERROR(INDEX(Cronograma!I:I,_xlfn.AGGREGATE(15,6,ROW(Cronograma!$D$8:$D$122)/(Cronograma!$D$8:$D$122=$C$7),27)),"") ->  | AN35: =IFERROR(INDEX(Cronograma!J:J,_xlfn.AGGREGATE(15,6,ROW(Cronograma!$D$8:$D$122)/(Cronograma!$D$8:$D$122=$C$7),27)),"") ->  | AO35: =IFERROR(INDEX(Cronograma!K:K,_xlfn.AGGREGATE(15,6,ROW(Cronograma!$D$8:$D$122)/(Cronograma!$D$8:$D$122=$C$7),27)),"") ->  | AP35: =IFERROR(INDEX(Cronograma!L:L,_xlfn.AGGREGATE(15,6,ROW(Cronograma!$D$8:$D$122)/(Cronograma!$D$8:$D$122=$C$7),27)),"") ->  | AQ35: =IFERROR(INDEX(Cronograma!P:P,_xlfn.AGGREGATE(15,6,ROW(Cronograma!$D$8:$D$122)/(Cronograma!$D$8:$D$122=$C$7),27)),"") ->  | AR35: =IFERROR(INDEX(Cronograma!R:R,_xlfn.AGGREGATE(15,6,ROW(Cronograma!$D$8:$D$122)/(Cronograma!$D$8:$D$122=$C$7),27)),"") -> 
C36: =IFERROR(INDEX(Cronograma!C:C,_xlfn.AGGREGATE(15,6,ROW(Cronograma!$D$8:$D$122)/(Cronograma!$D$8:$D$122=$C$7),28)),"") ->  | D36: =IFERROR(INDEX(Cronograma!E:E,_xlfn.AGGREGATE(15,6,ROW(Cronograma!$D$8:$D$122)/(Cronograma!$D$8:$D$122=$C$7),28)),"") ->  | E36: =IFERROR(INDEX(Cronograma!F:F,_xlfn.AGGREGATE(15,6,ROW(Cronograma!$D$8:$D$122)/(Cronograma!$D$8:$D$122=$C$7),28)),"") ->  | F36: =IFERROR(INDEX(Cronograma!G:G,_xlfn.AGGREGATE(15,6,ROW(Cronograma!$D$8:$D$122)/(Cronograma!$D$8:$D$122=$C$7),28)),"") ->  | G36: =IFERROR(INDEX(Cronograma!H:H,_xlfn.AGGREGATE(15,6,ROW(Cronograma!$D$8:$D$122)/(Cronograma!$D$8:$D$122=$C$7),28)),"") ->  | H36: =IFERROR(INDEX(Cronograma!O:O,_xlfn.AGGREGATE(15,6,ROW(Cronograma!$D$8:$D$122)/(Cronograma!$D$8:$D$122=$C$7),28)),"") ->  | AM36: =IFERROR(INDEX(Cronograma!I:I,_xlfn.AGGREGATE(15,6,ROW(Cronograma!$D$8:$D$122)/(Cronograma!$D$8:$D$122=$C$7),28)),"") ->  | AN36: =IFERROR(INDEX(Cronograma!J:J,_xlfn.AGGREGATE(15,6,ROW(Cronograma!$D$8:$D$122)/(Cronograma!$D$8:$D$122=$C$7),28)),"") ->  | AO36: =IFERROR(INDEX(Cronograma!K:K,_xlfn.AGGREGATE(15,6,ROW(Cronograma!$D$8:$D$122)/(Cronograma!$D$8:$D$122=$C$7),28)),"") ->  | AP36: =IFERROR(INDEX(Cronograma!L:L,_xlfn.AGGREGATE(15,6,ROW(Cronograma!$D$8:$D$122)/(Cronograma!$D$8:$D$122=$C$7),28)),"") ->  | AQ36: =IFERROR(INDEX(Cronograma!P:P,_xlfn.AGGREGATE(15,6,ROW(Cronograma!$D$8:$D$122)/(Cronograma!$D$8:$D$122=$C$7),28)),"") ->  | AR36: =IFERROR(INDEX(Cronograma!R:R,_xlfn.AGGREGATE(15,6,ROW(Cronograma!$D$8:$D$122)/(Cronograma!$D$8:$D$122=$C$7),28)),"") -> 
C37: =IFERROR(INDEX(Cronograma!C:C,_xlfn.AGGREGATE(15,6,ROW(Cronograma!$D$8:$D$122)/(Cronograma!$D$8:$D$122=$C$7),29)),"") ->  | D37: =IFERROR(INDEX(Cronograma!E:E,_xlfn.AGGREGATE(15,6,ROW(Cronograma!$D$8:$D$122)/(Cronograma!$D$8:$D$122=$C$7),29)),"") ->  | E37: =IFERROR(INDEX(Cronograma!F:F,_xlfn.AGGREGATE(15,6,ROW(Cronograma!$D$8:$D$122)/(Cronograma!$D$8:$D$122=$C$7),29)),"") ->  | F37: =IFERROR(INDEX(Cronograma!G:G,_xlfn.AGGREGATE(15,6,ROW(Cronograma!$D$8:$D$122)/(Cronograma!$D$8:$D$122=$C$7),29)),"") ->  | G37: =IFERROR(INDEX(Cronograma!H:H,_xlfn.AGGREGATE(15,6,ROW(Cronograma!$D$8:$D$122)/(Cronograma!$D$8:$D$122=$C$7),29)),"") ->  | H37: =IFERROR(INDEX(Cronograma!O:O,_xlfn.AGGREGATE(15,6,ROW(Cronograma!$D$8:$D$122)/(Cronograma!$D$8:$D$122=$C$7),29)),"") ->  | AM37: =IFERROR(INDEX(Cronograma!I:I,_xlfn.AGGREGATE(15,6,ROW(Cronograma!$D$8:$D$122)/(Cronograma!$D$8:$D$122=$C$7),29)),"") ->  | AN37: =IFERROR(INDEX(Cronograma!J:J,_xlfn.AGGREGATE(15,6,ROW(Cronograma!$D$8:$D$122)/(Cronograma!$D$8:$D$122=$C$7),29)),"") ->  | AO37: =IFERROR(INDEX(Cronograma!K:K,_xlfn.AGGREGATE(15,6,ROW(Cronograma!$D$8:$D$122)/(Cronograma!$D$8:$D$122=$C$7),29)),"") ->  | AP37: =IFERROR(INDEX(Cronograma!L:L,_xlfn.AGGREGATE(15,6,ROW(Cronograma!$D$8:$D$122)/(Cronograma!$D$8:$D$122=$C$7),29)),"") ->  | AQ37: =IFERROR(INDEX(Cronograma!P:P,_xlfn.AGGREGATE(15,6,ROW(Cronograma!$D$8:$D$122)/(Cronograma!$D$8:$D$122=$C$7),29)),"") ->  | AR37: =IFERROR(INDEX(Cronograma!R:R,_xlfn.AGGREGATE(15,6,ROW(Cronograma!$D$8:$D$122)/(Cronograma!$D$8:$D$122=$C$7),29)),"") -> 
C38: =IFERROR(INDEX(Cronograma!C:C,_xlfn.AGGREGATE(15,6,ROW(Cronograma!$D$8:$D$122)/(Cronograma!$D$8:$D$122=$C$7),30)),"") ->  | D38: =IFERROR(INDEX(Cronograma!E:E,_xlfn.AGGREGATE(15,6,ROW(Cronograma!$D$8:$D$122)/(Cronograma!$D$8:$D$122=$C$7),30)),"") ->  | E38: =IFERROR(INDEX(Cronograma!F:F,_xlfn.AGGREGATE(15,6,ROW(Cronograma!$D$8:$D$122)/(Cronograma!$D$8:$D$122=$C$7),30)),"") ->  | F38: =IFERROR(INDEX(Cronograma!G:G,_xlfn.AGGREGATE(15,6,ROW(Cronograma!$D$8:$D$122)/(Cronograma!$D$8:$D$122=$C$7),30)),"") ->  | G38: =IFERROR(INDEX(Cronograma!H:H,_xlfn.AGGREGATE(15,6,ROW(Cronograma!$D$8:$D$122)/(Cronograma!$D$8:$D$122=$C$7),30)),"") ->  | H38: =IFERROR(INDEX(Cronograma!O:O,_xlfn.AGGREGATE(15,6,ROW(Cronograma!$D$8:$D$122)/(Cronograma!$D$8:$D$122=$C$7),30)),"") ->  | AM38: =IFERROR(INDEX(Cronograma!I:I,_xlfn.AGGREGATE(15,6,ROW(Cronograma!$D$8:$D$122)/(Cronograma!$D$8:$D$122=$C$7),30)),"") ->  | AN38: =IFERROR(INDEX(Cronograma!J:J,_xlfn.AGGREGATE(15,6,ROW(Cronograma!$D$8:$D$122)/(Cronograma!$D$8:$D$122=$C$7),30)),"") ->  | AO38: =IFERROR(INDEX(Cronograma!K:K,_xlfn.AGGREGATE(15,6,ROW(Cronograma!$D$8:$D$122)/(Cronograma!$D$8:$D$122=$C$7),30)),"") ->  | AP38: =IFERROR(INDEX(Cronograma!L:L,_xlfn.AGGREGATE(15,6,ROW(Cronograma!$D$8:$D$122)/(Cronograma!$D$8:$D$122=$C$7),30)),"") ->  | AQ38: =IFERROR(INDEX(Cronograma!P:P,_xlfn.AGGREGATE(15,6,ROW(Cronograma!$D$8:$D$122)/(Cronograma!$D$8:$D$122=$C$7),30)),"") ->  | AR38: =IFERROR(INDEX(Cronograma!R:R,_xlfn.AGGREGATE(15,6,ROW(Cronograma!$D$8:$D$122)/(Cronograma!$D$8:$D$122=$C$7),30)),"") -> 
C39: =IFERROR(INDEX(Cronograma!C:C,_xlfn.AGGREGATE(15,6,ROW(Cronograma!$D$8:$D$122)/(Cronograma!$D$8:$D$122=$C$7),31)),"") ->  | D39: =IFERROR(INDEX(Cronograma!E:E,_xlfn.AGGREGATE(15,6,ROW(Cronograma!$D$8:$D$122)/(Cronograma!$D$8:$D$122=$C$7),31)),"") ->  | E39: =IFERROR(INDEX(Cronograma!F:F,_xlfn.AGGREGATE(15,6,ROW(Cronograma!$D$8:$D$122)/(Cronograma!$D$8:$D$122=$C$7),31)),"") ->  | F39: =IFERROR(INDEX(Cronograma!G:G,_xlfn.AGGREGATE(15,6,ROW(Cronograma!$D$8:$D$122)/(Cronograma!$D$8:$D$122=$C$7),31)),"") ->  | G39: =IFERROR(INDEX(Cronograma!H:H,_xlfn.AGGREGATE(15,6,ROW(Cronograma!$D$8:$D$122)/(Cronograma!$D$8:$D$122=$C$7),31)),"") ->  | H39: =IFERROR(INDEX(Cronograma!O:O,_xlfn.AGGREGATE(15,6,ROW(Cronograma!$D$8:$D$122)/(Cronograma!$D$8:$D$122=$C$7),31)),"") ->  | AM39: =IFERROR(INDEX(Cronograma!I:I,_xlfn.AGGREGATE(15,6,ROW(Cronograma!$D$8:$D$122)/(Cronograma!$D$8:$D$122=$C$7),31)),"") ->  | AN39: =IFERROR(INDEX(Cronograma!J:J,_xlfn.AGGREGATE(15,6,ROW(Cronograma!$D$8:$D$122)/(Cronograma!$D$8:$D$122=$C$7),31)),"") ->  | AO39: =IFERROR(INDEX(Cronograma!K:K,_xlfn.AGGREGATE(15,6,ROW(Cronograma!$D$8:$D$122)/(Cronograma!$D$8:$D$122=$C$7),31)),"") ->  | AP39: =IFERROR(INDEX(Cronograma!L:L,_xlfn.AGGREGATE(15,6,ROW(Cronograma!$D$8:$D$122)/(Cronograma!$D$8:$D$122=$C$7),31)),"") ->  | AQ39: =IFERROR(INDEX(Cronograma!P:P,_xlfn.AGGREGATE(15,6,ROW(Cronograma!$D$8:$D$122)/(Cronograma!$D$8:$D$122=$C$7),31)),"") ->  | AR39: =IFERROR(INDEX(Cronograma!R:R,_xlfn.AGGREGATE(15,6,ROW(Cronograma!$D$8:$D$122)/(Cronograma!$D$8:$D$122=$C$7),31)),"") -> 
C40: =IFERROR(INDEX(Cronograma!C:C,_xlfn.AGGREGATE(15,6,ROW(Cronograma!$D$8:$D$122)/(Cronograma!$D$8:$D$122=$C$7),32)),"") ->  | D40: =IFERROR(INDEX(Cronograma!E:E,_xlfn.AGGREGATE(15,6,ROW(Cronograma!$D$8:$D$122)/(Cronograma!$D$8:$D$122=$C$7),32)),"") ->  | E40: =IFERROR(INDEX(Cronograma!F:F,_xlfn.AGGREGATE(15,6,ROW(Cronograma!$D$8:$D$122)/(Cronograma!$D$8:$D$122=$C$7),32)),"") ->  | F40: =IFERROR(INDEX(Cronograma!G:G,_xlfn.AGGREGATE(15,6,ROW(Cronograma!$D$8:$D$122)/(Cronograma!$D$8:$D$122=$C$7),32)),"") ->  | G40: =IFERROR(INDEX(Cronograma!H:H,_xlfn.AGGREGATE(15,6,ROW(Cronograma!$D$8:$D$122)/(Cronograma!$D$8:$D$122=$C$7),32)),"") ->  | H40: =IFERROR(INDEX(Cronograma!O:O,_xlfn.AGGREGATE(15,6,ROW(Cronograma!$D$8:$D$122)/(Cronograma!$D$8:$D$122=$C$7),32)),"") ->  | AM40: =IFERROR(INDEX(Cronograma!I:I,_xlfn.AGGREGATE(15,6,ROW(Cronograma!$D$8:$D$122)/(Cronograma!$D$8:$D$122=$C$7),32)),"") ->  | AN40: =IFERROR(INDEX(Cronograma!J:J,_xlfn.AGGREGATE(15,6,ROW(Cronograma!$D$8:$D$122)/(Cronograma!$D$8:$D$122=$C$7),32)),"") ->  | AO40: =IFERROR(INDEX(Cronograma!K:K,_xlfn.AGGREGATE(15,6,ROW(Cronograma!$D$8:$D$122)/(Cronograma!$D$8:$D$122=$C$7),32)),"") ->  | AP40: =IFERROR(INDEX(Cronograma!L:L,_xlfn.AGGREGATE(15,6,ROW(Cronograma!$D$8:$D$122)/(Cronograma!$D$8:$D$122=$C$7),32)),"") ->  | AQ40: =IFERROR(INDEX(Cronograma!P:P,_xlfn.AGGREGATE(15,6,ROW(Cronograma!$D$8:$D$122)/(Cronograma!$D$8:$D$122=$C$7),32)),"") ->  | AR40: =IFERROR(INDEX(Cronograma!R:R,_xlfn.AGGREGATE(15,6,ROW(Cronograma!$D$8:$D$122)/(Cronograma!$D$8:$D$122=$C$7),32)),"") -> 
C41: =IFERROR(INDEX(Cronograma!C:C,_xlfn.AGGREGATE(15,6,ROW(Cronograma!$D$8:$D$122)/(Cronograma!$D$8:$D$122=$C$7),33)),"") ->  | D41: =IFERROR(INDEX(Cronograma!E:E,_xlfn.AGGREGATE(15,6,ROW(Cronograma!$D$8:$D$122)/(Cronograma!$D$8:$D$122=$C$7),33)),"") ->  | E41: =IFERROR(INDEX(Cronograma!F:F,_xlfn.AGGREGATE(15,6,ROW(Cronograma!$D$8:$D$122)/(Cronograma!$D$8:$D$122=$C$7),33)),"") ->  | F41: =IFERROR(INDEX(Cronograma!G:G,_xlfn.AGGREGATE(15,6,ROW(Cronograma!$D$8:$D$122)/(Cronograma!$D$8:$D$122=$C$7),33)),"") ->  | G41: =IFERROR(INDEX(Cronograma!H:H,_xlfn.AGGREGATE(15,6,ROW(Cronograma!$D$8:$D$122)/(Cronograma!$D$8:$D$122=$C$7),33)),"") ->  | H41: =IFERROR(INDEX(Cronograma!O:O,_xlfn.AGGREGATE(15,6,ROW(Cronograma!$D$8:$D$122)/(Cronograma!$D$8:$D$122=$C$7),33)),"") ->  | AM41: =IFERROR(INDEX(Cronograma!I:I,_xlfn.AGGREGATE(15,6,ROW(Cronograma!$D$8:$D$122)/(Cronograma!$D$8:$D$122=$C$7),33)),"") ->  | AN41: =IFERROR(INDEX(Cronograma!J:J,_xlfn.AGGREGATE(15,6,ROW(Cronograma!$D$8:$D$122)/(Cronograma!$D$8:$D$122=$C$7),33)),"") ->  | AO41: =IFERROR(INDEX(Cronograma!K:K,_xlfn.AGGREGATE(15,6,ROW(Cronograma!$D$8:$D$122)/(Cronograma!$D$8:$D$122=$C$7),33)),"") ->  | AP41: =IFERROR(INDEX(Cronograma!L:L,_xlfn.AGGREGATE(15,6,ROW(Cronograma!$D$8:$D$122)/(Cronograma!$D$8:$D$122=$C$7),33)),"") ->  | AQ41: =IFERROR(INDEX(Cronograma!P:P,_xlfn.AGGREGATE(15,6,ROW(Cronograma!$D$8:$D$122)/(Cronograma!$D$8:$D$122=$C$7),33)),"") ->  | AR41: =IFERROR(INDEX(Cronograma!R:R,_xlfn.AGGREGATE(15,6,ROW(Cronograma!$D$8:$D$122)/(Cronograma!$D$8:$D$122=$C$7),33)),"") -> 
C42: =IFERROR(INDEX(Cronograma!C:C,_xlfn.AGGREGATE(15,6,ROW(Cronograma!$D$8:$D$122)/(Cronograma!$D$8:$D$122=$C$7),34)),"") ->  | D42: =IFERROR(INDEX(Cronograma!E:E,_xlfn.AGGREGATE(15,6,ROW(Cronograma!$D$8:$D$122)/(Cronograma!$D$8:$D$122=$C$7),34)),"") ->  | E42: =IFERROR(INDEX(Cronograma!F:F,_xlfn.AGGREGATE(15,6,ROW(Cronograma!$D$8:$D$122)/(Cronograma!$D$8:$D$122=$C$7),34)),"") ->  | F42: =IFERROR(INDEX(Cronograma!G:G,_xlfn.AGGREGATE(15,6,ROW(Cronograma!$D$8:$D$122)/(Cronograma!$D$8:$D$122=$C$7),34)),"") ->  | G42: =IFERROR(INDEX(Cronograma!H:H,_xlfn.AGGREGATE(15,6,ROW(Cronograma!$D$8:$D$122)/(Cronograma!$D$8:$D$122=$C$7),34)),"") ->  | H42: =IFERROR(INDEX(Cronograma!O:O,_xlfn.AGGREGATE(15,6,ROW(Cronograma!$D$8:$D$122)/(Cronograma!$D$8:$D$122=$C$7),34)),"") ->  | AM42: =IFERROR(INDEX(Cronograma!I:I,_xlfn.AGGREGATE(15,6,ROW(Cronograma!$D$8:$D$122)/(Cronograma!$D$8:$D$122=$C$7),34)),"") ->  | AN42: =IFERROR(INDEX(Cronograma!J:J,_xlfn.AGGREGATE(15,6,ROW(Cronograma!$D$8:$D$122)/(Cronograma!$D$8:$D$122=$C$7),34)),"") ->  | AO42: =IFERROR(INDEX(Cronograma!K:K,_xlfn.AGGREGATE(15,6,ROW(Cronograma!$D$8:$D$122)/(Cronograma!$D$8:$D$122=$C$7),34)),"") ->  | AP42: =IFERROR(INDEX(Cronograma!L:L,_xlfn.AGGREGATE(15,6,ROW(Cronograma!$D$8:$D$122)/(Cronograma!$D$8:$D$122=$C$7),34)),"") ->  | AQ42: =IFERROR(INDEX(Cronograma!P:P,_xlfn.AGGREGATE(15,6,ROW(Cronograma!$D$8:$D$122)/(Cronograma!$D$8:$D$122=$C$7),34)),"") ->  | AR42: =IFERROR(INDEX(Cronograma!R:R,_xlfn.AGGREGATE(15,6,ROW(Cronograma!$D$8:$D$122)/(Cronograma!$D$8:$D$122=$C$7),34)),"") -> 
C43: =IFERROR(INDEX(Cronograma!C:C,_xlfn.AGGREGATE(15,6,ROW(Cronograma!$D$8:$D$122)/(Cronograma!$D$8:$D$122=$C$7),35)),"") ->  | D43: =IFERROR(INDEX(Cronograma!E:E,_xlfn.AGGREGATE(15,6,ROW(Cronograma!$D$8:$D$122)/(Cronograma!$D$8:$D$122=$C$7),35)),"") ->  | E43: =IFERROR(INDEX(Cronograma!F:F,_xlfn.AGGREGATE(15,6,ROW(Cronograma!$D$8:$D$122)/(Cronograma!$D$8:$D$122=$C$7),35)),"") ->  | F43: =IFERROR(INDEX(Cronograma!G:G,_xlfn.AGGREGATE(15,6,ROW(Cronograma!$D$8:$D$122)/(Cronograma!$D$8:$D$122=$C$7),35)),"") ->  | G43: =IFERROR(INDEX(Cronograma!H:H,_xlfn.AGGREGATE(15,6,ROW(Cronograma!$D$8:$D$122)/(Cronograma!$D$8:$D$122=$C$7),35)),"") ->  | H43: =IFERROR(INDEX(Cronograma!O:O,_xlfn.AGGREGATE(15,6,ROW(Cronograma!$D$8:$D$122)/(Cronograma!$D$8:$D$122=$C$7),35)),"") ->  | AM43: =IFERROR(INDEX(Cronograma!I:I,_xlfn.AGGREGATE(15,6,ROW(Cronograma!$D$8:$D$122)/(Cronograma!$D$8:$D$122=$C$7),35)),"") ->  | AN43: =IFERROR(INDEX(Cronograma!J:J,_xlfn.AGGREGATE(15,6,ROW(Cronograma!$D$8:$D$122)/(Cronograma!$D$8:$D$122=$C$7),35)),"") ->  | AO43: =IFERROR(INDEX(Cronograma!K:K,_xlfn.AGGREGATE(15,6,ROW(Cronograma!$D$8:$D$122)/(Cronograma!$D$8:$D$122=$C$7),35)),"") ->  | AP43: =IFERROR(INDEX(Cronograma!L:L,_xlfn.AGGREGATE(15,6,ROW(Cronograma!$D$8:$D$122)/(Cronograma!$D$8:$D$122=$C$7),35)),"") ->  | AQ43: =IFERROR(INDEX(Cronograma!P:P,_xlfn.AGGREGATE(15,6,ROW(Cronograma!$D$8:$D$122)/(Cronograma!$D$8:$D$122=$C$7),35)),"") ->  | AR43: =IFERROR(INDEX(Cronograma!R:R,_xlfn.AGGREGATE(15,6,ROW(Cronograma!$D$8:$D$122)/(Cronograma!$D$8:$D$122=$C$7),35)),"") -> 
C44: =IFERROR(INDEX(Cronograma!C:C,_xlfn.AGGREGATE(15,6,ROW(Cronograma!$D$8:$D$122)/(Cronograma!$D$8:$D$122=$C$7),36)),"") ->  | D44: =IFERROR(INDEX(Cronograma!E:E,_xlfn.AGGREGATE(15,6,ROW(Cronograma!$D$8:$D$122)/(Cronograma!$D$8:$D$122=$C$7),36)),"") ->  | E44: =IFERROR(INDEX(Cronograma!F:F,_xlfn.AGGREGATE(15,6,ROW(Cronograma!$D$8:$D$122)/(Cronograma!$D$8:$D$122=$C$7),36)),"") ->  | F44: =IFERROR(INDEX(Cronograma!G:G,_xlfn.AGGREGATE(15,6,ROW(Cronograma!$D$8:$D$122)/(Cronograma!$D$8:$D$122=$C$7),36)),"") ->  | G44: =IFERROR(INDEX(Cronograma!H:H,_xlfn.AGGREGATE(15,6,ROW(Cronograma!$D$8:$D$122)/(Cronograma!$D$8:$D$122=$C$7),36)),"") ->  | H44: =IFERROR(INDEX(Cronograma!O:O,_xlfn.AGGREGATE(15,6,ROW(Cronograma!$D$8:$D$122)/(Cronograma!$D$8:$D$122=$C$7),36)),"") ->  | AM44: =IFERROR(INDEX(Cronograma!I:I,_xlfn.AGGREGATE(15,6,ROW(Cronograma!$D$8:$D$122)/(Cronograma!$D$8:$D$122=$C$7),36)),"") ->  | AN44: =IFERROR(INDEX(Cronograma!J:J,_xlfn.AGGREGATE(15,6,ROW(Cronograma!$D$8:$D$122)/(Cronograma!$D$8:$D$122=$C$7),36)),"") ->  | AO44: =IFERROR(INDEX(Cronograma!K:K,_xlfn.AGGREGATE(15,6,ROW(Cronograma!$D$8:$D$122)/(Cronograma!$D$8:$D$122=$C$7),36)),"") ->  | AP44: =IFERROR(INDEX(Cronograma!L:L,_xlfn.AGGREGATE(15,6,ROW(Cronograma!$D$8:$D$122)/(Cronograma!$D$8:$D$122=$C$7),36)),"") ->  | AQ44: =IFERROR(INDEX(Cronograma!P:P,_xlfn.AGGREGATE(15,6,ROW(Cronograma!$D$8:$D$122)/(Cronograma!$D$8:$D$122=$C$7),36)),"") ->  | AR44: =IFERROR(INDEX(Cronograma!R:R,_xlfn.AGGREGATE(15,6,ROW(Cronograma!$D$8:$D$122)/(Cronograma!$D$8:$D$122=$C$7),36)),"") -> 
C45: =IFERROR(INDEX(Cronograma!C:C,_xlfn.AGGREGATE(15,6,ROW(Cronograma!$D$8:$D$122)/(Cronograma!$D$8:$D$122=$C$7),37)),"") ->  | D45: =IFERROR(INDEX(Cronograma!E:E,_xlfn.AGGREGATE(15,6,ROW(Cronograma!$D$8:$D$122)/(Cronograma!$D$8:$D$122=$C$7),37)),"") ->  | E45: =IFERROR(INDEX(Cronograma!F:F,_xlfn.AGGREGATE(15,6,ROW(Cronograma!$D$8:$D$122)/(Cronograma!$D$8:$D$122=$C$7),37)),"") ->  | F45: =IFERROR(INDEX(Cronograma!G:G,_xlfn.AGGREGATE(15,6,ROW(Cronograma!$D$8:$D$122)/(Cronograma!$D$8:$D$122=$C$7),37)),"") ->  | G45: =IFERROR(INDEX(Cronograma!H:H,_xlfn.AGGREGATE(15,6,ROW(Cronograma!$D$8:$D$122)/(Cronograma!$D$8:$D$122=$C$7),37)),"") ->  | H45: =IFERROR(INDEX(Cronograma!O:O,_xlfn.AGGREGATE(15,6,ROW(Cronograma!$D$8:$D$122)/(Cronograma!$D$8:$D$122=$C$7),37)),"") ->  | AM45: =IFERROR(INDEX(Cronograma!I:I,_xlfn.AGGREGATE(15,6,ROW(Cronograma!$D$8:$D$122)/(Cronograma!$D$8:$D$122=$C$7),37)),"") ->  | AN45: =IFERROR(INDEX(Cronograma!J:J,_xlfn.AGGREGATE(15,6,ROW(Cronograma!$D$8:$D$122)/(Cronograma!$D$8:$D$122=$C$7),37)),"") ->  | AO45: =IFERROR(INDEX(Cronograma!K:K,_xlfn.AGGREGATE(15,6,ROW(Cronograma!$D$8:$D$122)/(Cronograma!$D$8:$D$122=$C$7),37)),"") ->  | AP45: =IFERROR(INDEX(Cronograma!L:L,_xlfn.AGGREGATE(15,6,ROW(Cronograma!$D$8:$D$122)/(Cronograma!$D$8:$D$122=$C$7),37)),"") ->  | AQ45: =IFERROR(INDEX(Cronograma!P:P,_xlfn.AGGREGATE(15,6,ROW(Cronograma!$D$8:$D$122)/(Cronograma!$D$8:$D$122=$C$7),37)),"") ->  | AR45: =IFERROR(INDEX(Cronograma!R:R,_xlfn.AGGREGATE(15,6,ROW(Cronograma!$D$8:$D$122)/(Cronograma!$D$8:$D$122=$C$7),37)),"") -> 
C46: =IFERROR(INDEX(Cronograma!C:C,_xlfn.AGGREGATE(15,6,ROW(Cronograma!$D$8:$D$122)/(Cronograma!$D$8:$D$122=$C$7),38)),"") ->  | D46: =IFERROR(INDEX(Cronograma!E:E,_xlfn.AGGREGATE(15,6,ROW(Cronograma!$D$8:$D$122)/(Cronograma!$D$8:$D$122=$C$7),38)),"") ->  | E46: =IFERROR(INDEX(Cronograma!F:F,_xlfn.AGGREGATE(15,6,ROW(Cronograma!$D$8:$D$122)/(Cronograma!$D$8:$D$122=$C$7),38)),"") ->  | F46: =IFERROR(INDEX(Cronograma!G:G,_xlfn.AGGREGATE(15,6,ROW(Cronograma!$D$8:$D$122)/(Cronograma!$D$8:$D$122=$C$7),38)),"") ->  | G46: =IFERROR(INDEX(Cronograma!H:H,_xlfn.AGGREGATE(15,6,ROW(Cronograma!$D$8:$D$122)/(Cronograma!$D$8:$D$122=$C$7),38)),"") ->  | H46: =IFERROR(INDEX(Cronograma!O:O,_xlfn.AGGREGATE(15,6,ROW(Cronograma!$D$8:$D$122)/(Cronograma!$D$8:$D$122=$C$7),38)),"") ->  | AM46: =IFERROR(INDEX(Cronograma!I:I,_xlfn.AGGREGATE(15,6,ROW(Cronograma!$D$8:$D$122)/(Cronograma!$D$8:$D$122=$C$7),38)),"") ->  | AN46: =IFERROR(INDEX(Cronograma!J:J,_xlfn.AGGREGATE(15,6,ROW(Cronograma!$D$8:$D$122)/(Cronograma!$D$8:$D$122=$C$7),38)),"") ->  | AO46: =IFERROR(INDEX(Cronograma!K:K,_xlfn.AGGREGATE(15,6,ROW(Cronograma!$D$8:$D$122)/(Cronograma!$D$8:$D$122=$C$7),38)),"") ->  | AP46: =IFERROR(INDEX(Cronograma!L:L,_xlfn.AGGREGATE(15,6,ROW(Cronograma!$D$8:$D$122)/(Cronograma!$D$8:$D$122=$C$7),38)),"") ->  | AQ46: =IFERROR(INDEX(Cronograma!P:P,_xlfn.AGGREGATE(15,6,ROW(Cronograma!$D$8:$D$122)/(Cronograma!$D$8:$D$122=$C$7),38)),"") ->  | AR46: =IFERROR(INDEX(Cronograma!R:R,_xlfn.AGGREGATE(15,6,ROW(Cronograma!$D$8:$D$122)/(Cronograma!$D$8:$D$122=$C$7),38)),"") -> 
C47: =IFERROR(INDEX(Cronograma!C:C,_xlfn.AGGREGATE(15,6,ROW(Cronograma!$D$8:$D$122)/(Cronograma!$D$8:$D$122=$C$7),39)),"") ->  | D47: =IFERROR(INDEX(Cronograma!E:E,_xlfn.AGGREGATE(15,6,ROW(Cronograma!$D$8:$D$122)/(Cronograma!$D$8:$D$122=$C$7),39)),"") ->  | E47: =IFERROR(INDEX(Cronograma!F:F,_xlfn.AGGREGATE(15,6,ROW(Cronograma!$D$8:$D$122)/(Cronograma!$D$8:$D$122=$C$7),39)),"") ->  | F47: =IFERROR(INDEX(Cronograma!G:G,_xlfn.AGGREGATE(15,6,ROW(Cronograma!$D$8:$D$122)/(Cronograma!$D$8:$D$122=$C$7),39)),"") ->  | G47: =IFERROR(INDEX(Cronograma!H:H,_xlfn.AGGREGATE(15,6,ROW(Cronograma!$D$8:$D$122)/(Cronograma!$D$8:$D$122=$C$7),39)),"") ->  | H47: =IFERROR(INDEX(Cronograma!O:O,_xlfn.AGGREGATE(15,6,ROW(Cronograma!$D$8:$D$122)/(Cronograma!$D$8:$D$122=$C$7),39)),"") ->  | AM47: =IFERROR(INDEX(Cronograma!I:I,_xlfn.AGGREGATE(15,6,ROW(Cronograma!$D$8:$D$122)/(Cronograma!$D$8:$D$122=$C$7),39)),"") ->  | AN47: =IFERROR(INDEX(Cronograma!J:J,_xlfn.AGGREGATE(15,6,ROW(Cronograma!$D$8:$D$122)/(Cronograma!$D$8:$D$122=$C$7),39)),"") ->  | AO47: =IFERROR(INDEX(Cronograma!K:K,_xlfn.AGGREGATE(15,6,ROW(Cronograma!$D$8:$D$122)/(Cronograma!$D$8:$D$122=$C$7),39)),"") ->  | AP47: =IFERROR(INDEX(Cronograma!L:L,_xlfn.AGGREGATE(15,6,ROW(Cronograma!$D$8:$D$122)/(Cronograma!$D$8:$D$122=$C$7),39)),"") ->  | AQ47: =IFERROR(INDEX(Cronograma!P:P,_xlfn.AGGREGATE(15,6,ROW(Cronograma!$D$8:$D$122)/(Cronograma!$D$8:$D$122=$C$7),39)),"") ->  | AR47: =IFERROR(INDEX(Cronograma!R:R,_xlfn.AGGREGATE(15,6,ROW(Cronograma!$D$8:$D$122)/(Cronograma!$D$8:$D$122=$C$7),39)),"") -> 
C48: =IFERROR(INDEX(Cronograma!C:C,_xlfn.AGGREGATE(15,6,ROW(Cronograma!$D$8:$D$122)/(Cronograma!$D$8:$D$122=$C$7),40)),"") ->  | D48: =IFERROR(INDEX(Cronograma!E:E,_xlfn.AGGREGATE(15,6,ROW(Cronograma!$D$8:$D$122)/(Cronograma!$D$8:$D$122=$C$7),40)),"") ->  | E48: =IFERROR(INDEX(Cronograma!F:F,_xlfn.AGGREGATE(15,6,ROW(Cronograma!$D$8:$D$122)/(Cronograma!$D$8:$D$122=$C$7),40)),"") ->  | F48: =IFERROR(INDEX(Cronograma!G:G,_xlfn.AGGREGATE(15,6,ROW(Cronograma!$D$8:$D$122)/(Cronograma!$D$8:$D$122=$C$7),40)),"") ->  | G48: =IFERROR(INDEX(Cronograma!H:H,_xlfn.AGGREGATE(15,6,ROW(Cronograma!$D$8:$D$122)/(Cronograma!$D$8:$D$122=$C$7),40)),"") ->  | H48: =IFERROR(INDEX(Cronograma!O:O,_xlfn.AGGREGATE(15,6,ROW(Cronograma!$D$8:$D$122)/(Cronograma!$D$8:$D$122=$C$7),40)),"") ->  | AM48: =IFERROR(INDEX(Cronograma!I:I,_xlfn.AGGREGATE(15,6,ROW(Cronograma!$D$8:$D$122)/(Cronograma!$D$8:$D$122=$C$7),40)),"") ->  | AN48: =IFERROR(INDEX(Cronograma!J:J,_xlfn.AGGREGATE(15,6,ROW(Cronograma!$D$8:$D$122)/(Cronograma!$D$8:$D$122=$C$7),40)),"") ->  | AO48: =IFERROR(INDEX(Cronograma!K:K,_xlfn.AGGREGATE(15,6,ROW(Cronograma!$D$8:$D$122)/(Cronograma!$D$8:$D$122=$C$7),40)),"") ->  | AP48: =IFERROR(INDEX(Cronograma!L:L,_xlfn.AGGREGATE(15,6,ROW(Cronograma!$D$8:$D$122)/(Cronograma!$D$8:$D$122=$C$7),40)),"") ->  | AQ48: =IFERROR(INDEX(Cronograma!P:P,_xlfn.AGGREGATE(15,6,ROW(Cronograma!$D$8:$D$122)/(Cronograma!$D$8:$D$122=$C$7),40)),"") ->  | AR48: =IFERROR(INDEX(Cronograma!R:R,_xlfn.AGGREGATE(15,6,ROW(Cronograma!$D$8:$D$122)/(Cronograma!$D$8:$D$122=$C$7),40)),"") -> 

Sheet Calculos (hidden)
C2: CÁLCULOS E INDICADORES
C6: INDICADORES GERAIS | G6: RESUMO POR STATUS | J6: RESUMO FINANCEIRO POR PROJETO - PRIMEIROS 10 | P6: TAREFAS ATRASADAS | T6: CUSTOS POR CATEGORIA
C7: Total de Projetos | D7: =COUNTA(tbProjetos[Cod_Projeto]) -> 67 | G7: Status | H7: Qtde | J7: Projeto | K7: Receita/Contrato | L7: Custo Previsto | M7: Custo Real | N7: Margem Real | P7: Projeto | Q7: Qtde Atrasadas | T7: Categoria | U7: Custo Real
C8: Projetos Ativos | D8: =COUNTIF(tbProjetos[Ativo],"Sim") -> 44 | G8: Planejado | H8: =COUNTIF(tbProjetos[Status],G8) -> 14 | J8: =IFERROR(INDEX(tbProjetos[Projeto],1),"") -> Migração de ERP | K8: =IF(J8="","",SUMIFS(tbProjetos[Valor_Contratado],tbProjetos[Projeto],J8)) -> R$ 224,711.09 | L8: =IF(J8="","",SUMIFS(tbProjetos[Custo_Previsto],tbProjetos[Projeto],J8)) -> R$ 128,620.23 | M8: =IF(J8="","",SUMIFS(tbProjetos[Custo_Real],tbProjetos[Projeto],J8)) -> R$ 146,904.15 | N8: =IF(J8="","",K8-M8) -> R$ 77,806.94 | P8: =J8 -> Migração de ERP | Q8: =IF(P8="","",COUNTIFS(tbCronograma[Projeto],P8,tbCronograma[Atraso_Dias],">"&0)) -> 2 | T8: Mão de obra | U8: =SUMIFS(tbOrcamento[Valor_Realizado],tbOrcamento[Categoria_Custo],T8) -> R$ 203,412.58
C9: Projetos Concluídos | D9: =COUNTIF(tbProjetos[Status],"Concluído") -> 20 | G9: Em andamento | H9: =COUNTIF(tbProjetos[Status],G9) -> 21 | J9: =IFERROR(INDEX(tbProjetos[Projeto],2),"") -> Novo Portal Web | K9: =IF(J9="","",SUMIFS(tbProjetos[Valor_Contratado],tbProjetos[Projeto],J9)) -> R$ 428,890.44 | L9: =IF(J9="","",SUMIFS(tbProjetos[Custo_Previsto],tbProjetos[Projeto],J9)) -> R$ 319,116.72 | M9: =IF(J9="","",SUMIFS(tbProjetos[Custo_Real],tbProjetos[Projeto],J9)) -> R$ 348,127.43 | N9: R$ 80,763.01 | P9: Novo Portal Web | Q9: =IF(P9="","",COUNTIFS(tbCronograma[Projeto],P9,tbCronograma[Atraso_Dias],">"&0)) -> 2 | T9: Software | U9: =SUMIFS(tbOrcamento[Valor_Realizado],tbOrcamento[Categoria_Custo],T9) -> R$ 42,700.00
C10: Projetos Atrasados | D10: =COUNTIF(tbProjetos[Situacao_Prazo],"Atrasado") -> 39 | G10: Em pausa | H10: =COUNTIF(tbProjetos[Status],G10) -> 9 | J10: =IFERROR(INDEX(tbProjetos[Projeto],3),"") -> App Mobile Vendas | K10: =IF(J10="","",SUMIFS(tbProjetos[Valor_Contratado],tbProjetos[Projeto],J10)) -> R$ 478,073.71 | L10: =IF(J10="","",SUMIFS(tbProjetos[Custo_Previsto],tbProjetos[Projeto],J10)) -> R$ 337,556.09 | M10: =IF(J10="","",SUMIFS(tbProjetos[Custo_Real],tbProjetos[Projeto],J10)) -> R$ 370,990.61 | N10: R$ 107,083.10 | P10: App Mobile Vendas | Q10: =IF(P10="","",COUNTIFS(tbCronograma[Projeto],P10,tbCronograma[Atraso_Dias],">"&0)) -> 4 | T10: Material | U10: =SUMIFS(tbOrcamento[Valor_Realizado],tbOrcamento[Categoria_Custo],T10) -> 0
C11: Valor Contratado Total | D11: =SUM(tbProjetos[Valor_Contratado]) -> R$ 30,024,312.37 | G11: Concluído | H11: =COUNTIF(tbProjetos[Status],G11) -> 20 | J11: =IFERROR(INDEX(tbProjetos[Projeto],4),"") -> Automação de RH | K11: =IF(J11="","",SUMIFS(tbProjetos[Valor_Contratado],tbProjetos[Projeto],J11)) -> R$ 810,361.93 | L11: =IF(J11="","",SUMIFS(tbProjetos[Custo_Previsto],tbProjetos[Projeto],J11)) -> R$ 502,458.29 | M11: =IF(J11="","",SUMIFS(tbProjetos[Custo_Real],tbProjetos[Projeto],J11)) -> R$ 440,057.46 | N11: R$ 370,304.47 | P11: Automação de RH | Q11: =IF(P11="","",COUNTIFS(tbCronograma[Projeto],P11,tbCronograma[Atraso_Dias],">"&0)) -> 0 | T11: Terceiros | U11: =SUMIFS(tbOrcamento[Valor_Realizado],tbOrcamento[Categoria_Custo],T11) -> R$ 147,514.24
C12: Custo Previsto Total | D12: =SUM(tbProjetos[Custo_Previsto]) -> R$ 18,743,428.04 | G12: Cancelado | H12: =COUNTIF(tbProjetos[Status],G12) -> 3 | J12: =IFERROR(INDEX(tbProjetos[Projeto],5),"") -> BI Dashboard | K12: =IF(J12="","",SUMIFS(tbProjetos[Valor_Contratado],tbProjetos[Projeto],J12)) -> R$ 67,483.67 | L12: =IF(J12="","",SUMIFS(tbProjetos[Custo_Previsto],tbProjetos[Projeto],J12)) -> R$ 37,773.56 | M12: =IF(J12="","",SUMIFS(tbProjetos[Custo_Real],tbProjetos[Projeto],J12)) -> R$ 37,938.12 | N12: R$ 29,545.55 | P12: BI Dashboard | Q12: =IF(P12="","",COUNTIFS(tbCronograma[Projeto],P12,tbCronograma[Atraso_Dias],">"&0)) -> 0 | T12: Transporte | U12: =SUMIFS(tbOrcamento[Valor_Realizado],tbOrcamento[Categoria_Custo],T12) -> 0
C13: Custo Real Total | D13: =SUM(tbProjetos[Custo_Real]) -> R$ 9,341,466.77 | J13: =IFERROR(INDEX(tbProjetos[Projeto],6),"") -> Integração CRM | K13: =IF(J13="","",SUMIFS(tbProjetos[Valor_Contratado],tbProjetos[Projeto],J13)) -> R$ 737,653.06 | L13: =IF(J13="","",SUMIFS(tbProjetos[Custo_Previsto],tbProjetos[Projeto],J13)) -> R$ 304,299.65 | M13: =IF(J13="","",SUMIFS(tbProjetos[Custo_Real],tbProjetos[Projeto],J13)) -> 0 | N13: R$ 737,653.06 | P13: Integração CRM | Q13: =IF(P13="","",COUNTIFS(tbCronograma[Projeto],P13,tbCronograma[Atraso_Dias],">"&0)) -> 3 | T13: Administrativo | U13: =SUMIFS(tbOrcamento[Valor_Realizado],tbOrcamento[Categoria_Custo],T13) -> 0
C14: Margem Prevista Total | D14: =SUM(tbProjetos[Margem_Prevista]) -> R$ 11,280,884.33 | J14: =IFERROR(INDEX(tbProjetos[Projeto],7),"") -> Reforma Sede | K14: =IF(J14="","",SUMIFS(tbProjetos[Valor_Contratado],tbProjetos[Projeto],J14)) -> R$ 593,267.67 | L14: =IF(J14="","",SUMIFS(tbProjetos[Custo_Previsto],tbProjetos[Projeto],J14)) -> R$ 354,766.37 | M14: =IF(J14="","",SUMIFS(tbProjetos[Custo_Real],tbProjetos[Projeto],J14)) -> R$ 390,020.48 | N14: R$ 203,247.19 | P14: Reforma Sede | Q14: =IF(P14="","",COUNTIFS(tbCronograma[Projeto],P14,tbCronograma[Atraso_Dias],">"&0)) -> 0 | T14: Outros | U14: =SUMIFS(tbOrcamento[Valor_Realizado],tbOrcamento[Categoria_Custo],T14) -> 0
C15: Margem Real Total | D15: =SUM(tbProjetos[Margem_Real]) -> R$ 20,682,845.60 | J15: =IFERROR(INDEX(tbProjetos[Projeto],8),"") -> Campanha Digital Q1 | K15: =IF(J15="","",SUMIFS(tbProjetos[Valor_Contratado],tbProjetos[Projeto],J15)) -> R$ 549,770.27 | L15: =IF(J15="","",SUMIFS(tbProjetos[Custo_Previsto],tbProjetos[Projeto],J15)) -> R$ 408,734.47 | M15: =IF(J15="","",SUMIFS(tbProjetos[Custo_Real],tbProjetos[Projeto],J15)) -> R$ 493,741.08 | N15: R$ 56,029.19 | P15: Campanha Digital Q1 | Q15: =IF(P15="","",COUNTIFS(tbCronograma[Projeto],P15,tbCronograma[Atraso_Dias],">"&0)) -> 3
C16: % Médio de Conclusão | D16: =IFERROR(AVERAGE(tbProjetos[Perc_Conclusao]),0) -> 51% | J16: =IFERROR(INDEX(tbProjetos[Projeto],9),"") -> Auditoria Fiscal | K16: =IF(J16="","",SUMIFS(tbProjetos[Valor_Contratado],tbProjetos[Projeto],J16)) -> R$ 591,218.46 | L16: =IF(J16="","",SUMIFS(tbProjetos[Custo_Previsto],tbProjetos[Projeto],J16)) -> R$ 348,618.91 | M16: =IF(J16="","",SUMIFS(tbProjetos[Custo_Real],tbProjetos[Projeto],J16)) -> 0 | N16: R$ 591,218.46 | P16: Auditoria Fiscal | Q16: =IF(P16="","",COUNTIFS(tbCronograma[Projeto],P16,tbCronograma[Atraso_Dias],">"&0)) -> 2
J17: =IFERROR(INDEX(tbProjetos[Projeto],10),"") -> Consultoria ISO 9001 | K17: =IF(J17="","",SUMIFS(tbProjetos[Valor_Contratado],tbProjetos[Projeto],J17)) -> R$ 651,890.34 | L17: =IF(J17="","",SUMIFS(tbProjetos[Custo_Previsto],tbProjetos[Projeto],J17)) -> R$ 520,076.03 | M17: =IF(J17="","",SUMIFS(tbProjetos[Custo_Real],tbProjetos[Projeto],J17)) -> R$ 641,519.93 | N17: R$ 10,370.41 | P17: Consultoria ISO 9001 | Q17: =IF(P17="","",COUNTIFS(tbCronograma[Projeto],P17,tbCronograma[Atraso_Dias],">"&0)) -> 5
